Workbook

Sheet SB (hidden)
A5: Sponsoring Body
A6: 香港仔浸信會
A7: 雅麗斯教育機構有限公司
A8: ALL LUCK LTD
A9: ANGELA LUK'S EDU FOUND LTD
A10: 國際兒童教育協會
A11: 澳洲國際學校會
A12: B H I E
A13: 香港浸信會聯會
A14: BEAUFORT ASSETS LTD
A15: 基督教伯特利會〈香港〉有限公司
A16: 道慈佛社有限公司
A17: 銅鑼灣街坊福利促進會
A18: 香港加拿大國際學校有限公司
A19: 香港明愛
A20: CARMEL SCHOOL ASSN LTD
A21: 天主教香港教區
A22: 中華基督教會長洲堂
A23: 中華基督教會香港區會
A24: 中華基督教會香港志道堂
A25: 中華基督教會合一堂
A26: 中華基督教會望覺堂
A27: 中華基督教會上水堂
A28: 中華基督教會灣仔堂
A29: 柴灣浸信會
A30: CHARK WAI REALTY D. CO. LTD.
A31: 神召會華人同工聯會
A32: 漢基國際學校
A33: 中華回教博愛社
A34: 中華基督教禮賢會香港區會
A35: 香港中華基督教青年會
A36: 青松觀有限公司
A37: 香港潮陽同鄉會有限公司
A38: 基督堂
A39: 基督教宣道會香港區聯會有限公司
A40: 基督教信生會有限公司
A41: 基督教華人福音救生教會
A42: 基督教小天使幼稚園有限公司
A43: 基督教中華傳道會﹝香港﹞有限公司
A44: 基督教信望愛堂
A45: 香港聖公會管業委員會
A46: 聖公會牧愛堂
A47: 協恩學校管治委員會
A48: 啓思教育有限公司
A49: CREATIVE SCHOOL LIMITED
A50: 金巴崙長老會香港區會
A51: 嘉諾撒仁愛女修會
A52: DELIA GP OF SCH
A53: 明我教育機構有限公司
A54: 道明會
A55: 東亞教育促進會
A56: 香港中文大學校友會聯會教育基金會有限公司
A57: 香港教育大學附屬學校有限公司
A58: 靈光堂
A59: 英基教育服務有限公司
A60: 信義會永生堂
A61: 基督教香港信義會
A62: 基督教中國佈道會
A63: FAIN NATION LIMITED
A64: FAIR ENTERPRISE LTD
A65: 宣道會錦繡堂有限公司
A66: 基督教粉嶺神召會有限公司
A67: 香港道教聯合會屬下飛雁洞佛道社
A68: 神召會禮拜堂
A69: 香港五邑工商總會
A70: FNH INTRNL SCH "VICTOR SEGALEN" ASSN LTD
A71: 瑪利亞方濟各傳教修會
A72: 香港循理會
A73: 鳳溪公立學校
A74: 蓮瀛仙觀有限公司
A75: 救世軍
A76: GENERATIONS CHRISTIAN EDUCATION
A77: GERMAN SWISS INTL SCH FOUND LTD
A78: 嘉鑫教育服務有限公司
A79: 佳寶教育基金會
A80: 香港菩提學會有限公司
A81: 香港幼苗協會有限公司
A82: 香港基督教海面傳道會
A83: 哈羅國際學校（香港）有限公司
A84: 香海正覺蓮社
A85: 港九街坊婦女會有限公司
A86: 港澳信義會有限公司
A87: HK ACADEMY EDU FOUDN LTD
A88: 香港浸信教會
A89: 香港浸信會幼稚園教育協會有限公司
A90: 香港佛教聯合會
A91: 香港中國婦女會
A92: 香港基督教服務處
A93: 香港青年協會
A94: 香港懷恩浸信教會
A95: HK NEPALESE WOMEN ASSN
A96: 香港善一堂道德協會
A97: 香港道教聯合會
A98: 香港漢文師範同學會附設學校有限公司
A99: 香港基督教女青年會
A100: HLY SCH INTL ASSN LTD.
A101: 聖公會聖三一堂
A102: 香港五常法幼稚圓有限公司
A103: 香港浸會大學
A104: 香港伯特利教偕基甸幼稚園
A105: 康樂園學校聯會
A106: 平安福音堂信託人法團
A107: INCORP TRUSTEES OF ISLAMIC COM FUND
A108: 平安福音堂信托人法團
A109: 民知教育學會
A110: INTERNATIONAL CHRISTIAN SCHOOL LTD
A111: 國際傳道會
A112: 國際四方福音會香港教區有限公司
A113: INTL MONTESSORI EDU FOUNDATION LTD
A114: IVY EDUCATION DEVELOPMENT LTD
A115: 金錢村（校董會）有限公司
A116: KELLETT SCHOOL ASSOCIATON LIMITED
A117: 香港蘇浙滬同鄉會
A118: 九龍城浸信會
A119: KLN TONG CHURCH OF CHI CHRIST & MIS
A120: KOREAN EXODOS MISSION CHURCH
A121: KOREAN INTL SCH FOUNDATION
A122: 康山基督教會有限公司
A123: KOWLOON INTERNATIONAL BAPTIST CHURCH
A124: 九龍靈糧堂有限公司
A125: 葵涌浸信會
A126: 羅氏信託有限公司
A127: 聖母無原罪傳教女修會
A128: 基督教靈糧世界佈道會香港靈糧堂堂務委員會
A129: 嶺南教育機構有限公司
A130: 基督教樂道會
A131: 九龍樂善堂
A132: 香海蓮社
A133: 路德會愛心堂
A134: 藍田街坊福利會
A135: 世界龍岡學校﹝香港﹞有限公司
A136: 香港路德會有限公司
A137: 香港基督教循道衞理聯合教會
A138: 基督教聖約教會有限公司
A139: 天神之后傳教女修會
A140: MORDEN DYNAMIC LIMITED
A141: 母佑會
A142: 沙爾德聖保祿女修會
A143: 民生書院（辦學團體）有限公司
A144: 新界神召會有限公司
A145: 新界婦孺福利會有限公司
A146: 愛羣道浸信會
A147: OISCA H.K. COLLEGE LTD.
A148: 東方基督教愉田苑道光堂
A149: PARK WORLD LTD
A150: 基督教臻美社會服務機構有限公司
A151: 竹園區神召會
A152: 保良局
A153: 博愛醫院
A154: PRIMSON CONDITION LTD.
A155: PROVIDENT EDUCATION INSTITUTE LTD.
A156: 伊利沙伯中學舊生會教育推廣機構有限公司
A157: REGENT CULT & EDU ORGAN LTD
A158: 聖公會聖若瑟堂
A159: 聖公會聖馬提亞堂
A160: 基督復臨安息日會教育機構（香港）有限公司
A161: 深水埗浸信會幼稚園
A162: SHAMSHUIPO BAP CHURCH
A163: 路德會沙崙堂香港有限公司
A164: 筲箕灣浸信會
A165: 聖公會聖多馬堂
A166: 中華基督教會上水堂幼稚園
A167: SHUI WAH EDU INSTITUTE LTD
A168: 順德聯誼總會
A169: 嗇色園
A170: 聖恩幼稚園
A171: 新加坡國際教育基金會有限公司
A172: 聖母潔心會
A173: 聖公會慈光堂聖匠幼稚園有限公司
A174: 聖公會慈光堂柯佩璋幼稚園有限公司
A175: 聖公會聖馬太堂
A176: 香港國際創價學會
A177: 聖公會聖彼德堂幼稚園（北角）
A178: 聖士提反女子中學校董會
A179: 聖公會聖巴拿巴堂
A180: 聖馬可堂
A181: 聖保羅堂
A182: 香港路德會聖腓力堂有限公司
A183: 聖公會聖士提反堂
A184: 香港神託會
A185: 太陽島英文幼稚園有限公司
A186: 太陽島英文幼稚園有限公司
A187: 耶穌寶血女修會
A188: 施志誠教育機構有限公司
A189: 大欖涌教育團體
A190: 大埔浸信會
A191: 大埔商會幼稚園有限公司
A192: 美差會潮浸服務聯會有限公司
A193: THE CHR THE FAITH HOPE LOVE CH
A194: 香港勵志會
A195: 香港學生輔助會信託人法團
A196: 聖母痛苦方濟傳教女修會香港區受託人法團
A197: 中華無原罪聖母女修會信託人法團
A198: THE SIKH TEMPLE
A199: 圓玄學院
A200: THINK INTERNATIONAL EDU SER LTD
A201: 基督教道光教育機構
A202: 香港真光中學校董會
A203: 真理浸信會
A204: TSING YI RURAL COMMITTEE KIND LTD
... 18 more rows

Sheet KG (hidden)
A5: School Eng/Reg Name | B5: School No | C5: school reg no
A6: ６１１生命樹幼稚園 | B6: 601497 | C6: 601497
A7: ABC PATHWAYS INTERNATIONAL KINDERGARTEN | B7: 602329 | C7: 602329
A8: ABC PATHWAYS INTERNATIONAL KINDERGARTEN (WHAMPOA GARDEN) | B8: 603864 | C8: 603864
A9: ALISON'S LETTERLAND INTERNATIONAL KINDERGARTEN | B9: 566144 | C9: 566144
A10: BAMBINO ENGLISH PLAYSCHOOL | B10: 566799 | C10: 566799
A11: CARMEL SCHOOL | B11: 216186 | C11: 21618
A12: CASA DEI BAMBINI KINDERGARTEN | B12: 570249 | C12: 570249
A13: DISCOVERY BAY INTERNATIONAL SCHOOL | B13: 230987 | C13: 23098
A14: DISCOVERY MONTESSORI ACADEMY | B14: 600814 | C14: 600814
A15: GARDEN HOUSE KINDERGARTEN | B15: 575755 | C15: 575755
A16: GERMAN SWISS INTERNATIONAL SCHOOL | B16: 214558 | C16: 21455
A17: GOLDEN GATE INTERNATIONAL KINDERGARTEN | B17: 596736 | C17: 596736
A18: HAMILTON HILL INTERNATIONAL KINDERGARTEN | B18: 601683 | C18: 601683
A19: HIGHGATE HOUSE SCHOOL - THE PEAK | B19: 545589 | C19: 545589
A20: INTERNATIONAL COLLEGE HONG KONG HONG LOK YUEN (KINDERGARTEN SECTION) | B20: 230944 | C20: 23094
A21: KELLETT SCHOOL | B21: 215406 | C21: 21540
A22: KHALSA DIWAN KINDERGARTEN | B22: 323853 | C22: 32385
A23: KOHITSUJI KINDERGARTEN | B23: 593630 | C23: 593630
A24: KOREAN INTERNATIONAL SCHOOL | B24: 216216 | C24: 21621
A25: KOWLOON BAPTIST CHURCH KINDERGARTEN | B25: 215244 | C25: 21524
A26: LA PETITE ENFANCE KINDERGARTEN | B26: 590029 | C26: 590029
A27: LEAPFROG KINDERGARTEN | B27: 564770 | C27: 564770
A28: LITTLE BUDS KINDERGARTEN | B28: 558346 | C28: 558346
A29: LYC'EE FRANCAIS INTERNATIONAL (FRENCH INTERNATIONAL SCHOOL) | B29: 214949 | C29: 21494
A30: LYC'EE FRANCAIS INTERNATIONAL (FRENCH INTERNATIONAL SCHOOL) (SHEUNG WAN) | B30: 569143 | C30: 569143
A31: MONTESSORI FOR CHILDREN (NURSERY) | B31: 565466 | C31: 565466
A32: MORI LISA INTERNATIONAL KINDERGARTEN | B32: 597260 | C32: 597260
A33: MORNINGSTAR KINDERGARTEN | B33: 587630 | C33: 587630
A34: MUI WO OWLS SCHOOL | B34: 579009 | C34: 579009
A35: NEW SONG CHRISTIAN KINDERGARTEN | B35: 231630 | C35: 23163
A36: NORD ANGLIA INTERNATIONAL PRE-SCHOOL (SAI KUNG) | B36: 608475 | C36: 608475
A37: NORD ANGLIA INTERNATIONAL PRE-SCHOOL (TAI TAM) | B37: 608483 | C37: 608483
A38: NORWEGIAN INTERNATIONAL SCHOOL | B38: 215520 | C38: 21552
A39: SAFARI KID INTERNATIONAL KINDERGARTEN | B39: 598089 | C39: 598089
A40: SAGARMATHA KINDERGARTEN | B40: 542687 | C40: 542687
A41: SAI KUNG PRE-SCHOOL GROUP | B41: 231371 | C41: 23137
A42: SMALL WORLD CHRISTIAN KINDERGARTEN | B42: 215724 | C42: 21572
A43: SOUTHSIDE KINDERGARTEN | B43: 533203 | C43: 533203
A44: ST. CATHERINE'S KINDERGARTEN (HARBOUR PLACE) | B44: 586625 | C44: 586625
A45: ST. CLARE'S PRIMARY SCHOOL | B45: 210021 | C45: 21002
A46: STEAM INTERNATIONAL KINDERGARTEN | B46: 607789 | C46: 607789
A47: STEM INTERNATIONAL KINDERGARTEN | B47: 607800 | C47: 607800
A48: SUNSHINE HOUSE INTERNATIONAL PRE-SCHOOL | B48: 536172 | C48: 536172
A49: SUNSHINE HOUSE INTERNATIONAL PRE-SCHOOL (CHI FU) | B49: 569429 | C49: 569429
A50: SUNSHINE HOUSE INTERNATIONAL PRE-SCHOOL (CLEARWATER BAY) | B50: 583774 | C50: 583774
A51: SUNSHINE HOUSE INTERNATIONAL PRE-SCHOOL (DISCOVERY BAY NORTH) | B51: 587516 | C51: 587516
A52: SUNSHINE HOUSE INTERNATIONAL PRE-SCHOOL (THE PEAK) | B52: 566470 | C52: 566470
A53: SUNSHINE HOUSE INTERNATIONAL PRE-SCHOOL (TUNG CHUNG) | B53: 540862 | C53: 540862
A54: SUNSHINE HOUSE KINDERGARTEN | B54: 231606 | C54: 23160
A55: TANPOPO KINDERGARTEN | B55: 541907 | C55: 541907
A56: THE PEAK PRE-SCHOOL | B56: 564737 | C56: 564737
A57: THE REPULSE BAY PRE-SCHOOL | B57: 210560 | C57: 21056
A58: THE WOODLAND BEACHSIDE PRE-SCHOOL | B58: 602256 | C58: 602256
A59: THE WOODLAND HARBOURSIDE PRE-SCHOOL | B59: 578053 | C59: 578053
A60: THE WOODLAND KENNEDY TOWN PRE-SCHOOL | B60: 602248 | C60: 602248
A61: THE WOODLAND MONTESSORI PRE-SCHOOL (CAINE ROAD) | B61: 594725 | C61: 594725
A62: THE WOODLAND PRE-SCHOOL (POKFULAM) | B62: 570788 | C62: 570788
A63: THE WOODLAND SAI KUNG PRE-SCHOOL | B63: 578630 | C63: 578630
A64: TUTOR TIME INTERNATIONAL KINDERGARTEN | B64: 542571 | C64: 542571
A65: WEMBLEY INTERNATIONAL KINDERGARTEN | B65: 215635 | C65: 21563
A66: WILDERNESS INTERNATIONAL KINDERGARTEN | B66: 607215 | C66: 607215
A67: WOODLAND MONTESSORI PRE-SCHOOL (MID LEVELS) | B67: 564966 | C67: 564966
A68: WOODLAND MONTESSORI PRE-SCHOOL (REPULSE BAY) | B68: 576360 | C68: 576360
A69: WOODLAND PRE-SCHOOL (HAPPY VALLEY) | B69: 564958 | C69: 564958
A70: YORK INTERNATIONAL PRE-SCHOOL | B70: 578479 | C70: 578479
A71: YORK INTERNATIONAL PRE-SCHOOL (HONG KONG) | B71: 601420 | C71: 601420
A72: YORK MONTESSORI INTERNATIONAL PRE-SCHOOL (MEI FOO) | B72: 604615 | C72: 604615
A73: YORK MONTESSORI INTERNATIONAL PRE-SCHOOL (YUEN LONG) | B73: 605441 | C73: 605441
A74: 九龍方方樂趣幼稚園 | B74: 565032 | C74: 565032
A75: 九龍城浸信會幼稚園 | B75: 324078 | C75: 32407
A76: 九龍城浸信會慈愛幼稚園 | B76: 325910 | C76: 32591
A77: 九龍城浸信會嘉福幼稚園 | B77: 516627 | C77: 516627
A78: 九龍城浸信會禧年幼稚園 | B78: 158569 | C78: 15856
A79: 九龍迦南中英文幼稚園 | B79: 324930 | C79: 32493
A80: 九龍真光中學（幼稚園部） | B80: 607150 | C80: 607150
A81: 九龍婦女福利會幼稚園 | B81: 566195 | C81: 566195
A82: 九龍嘉心中英文幼稚園 | B82: 215112 | C82: 21511
A83: 九龍禮賢學校 | B83: 138177 | C83: 13817
A84: 九龍靈糧堂幼兒園 | B84: 564524 | C84: 564524
A85: 九龍靈糧堂幼稚園 | B85: 324680 | C85: 32468
A86: 力行幼稚園 | B86: 155705 | C86: 15570
A87: 又一村學校 | B87: 133850 | C87: 13385
A88: 上水培幼幼稚園 | B88: 153117 | C88: 15311
A89: 上水堂幼稚園 | B89: 150843 | C89: 15084
A90: 上水惠州幼稚園（分校） | B90: 158208 | C90: 15820
A91: 上水禮賢會幼稚園 | B91: 157406 | C91: 15740
A92: 大同新邨聖德肋撒幼稚園 | B92: 324060 | C92: 32406
A93: 大埔浸信會幼稚園 | B93: 151157 | C93: 15115
A94: 大埔浸信會幼稚園天澤邨分校 | B94: 544167 | C94: 544167
A95: 大埔浸信會幼稚園運頭塘邨分校 | B95: 159166 | C95: 15916
A96: 大埔商會幼稚園 | B96: 158828 | C96: 15882
A97: 大埔商會張學明幼稚園（將軍澳） | B97: 528048 | C97: 528048
A98: 大埔循道衛理幼稚園 | B98: 158895 | C98: 15889
A99: 大埔禮賢會幼稚園 | B99: 150860 | C99: 15086
A100: 大衛（出埃及）幼稚園 | B100: 231517 | C100: 23151
A101: 小大嶼山蒙特梭利幼稚園 | B101: 587877 | C101: 587877
A102: 小牛頓中英文幼稚園 | B102: 599999 | C102: 599999
A103: 小時候幼稚園 | B103: 565482 | C103: 565482
A104: 小蜜蜂幼稚園 | B104: 532355 | C104: 532355
A105: 山景邨浸信會幼稚園 | B105: 158011 | C105: 15801
A106: 中華基督教青年會上水幼稚園 | B106: 575429 | C106: 575429
A107: 中華基督教青年會幼稚園 | B107: 541230 | C107: 541230
A108: 中華基督教青年會葵涌幼稚園 | B108: 564680 | C108: 564680
A109: 中華基督教會元朗堂周宋主愛幼兒園 | B109: 566250 | C109: 566250
A110: 中華基督教會元朗堂朗屏邨真光幼稚園 | B110: 158500 | C110: 15850
A111: 中華基督教會元朗堂真光幼稚園 | B111: 151629 | C111: 15162
A112: 中華基督教會元朗堂真光幼稚園二校 | B112: 570885 | C112: 570885
A113: 中華基督教會屯門堂幼稚園 | B113: 566292 | C113: 566292
A114: 中華基督教會屯門堂幼稚園二校 | B114: 596442 | C114: 596442
A115: 中華基督教會屯門堂何福堂幼稚園 | B115: 157490 | C115: 15749
A116: 中華基督教會全完幼稚園 | B116: 559962 | C116: 559962
A117: 中華基督教會沙田堂博康幼稚園 | B117: 157295 | C117: 15729
A118: 中華基督教會協和幼稚園 | B118: 132152 | C118: 13215
A119: 中華基督教會長洲堂錦江幼稚園 | B119: 151424 | C119: 15142
A120: 中華基督教會香港志道堂基博幼稚園（將軍澳） | B120: 528609 | C120: 528609
A121: 中華基督教會柴灣堂幼兒園 | B121: 566152 | C121: 566152
A122: 中華基督教會基法幼稚園 | B122: 323250 | C122: 32325
A123: 中華基督教會基真幼稚園 | B123: 324795 | C123: 32479
A124: 中華基督教會基華幼稚園 | B124: 324809 | C124: 32480
A125: 中華基督教會望覺堂賢貞幼稚園 | B125: 547069 | C125: 547069
A126: 中華基督教會深愛堂幼稚園 | B126: 319511 | C126: 31951
A127: 中華基督教會福幼幼稚園 | B127: 566403 | C127: 566403
A128: 中華基督教會福幼第二幼稚園 | B128: 566411 | C128: 566411
A129: 中華基督教會灣仔堂幼稚園 | B129: 133280 | C129: 13328
A130: 中華傳道會基石幼稚園 | B130: 522910 | C130: 522910
A131: 五邑工商總會幼稚園 | B131: 564290 | C131: 564290
A132: 五邑工商總會張祝珊幼稚園 | B132: 564303 | C132: 564303
A133: 仁愛堂田家炳幼稚園 | B133: 564273 | C133: 564273
A134: 仁愛堂吳黃鳳英幼稚園 | B134: 564257 | C134: 564257
A135: 仁愛堂張慕良夫人幼稚園 | B135: 564281 | C135: 564281
A136: 仁愛堂陳鄭玉而幼稚園 | B136: 564249 | C136: 564249
A137: 仁愛堂彭鴻樟幼稚園 | B137: 159093 | C137: 15909
A138: 仁愛堂葉德海幼稚園 | B138: 157279 | C138: 15727
A139: 仁愛堂劉皇發幼稚園 | B139: 564265 | C139: 564265
A140: 仁愛堂鄧楊詠曼幼稚園 | B140: 540811 | C140: 540811
A141: 仁愛堂顏寶鈴幼稚園 | B141: 157031 | C141: 15703
A142: 仁愛堂龐盧淑燕幼稚園 | B142: 567051 | C142: 567051
A143: 仁濟醫院九龍崇德社幼稚園 | B143: 563382 | C143: 563382
A144: 仁濟醫院山景幼稚園 | B144: 563412 | C144: 563412
A145: 仁濟醫院友愛幼稚園 | B145: 563366 | C145: 563366
A146: 仁濟醫院方江輝幼稚園 | B146: 565440 | C146: 565440
A147: 仁濟醫院永隆幼稚園 | B147: 563390 | C147: 563390
A148: 仁濟醫院明德幼稚園 | B148: 543918 | C148: 543918
A149: 仁濟醫院林李婉冰幼稚園 | B149: 563420 | C149: 563420
A150: 仁濟醫院郭子樑幼稚園 | B150: 563439 | C150: 563439
A151: 仁濟醫院董伯英幼稚園 | B151: 563404 | C151: 563404
A152: 仁濟醫院裘錦秋幼稚園 | B152: 563374 | C152: 563374
A153: 仁濟醫院蔡百泰幼稚園 | B153: 562890 | C153: 562890
A154: 仁濟醫院嚴徐玉珊幼稚園 | B154: 539163 | C154: 539163
A155: 元岡幼稚園 | B155: 158321 | C155: 15832
A156: 元朗三育幼稚園 | B156: 159158 | C156: 15915
A157: 元朗公立中學校友會劉良驤紀念幼稚園 | B157: 159140 | C157: 15914
A158: 元朗東莞同鄉會王少強夫人幼稚園 | B158: 159115 | C158: 15911
A159: 元朗東莞同鄉會熊定嘉幼稚園 | B159: 549304 | C159: 549304
A160: 元朗信義會生命幼稚園 | B160: 155624 | C160: 15562
A161: 元朗商會幼稚園 | B161: 159018 | C161: 15901
A162: 天水圍宣道幼稚園 | B162: 543489 | C162: 543489
A163: 天主教大埔幼稚園 | B163: 158585 | C163: 15858
A164: 天主教甘霖幼稚園 | B164: 324833 | C164: 32483
A165: 天主教海星幼稚園 | B165: 324094 | C165: 32409
A166: 天主教彩霞邨潔心幼稚園 | B166: 325694 | C166: 32569
A167: 天主教聖多默幼稚園 | B167: 532533 | C167: 532533
A168: 天主教聖安德肋幼稚園 | B168: 559768 | C168: 559768
A169: 天主教聖伯多祿幼稚園 | B169: 312134 | C169: 31213
A170: 天主教聖保祿幼兒園 | B170: 563048 | C170: 563048
A171: 天主教聖保祿幼兒園（大圍） | B171: 603872 | C171: 603872
A172: 天主教聖雅各伯幼稚園 | B172: 325708 | C172: 32570
A173: 天主教聖雲先幼兒學校 | B173: 563510 | C173: 563510
A174: 天主教聖葉理諾幼稚園 | B174: 543012 | C174: 543012
A175: 天主教聖瑪加利大幼稚園 | B175: 325368 | C175: 32536
A176: 天主教領報幼稚園 | B176: 159220 | C176: 15922
A177: 天主教露德聖母幼稚園 | B177: 151564 | C177: 15156
A178: 天后中英文幼稚園 | B178: 156515 | C178: 15651
A179: 天后中英文幼稚園（二校） | B179: 156728 | C179: 15672
A180: 天美幼兒園 | B180: 567019 | C180: 567019
A181: 天美幼稚園 | B181: 158186 | C181: 15818
A182: 天純幼稚園 | B182: 157732 | C182: 15773
A183: 天越創思國際幼稚園 | B183: 607240 | C183: 607240
A184: 天樂幼稚園 | B184: 537950 | C184: 537950
A185: 太平幼稚園 | B185: 158593 | C185: 15859
A186: 太陽島幼稚園（東涌分校） | B186: 555576 | C186: 555576
A187: 太陽島幼稚園（馬頭圍分校） | B187: 538680 | C187: 538680
A188: 太陽島幼稚園（深水埗分校） | B188: 538698 | C188: 538698
A189: 太陽島幼稚園（港灣豪庭分校） | B189: 555436 | C189: 555436
A190: 太陽島英文幼稚園 | B190: 215678 | C190: 21567
A191: 太陽島英文幼稚園（元朗分校） | B191: 231010 | C191: 23101
A192: 太陽島英文幼稚園（西貢分校） | B192: 525731 | C192: 525731
A193: 太陽島英文幼稚園（卑路乍街分校） | B193: 552739 | C193: 552739
A194: 太陽島英文幼稚園（葵涌分校） | B194: 231118 | C194: 23111
A195: 太陽島英文幼稚園（葵景分校） | B195: 231576 | C195: 23157
A196: 太陽島英文幼稚園（葵興分校） | B196: 231347 | C196: 23134
A197: 太陽島英文幼稚園﹝樂民﹞ | B197: 523526 | C197: 523526
A198: 心怡天地幼稚園 | B198: 583340 | C198: 583340
A199: 心怡天地幼稚園（沙田） | B199: 591777 | C199: 591777
A200: 心怡天地幼稚園（麗城） | B200: 597716 | C200: 597716
A201: 文娜雅拔幼稚園 | B201: 584517 | C201: 584517
A202: 文娜雅拔幼稚園（九龍城） | B202: 595608 | C202: 595608
A203: 方方樂趣幼稚園 | B203: 566225 | C203: 566225
A204: 比高樂國際幼稚園 | B204: 599182 | C204: 599182
... 864 more rows

Sheet Interim (hidden)
A1: Year | B1: RegNo | C1: BranchId | D1: TeachingType | E1: Stream | F1: Type | G1: FeeIncomeParent | H1: FeeIncomePEVS | I1: FeeIncomeKCFRS | J1: FeeRemssion | K1: KCSS | L1: SME | M1: GovRentReimbur | N1: RatesReimbur | O1: RentReimbur | P1: BankInterestIncome | Q1: DonationsReceived | R1: CourseFeeRefundToTeachers | S1: AppFeeRegFee | T1: AirConditioning | U1: MealCharges | V1: SubsidiesFromSchSponsorBody | W1: SchItmSchBus | X1: ActivitiesIncome | Y1: DesignatedGrants | Z1: InsufficientInformationItems | AA1: SundryIncomeNotFromParent | AB1: InsuranceCompensation | AC1: OthersNoBreakdown | AD1: OtherIncomeName1 | AE1: OtherIncomeName2 | AF1: OtherIncomeName3 | AG1: OtherIncomeName4 | AH1: OtherIncomeName5 | AI1: OtherIncomeName6 | AJ1: OtherIncomeName7 | AK1: OtherIncomeName8 | AL1: OtherIncomeName9 | AM1: OtherIncomeName10 | AN1: OtherIncomeName11 | AO1: OtherIncomeName12 | AP1: OtherIncomeName13 | AQ1: OtherIncomeName14 | AR1: OtherIncomeName15 | AS1: OtherIncomeAmount1 | AT1: OtherIncomeAmount2 | AU1: OtherIncomeAmount3 | AV1: OtherIncomeAmount4 | AW1: OtherIncomeAmount5 | AX1: OtherIncomeAmount6 | AY1: OtherIncomeAmount7 | AZ1: OtherIncomeAmount8 | BA1: OtherIncomeAmount9 | BB1: OtherIncomeAmount10 | BC1: OtherIncomeAmount11 | BD1: OtherIncomeAmount12 | BE1: OtherIncomeAmount13 | BF1: OtherIncomeAmount14 | BG1: OtherIncomeAmount15 | BH1: TotalIncome | BI1: Salary_T | BJ1: Salary_NT | BK1: Allowance_T | BL1: Allowance_NT | BM1: PFund_T | BN1: PFund_NT | BO1: LongServicePay_T | BP1: LongServicePay_NT | BQ1: SupervisorPay | BR1: GovRent | BS1: Rates | BT1: Rental | BU1: DeprecPremises | BV1: DeprecFurniture | BW1: DeprecComputer | BX1: DeprecOthers | BY1: MajorRepairs | BZ1: MinorRepairs | CA1: ExpMealPreparation | CB1: FEAndTeachingAids | CC1: Water | CD1: Electricity | CE1: BadDebt | CF1: LossOnDisposal | CG1: Telephone | CH1: Cleaning | CI1: Printing | CJ1: TeachingConsumables | CK1: Insurance | CL1: FirstAidAndFireSafety | CM1: AuditFee | CN1: Travelling | CO1: RegularLearning | CP1: Postage | CQ1: Publications | CR1: StudentHandbooks | CS1: Advertisement | CT1: BankInterest | CU1: BankCharges | CV1: Newspapers | CW1: ExpChargedToDonationIncome | CX1: OtherExpenditureName1 | CY1: OtherExpenditureName2 | CZ1: OtherExpenditureName3 | DA1: OtherExpenditureName4 | DB1: OtherExpenditureName5 | DC1: OtherExpenditureName6 | DD1: OtherExpenditureName7 | DE1: OtherExpenditureName8 | DF1: OtherExpenditureName9 | DG1: OtherExpenditureName10 | DH1: OtherExpenditureName11 | DI1: OtherExpenditureName12 | DJ1: OtherExpenditureName13 | DK1: OtherExpenditureName14 | DL1: OtherExpenditureName15 | DM1: OtherExpenditureAmount1 | DN1: OtherExpenditureAmount2 | DO1: OtherExpenditureAmount3 | DP1: OtherExpenditureAmount4 | DQ1: OtherExpenditureAmount5 | DR1: OtherExpenditureAmount6 | DS1: OtherExpenditureAmount7 | DT1: OtherExpenditureAmount8 | DU1: OtherExpenditureAmount9 | DV1: OtherExpenditureAmount10 | DW1: OtherExpenditureAmount11 | DX1: OtherExpenditureAmount12 | DY1: OtherExpenditureAmount13 | DZ1: OtherExpenditureAmount14 | EA1: OtherExpenditureAmount15 | EB1: TotalExpense | EC1: SurplusDefTA | ED1: SurplusDefSWD | EE1: SurplusDefBFAdj | EF1: TransferToReserveName1 | EG1: TransferToReserveName2 | EH1: TransferToReserveName3 | EI1: TransferToReserveName4 | EJ1: TransferToReserveName5 | EK1: TransferToReserveName6 | EL1: TransferToReserveName7 | EM1: TransferToReserveName8 | EN1: TransferToReserveName9 | EO1: TransferToReserveName10 | EP1: TransferToReserveAmount1 | EQ1: TransferToReserveAmount2 | ER1: TransferToReserveAmount3 | ES1: TransferToReserveAmount4 | ET1: TransferToReserveAmount5 | EU1: TransferToReserveAmount6 | EV1: TransferToReserveAmount7 | EW1: TransferToReserveAmount8 | EX1: TransferToReserveAmount9 | EY1: TransferToReserveAmount10 | EZ1: TransferToReserveSSBName1 | FA1: TransferToReserveSSBName2 | FB1: TransferToReserveSSBName3 | FC1: TransferToReserveSSBAmount1 | FD1: TransferToReserveSSBAmount2 | FE1: TransferToReserveSSBAmount3 | FF1: DonationToSponsor | FG1: DonationToOthers | FH1: Entertainment | FI1: Messing | FJ1: ManageFeetoSSB | FK1: OthersSpecialExpName1 | FL1: OthersSpecialExp1 | FM1: OthersSpecialExpName2 | FN1: OthersSpecialExp2 | FO1: OthersSpecialExpName3 | FP1: OthersSpecialExp3 | FQ1: OthersSpecialExpName4 | FR1: OthersSpecialExp4 | FS1: CumulativeSurplusDefTABFAdj | FT1: Remarks | FU1: IsUsed | FV1: IsFullAmountMR | FW1: PriorYearAdj | FX1: PriorYearAdjDesc
A2: =YEAR(附件一!C32) ->  | B2: =IF(ISBLANK(附件一!C7),"",VLOOKUP(附件一!C7,KG!$A$4:$C$1102,3,0)) ->  | C2: =IF(ISBLANK(附件一!C13),"A",附件一!C13) -> A | D2: A | E2: L | F2: A | G2: =INDIRECT(ADDRESS(G7,G11,,,$A$11)) -> 0 | H2: 0 | I2: 0 | J2: 0 | K2: 0 | L2: =INDIRECT(ADDRESS(L7,L11,,,$A$11)) -> 0 | M2: 0 | N2: 0 | O2: 0 | P2: =INDIRECT(ADDRESS(P7,P11,,,$A$16)) -> 0 | Q2: =INDIRECT(ADDRESS(Q7,Q11,,,$A$14)) -> 0 | R2: =INDIRECT(ADDRESS(R7,R11,,,$A$16)) -> 0 | S2: 0 | U2: 0 | V2: =INDIRECT(ADDRESS(V7,V11,,,$A$16)) -> 0 | Y2: 0 | AB2: =INDIRECT(ADDRESS(AB7,AB11,,,$A$16)) -> 0 | AD2: =IF(OR(AS2="",AS2=0),"",INDIRECT(ADDRESS(AD7,AD11,,,$A$16))) ->  | AS2: =INDIRECT(ADDRESS(AS7,AS11,,,$A$16)) -> 0 | AT2: 0 | AU2: 0 | AV2: 0 | AW2: 0 | AX2: 0 | AY2: 0 | AZ2: 0 | BA2: 0 | BB2: 0 | BC2: =INDIRECT(ADDRESS(BC7,BC11,,,$A$16)) -> 0 | BD2: =INDIRECT(ADDRESS(BD7,BD11,,,$A$16)) -> 0 | BE2: =INDIRECT(ADDRESS(BE7,BE11,,,$A$16)) -> 0 | BF2: =INDIRECT(ADDRESS(BF7,BF11,,,$A$16)) -> 0 | BG2: =INDIRECT(ADDRESS(BG7,BG11,,,$A$16)) -> 0 | BH2: =INDIRECT(ADDRESS(BH7,BH11,,,$A$11)) -> 0 | BI2: 0 | BJ2: 0 | BM2: 0 | BN2: 0 | BO2: 0 | BP2: =INDIRECT(ADDRESS(BP7,BP11,,,$A$11)) -> 0 | BQ2: 0 | BR2: 0 | BS2: 0 | BT2: 0 | BU2: 0 | BV2: 0 | BW2: 0 | BX2: 0 | BY2: 0 | BZ2: 0 | CA2: =INDIRECT(ADDRESS(CA7,CA11,,,$A$16)) -> 0 | CB2: =INDIRECT(ADDRESS(CB7,CB11,,,$A$16)) -> 0 | CC2: =INDIRECT(ADDRESS(CC7,CC11,,,$A$16)) -> 0 | CD2: =INDIRECT(ADDRESS(CD7,CD11,,,$A$16)) -> 0 | CG2: =INDIRECT(ADDRESS(CG7,CG11,,,$A$16)) -> 0 | CH2: 0 | CI2: 0 | CJ2: 0 | CK2: 0 | CL2: 0 | CM2: =INDIRECT(ADDRESS(CM7,CM11,,,$A$11)) -> 0 | CN2: =INDIRECT(ADDRESS(CN7,CN11,,,$A$16)) -> 0 | CO2: 0 | CP2: 0 | CQ2: 0 | CR2: 0 | CS2: 0 | CT2: 0 | CU2: 0 | CV2: 0 | CW2: =INDIRECT(ADDRESS(CW7,CW11,,,$A$14)) -> 0 | CX2: =IF(OR(DM2="",DM2=0),"",INDIRECT(ADDRESS(CX7,CX11,,,$A$16))) ->  | DM2: =INDIRECT(ADDRESS(DM7,DM11,,,$A$16)) -> 0 | DN2: 0 | DO2: 0 | DP2: 0 | DQ2: 0 | DR2: 0 | DS2: 0 | DT2: 0 | DU2: 0 | DV2: 0 | DW2: =INDIRECT(ADDRESS(DW7,DW11,,,$A$16)) -> 0 | DX2: =INDIRECT(ADDRESS(DX7,DX11,,,$A$16)) -> 0 | DY2: =INDIRECT(ADDRESS(DY7,DY11,,,$A$16)) -> 0 | DZ2: =INDIRECT(ADDRESS(DZ7,DZ11,,,$A$16)) -> 0 | EA2: =INDIRECT(ADDRESS(EA7,EA11,,,$A$16)) -> 0 | EB2: =INDIRECT(ADDRESS(EB7,EB11,,,$A$11)) -> 0 | EC2: =INDIRECT(ADDRESS(EC7,EC11,,,$A$11)) -> 0 | EF2: =IF(OR(EP2="",EP2=0),"",INDIRECT(ADDRESS(EF7,EF11,,,$A$16))) ->  | EJ2: =IF(OR(ET2="",ET2=0),"",INDIRECT(ADDRESS(EJ7,EJ11,,,$A$16))) ->  | EP2: =INDIRECT(ADDRESS(EP7,EP11,,,$A$16)) -> 0 | EQ2: 0 | ER2: 0 | ES2: 0 | ET2: 0 | EU2: 0 | EV2: 0 | EW2: 0 | EX2: 0 | EY2: 0 | FV2: 1 | FW2: =INDIRECT(ADDRESS(FW7,FW11,,,$A$11)) -> 0 | FX2: =INDIRECT(ADDRESS(FX7,FX11,,,$A$11)) -> 往年度調整 (請說明性質)
A3: =A2 ->  | B3: =B2 ->  | C3: =C2 -> A | D3: A | E3: N | F3: =F2 -> A | G3: =IF($A$11="報表1","",INDIRECT(ADDRESS(G8,G12,,,$A$16))) ->  | L3: =IF($A$11="報表1","",INDIRECT(ADDRESS(L8,L12,,,$A$16))) ->  | P3: =IF($A$11="報表1","",INDIRECT(ADDRESS(P8,P12,,,$A$16))) ->  | R3: =IF($A$11="報表1","",INDIRECT(ADDRESS(R8,R12,,,$A$16))) ->  | S3: =IF($A$11="報表1","",INDIRECT(ADDRESS(S8,S12,,,$A$16))) ->  | U3: =IF($A$11="報表1","",INDIRECT(ADDRESS(U8,U12,,,$A$16))) ->  | V3: =IF($A$11="報表1","",INDIRECT(ADDRESS(V8,V12,,,$A$16))) ->  | Y3: =IF($A$11="報表1","",INDIRECT(ADDRESS(Y8,Y12,,,$A$16))) ->  | AB3: =IF($A$11="報表1","",INDIRECT(ADDRESS(AB8,AB12,,,$A$16))) ->  | AD3: =IF(OR(AS3="",AS3=0),"",INDIRECT(ADDRESS(AD8,AD12,,,$A$16))) ->  | AS3: =IF($A$11="報表1","",INDIRECT(ADDRESS(AS8,AS12,,,$A$11))) ->  | BJ3: =IF($A$11="報表1","",INDIRECT(ADDRESS(BJ8,BJ12,,,$A$11))) ->  | BM3: =IF($A$11="報表1","",INDIRECT(ADDRESS(BM8,BM12,,,$A$16))) ->  | CD3: =IF($A$11="報表1","",INDIRECT(ADDRESS(CD8,CD12,,,$A$16))) ->  | CG3: =IF($A$11="報表1","",INDIRECT(ADDRESS(CG8,CG12,,,$A$16))) ->  | CV3: =IF($A$11="報表1","",INDIRECT(ADDRESS(CV8,CV12,,,$A$16))) ->  | DM3: =IF($A$11="報表1","",INDIRECT(ADDRESS(DM8,DM12,,,$A$11))) ->  | EC3: =IF($A$11="報表1","",INDIRECT(ADDRESS(EC8,EC12,,,$A$11))) ->  | EP3: =IF($A$11="報表1","",INDIRECT(ADDRESS(EP8,EP12,,,$A$16))) ->  | EY3: =IF($A$11="報表1","",INDIRECT(ADDRESS(EY8,EY12,,,$A$16))) ->  | FV3: 1 | FW3: =IF($A$11="報表1","",INDIRECT(ADDRESS(FW8,FW12,,,$A$11))) ->  | FX3: =IF($A$11="報表1","",INDIRECT(ADDRESS(FX8,FX12,,,$A$11))) -> 
P4: Statement 7 | Q4: Statement 6 | R4: Statement 7 | S4: Statement 7 | U4: Statement 7 | V4: Statement 7 | Y4: Statement 7 | AB4: Statement 7 | AD4: Statement 7 | AE4: Statement 7 | AF4: Statement 7 | AG4: Statement 7 | AH4: Statement 7 | AI4: Statement 7 | AJ4: Statement 7 | AK4: Statement 7 | AL4: Statement 7 | AM4: Statement 7 | AN4: Statement 7 | AO4: Statement 7 | AP4: Statement 7 | AQ4: Statement 7 | AR4: Statement 7 | AS4: Statement 7 | AT4: Statement 7 | AU4: Statement 7 | AV4: Statement 7 | AW4: Statement 7 | AX4: Statement 7 | AY4: Statement 7 | AZ4: Statement 7 | BA4: Statement 7 | BB4: Statement 7 | BC4: Statement 7 | BD4: Statement 7 | BE4: Statement 7 | BF4: Statement 7 | BG4: Statement 7 | CA4: Statement 7 | CB4: Statement 7 | CC4: Statement 7 | CD4: Statement 7 | CG4: Statement 7 | CH4: Statement 7 | CI4: Statement 7 | CJ4: Statement 7 | CK4: Statement 7 | CL4: Statement 7 | CN4: Statement 7 | CO4: Statement 7 | CP4: Statement 7 | CQ4: Statement 7 | CR4: Statement 7 | CS4: Statement 7 | CT4: Statement 7 | CU4: Statement 7 | CV4: Statement 7 | CW4: Statement 6 | CX4: Statement 7 | CY4: Statement 7 | CZ4: Statement 7 | DA4: Statement 7 | DB4: Statement 7 | DC4: Statement 7 | DD4: Statement 7 | DE4: Statement 7 | DF4: Statement 7 | DG4: Statement 7 | DH4: Statement 7 | DI4: Statement 7 | DJ4: Statement 7 | DK4: Statement 7 | DL4: Statement 7 | DM4: Statement 7 | DN4: Statement 7 | DO4: Statement 7 | DP4: Statement 7 | DQ4: Statement 7 | DR4: Statement 7 | DS4: Statement 7 | DT4: Statement 7 | DU4: Statement 7 | DV4: Statement 7 | DW4: Statement 7 | DX4: Statement 7 | DY4: Statement 7 | DZ4: Statement 7 | EA4: Statement 7 | EF4: Statement 7 | EG4: Statement 7 | EH4: Statement 7 | EI4: Statement 7 | EJ4: Statement 7 | EK4: Statement 7 | EL4: Statement 7 | EM4: Statement 7 | EN4: Statement 7 | EO4: Statement 7 | EP4: Statement 7 | EQ4: Statement 7 | ER4: Statement 7 | ES4: Statement 7 | ET4: Statement 7 | EU4: Statement 7 | EV4: Statement 7 | EW4: Statement 7 | EX4: Statement 7 | EY4: Statement 7
P5: New | T5: blank | V5: New | W5: blank | X5: blank | Z5: blank | AA5: blank | AB5: New | AC5: blank | AD5: New | AE5: New | AF5: New | AG5: New | AH5: New | AI5: New | AJ5: New | AK5: New | AL5: New | AM5: New | AN5: New | AO5: New | AP5: New | AQ5: New | AR5: New | AS5: New | AT5: New | AU5: New | AV5: New | AW5: New | AX5: New | AY5: New | AZ5: New | BA5: New | BB5: New | BC5: New | BD5: New | BE5: New | BF5: New | BG5: New | BK5: blank | BL5: blank | BX5: New | CA5: New | CB5: Resume | CC5: Resume | CD5: Resume | CE5: Blank | CF5: Blank | CG5: Resume | CH5: Resume | CI5: Resume | CJ5: Resume | CK5: Resume | CL5: Resume | CN5: Resume | CO5: Resume | CP5: Resume | CQ5: Resume | CR5: Resume | CS5: Resume | CT5: Resume | CU5: Resume | CV5: Resume | CX5: New | CY5: New | CZ5: New | DA5: New | DB5: New | DC5: New | DD5: New | DE5: New | DF5: New | DG5: New | DH5: New | DI5: New | DJ5: New | DK5: New | DL5: New | DM5: New | DN5: New | DO5: New | DP5: New | DQ5: New | DR5: New | DS5: New | DT5: New | DU5: New | DV5: New | DW5: New | DX5: New | DY5: New | DZ5: New | EA5: New | ED5: blank | EE5: blank | EZ5: blank | FA5: blank | FB5: blank | FC5: blank | FD5: blank | FE5: blank | FF5: blank | FG5: blank | FH5: blank | FI5: blank | FJ5: blank | FK5: blank | FL5: blank | FM5: blank | FN5: blank | FO5: blank | FP5: blank | FQ5: blank | FR5: blank | FS5: blank | FT5: blank | FU5: blank | FV5: blank
A6: =CELL("filename",報表1!A2) -> T:\2. KG review of audited accounts\2017-18 KG Audited Accounts\NON-SCHEME\[2018fdkg-c.xlsm]報表1
A7: =CELL("filename",報表1A!A1) -> T:\2. KG review of audited accounts\2017-18 KG Audited Accounts\NON-SCHEME\[2018fdkg-c.xlsm]報表1A | E7: Row | G7: =IF($A$11="報表1",G14,G20) -> 23 | H7: =IF($A$11="報表1",H14,H20) -> 24 | I7: 25 | J7: 27 | K7: 29 | L7: =IF($A$11="報表1",L14,L20) -> 31 | M7: 32 | N7: 33 | O7: 34 | P7: 241 | Q7: 16 | R7: 239 | S7: 237 | T7: 0 | U7: 236 | V7: 238 | W7: 0 | X7: 0 | Y7: 240 | Z7: 0 | AA7: 0 | AB7: 242 | AC7: 259 | AD7: 244 | AE7: 245 | AF7: 246 | AG7: 247 | AH7: 248 | AI7: 249 | AJ7: 250 | AK7: 251 | AL7: 252 | AM7: 253 | AN7: 254 | AO7: 255 | AP7: 256 | AQ7: 257 | AR7: 258 | AS7: 244 | AT7: 245 | AU7: 246 | AV7: 247 | AW7: 248 | AX7: 249 | AY7: 250 | AZ7: 251 | BA7: 252 | BB7: 253 | BC7: 254 | BD7: 255 | BE7: 256 | BF7: 257 | BG7: 258 | BH7: 36 | BI7: 39 | BJ7: 40 | BK7: 0 | BL7: 0 | BM7: 42 | BN7: 43 | BO7: 45 | BP7: 46 | BQ7: 47 | BR7: 48 | BS7: 49 | BT7: 50 | BU7: =IF($A$11="報表1",BU14,BU20) -> 52 | BV7: 53 | BW7: 54 | BX7: 55 | BY7: 56 | BZ7: 58 | CA7: 100 | CB7: 101 | CC7: 102 | CD7: 103 | CE7: 0 | CF7: 0 | CG7: 104 | CH7: 105 | CI7: 106 | CJ7: 107 | CK7: 108 | CL7: 109 | CM7: 60 | CN7: 110 | CO7: 111 | CP7: 112 | CQ7: 113 | CR7: 114 | CS7: 115 | CT7: 116 | CU7: 117 | CV7: 118 | CW7: 38 | CX7: 120 | CY7: 121 | CZ7: 122 | DA7: 123 | DB7: 124 | DC7: 125 | DD7: 126 | DE7: 127 | DF7: 128 | DG7: 129 | DH7: 130 | DI7: 131 | DJ7: 132 | DK7: 133 | DL7: 134 | DM7: 120 | DN7: 121 | DO7: 122 | DP7: 123 | DQ7: 124 | DR7: 125 | DS7: 126 | DT7: 127 | DU7: 128 | DV7: 129 | DW7: 130 | DX7: 131 | DY7: 132 | DZ7: 133 | EA7: 134 | EB7: 62 | EC7: 83 | ED7: 0 | EE7: 0 | EF7: 267 | EG7: =IF($A$11="報表1",EG14,EG20) -> 268 | EH7: 269 | EI7: 270 | EJ7: 271 | EK7: 272 | EL7: 273 | EM7: 274 | EN7: 275 | EO7: 276 | EP7: 267 | EQ7: 268 | ER7: 269 | ES7: 270 | ET7: 271 | EU7: 272 | EV7: 273 | EW7: 274 | EX7: 275 | EY7: 276 | EZ7: 0 | FA7: 0 | FB7: 0 | FC7: 0 | FD7: 0 | FE7: 0 | FF7: 0 | FG7: 0 | FH7: 0 | FI7: 0 | FJ7: 0 | FK7: 0 | FL7: 0 | FM7: 0 | FN7: 0 | FO7: 0 | FP7: 0 | FQ7: 0 | FR7: 0 | FS7: 0 | FT7: 0 | FU7: 0 | FV7: 0 | FW7: =IF($A$11="報表1",FW14,FW20) -> 87 | FX7: =IF($A$11="報表1",FX14,FX20) -> 87
A8: =TRIM(RIGHT(A6,LEN(A6)-SEARCH("]",A6,1))) -> 報表1 | G8: =IF($A$11="報表1",G15,G21) -> 0 | H8: =IF($A$11="報表1",H15,H21) -> 0 | I8: 0 | J8: 0 | K8: 0 | L8: =IF($A$11="報表1",L15,L21) -> 0 | M8: 0 | N8: 0 | O8: 0 | P8: 0 | Q8: 0 | R8: 0 | S8: 0 | T8: 0 | U8: 0 | V8: 0 | W8: 0 | X8: 0 | Y8: 0 | Z8: 0 | AA8: 0 | AB8: 0 | AC8: 0 | AD8: 0 | AE8: 0 | AF8: 0 | AG8: 0 | AH8: 0 | AI8: 0 | AJ8: 0 | AK8: 0 | AL8: 0 | AM8: 0 | AN8: 0 | AO8: 0 | AP8: 0 | AQ8: 0 | AR8: 0 | AS8: 0 | AT8: 0 | AU8: 0 | AV8: 0 | AW8: 0 | AX8: 0 | AY8: 0 | AZ8: 0 | BA8: 0 | BB8: 0 | BC8: 0 | BD8: 0 | BE8: 0 | BF8: 0 | BG8: 0 | BH8: 0 | BI8: 0 | BJ8: 0 | BK8: 0 | BL8: 0 | BM8: 0 | BN8: 0 | BO8: 0 | BP8: 0 | BQ8: 0 | BR8: 0 | BS8: 0 | BT8: 0 | BU8: =IF($A$11="報表1",BU15,BU21) -> 0 | BV8: 0 | BW8: 0 | BX8: 0 | BY8: 0 | BZ8: 0 | CA8: 0 | CB8: 0 | CC8: 0 | CD8: 0 | CE8: 0 | CF8: 0 | CG8: 0 | CH8: 0 | CI8: 0 | CJ8: 0 | CK8: 0 | CL8: 0 | CM8: 0 | CN8: 0 | CO8: 0 | CP8: 0 | CQ8: 0 | CR8: 0 | CS8: 0 | CT8: 0 | CU8: 0 | CV8: 0 | CW8: 0 | CX8: 0 | CY8: 0 | CZ8: 0 | DA8: 0 | DB8: 0 | DC8: 0 | DD8: 0 | DE8: 0 | DF8: 0 | DG8: 0 | DH8: 0 | DI8: 0 | DJ8: 0 | DK8: 0 | DL8: 0 | DM8: 0 | DN8: 0 | DO8: 0 | DP8: 0 | DQ8: 0 | DR8: 0 | DS8: 0 | DT8: 0 | DU8: 0 | DV8: 0 | DW8: 0 | DX8: 0 | DY8: 0 | DZ8: 0 | EA8: 0 | EB8: 0 | EC8: 0 | ED8: 0 | EE8: 0 | EF8: 0 | EG8: =IF($A$11="報表1",EG15,EG21) -> 0 | EH8: 0 | EI8: 0 | EJ8: 0 | EK8: 0 | EL8: 0 | EM8: 0 | EN8: 0 | EO8: 0 | EP8: 0 | EQ8: 0 | ER8: 0 | ES8: 0 | ET8: 0 | EU8: 0 | EV8: 0 | EW8: 0 | EX8: 0 | EY8: 0 | EZ8: 0 | FA8: 0 | FB8: 0 | FC8: 0 | FD8: 0 | FE8: 0 | FF8: 0 | FG8: 0 | FH8: 0 | FI8: 0 | FJ8: 0 | FK8: 0 | FL8: 0 | FM8: 0 | FN8: 0 | FO8: 0 | FP8: 0 | FQ8: 0 | FR8: 0 | FS8: 0 | FT8: 0 | FU8: 0 | FV8: 0 | FW8: 0 | FX8: =IF($A$11="報表1",FX15,FX21) -> 0
A9: =TRIM(RIGHT(A7,LEN(A7)-SEARCH("]",A7,1))) -> 報表1A
A11: =IF(附件一!$C$27=附件一!$D$27,A9,A8) -> 報表1 | E11: Column | G11: =IF($A$11="報表1",G17,G23) -> 18 | H11: =IF($A$11="報表1",H17,H23) -> 18 | I11: 18 | J11: 18 | K11: 18 | L11: =IF($A$11="報表1",L17,L23) -> 18 | M11: 18 | N11: 18 | O11: 18 | P11: 22 | Q11: 17 | R11: 22 | S11: 22 | T11: 0 | U11: 22 | V11: 22 | W11: 0 | X11: 0 | Y11: 22 | Z11: 0 | AA11: 0 | AB11: 22 | AC11: 22 | AD11: =報表6_其他!AF241 -> 32 | AE11: =AD11 -> 32 | AF11: =AE11 -> 32 | AG11: 32 | AH11: 32 | AI11: 32 | AJ11: 32 | AK11: 32 | AL11: 32 | AM11: 32 | AN11: =AM11 -> 32 | AO11: 32 | AP11: 32 | AQ11: 32 | AR11: 32 | AS11: =IF($A$11="報表1",AS17,AS23) -> 22 | AT11: =IF($A$11="報表1",AT17,AT23) -> 22 | AU11: 22 | AV11: 22 | AW11: 22 | AX11: 22 | AY11: 22 | AZ11: 22 | BA11: 22 | BB11: 22 | BC11: 22 | BD11: 22 | BE11: 22 | BF11: 22 | BG11: 22 | BH11: 18 | BI11: 18 | BJ11: 18 | BK11: 0 | BL11: 0 | BM11: 18 | BN11: 18 | BO11: 18 | BP11: 18 | BQ11: 18 | BR11: 18 | BS11: 18 | BT11: 18 | BU11: 18 | BV11: 18 | BW11: 18 | BX11: 18 | BY11: 18 | BZ11: 18 | CA11: 22 | CB11: 22 | CC11: 22 | CD11: 22 | CE11: 0 | CF11: 0 | CG11: 22 | CH11: 22 | CI11: 22 | CJ11: 22 | CK11: 22 | CL11: 22 | CM11: 18 | CN11: 22 | CO11: 22 | CP11: 22 | CQ11: 22 | CR11: 22 | CS11: 22 | CT11: 22 | CU11: 22 | CV11: 22 | CW11: 17 | CX11: =AD11 -> 32 | CY11: =AE11 -> 32 | CZ11: 32 | DA11: 32 | DB11: 32 | DC11: 32 | DD11: 32 | DE11: 32 | DF11: 32 | DG11: 32 | DH11: 32 | DI11: 32 | DJ11: 32 | DK11: 32 | DL11: 32 | DM11: =IF($A$11="報表1",DM17,DM23) -> 22 | DN11: =IF($A$11="報表1",DN17,DN23) -> 22 | DO11: 22 | DP11: 22 | DQ11: 22 | DR11: 22 | DS11: 22 | DT11: 22 | DU11: 22 | DV11: 22 | DW11: 22 | DX11: 22 | DY11: 22 | DZ11: 22 | EA11: 22 | EB11: 18 | EC11: 18 | ED11: 0 | EE11: 0 | EF11: 2 | EG11: =EF11 -> 2 | EH11: =EG11 -> 2 | EI11: 2 | EJ11: 2 | EK11: 2 | EL11: 2 | EM11: 2 | EN11: 2 | EO11: 2 | EP11: =IF($A$11="報表1",EP17,EP23) -> 22 | EQ11: =IF($A$11="報表1",EQ17,EQ23) -> 22 | ER11: 22 | ES11: 22 | ET11: 22 | EU11: 22 | EV11: 22 | EW11: 22 | EX11: 22 | EY11: 22 | EZ11: 0 | FA11: 0 | FB11: 0 | FC11: 0 | FD11: 0 | FE11: 0 | FF11: 0 | FG11: 0 | FH11: 0 | FI11: 0 | FJ11: 0 | FK11: 0 | FL11: 0 | FM11: 0 | FN11: 0 | FO11: 0 | FP11: 0 | FQ11: 0 | FR11: 0 | FS11: 0 | FT11: 0 | FU11: 0 | FV11: 0 | FW11: 18 | FX11: =IF($A$11="報表1",FX17,FX23) -> 1
G12: =IF($A$11="報表1",G18,G24) -> 0 | H12: =IF($A$11="報表1",H18,H24) -> 0 | I12: 0 | J12: 0 | K12: 0 | L12: =IF($A$11="報表1",L18,L24) -> 0 | M12: 0 | N12: 0 | O12: 0 | P12: 0 | Q12: 0 | R12: 0 | S12: 0 | T12: 0 | U12: 0 | V12: 0 | W12: 0 | X12: 0 | Y12: 0 | Z12: 0 | AA12: 0 | AB12: 0 | AC12: 0 | AD12: =AD11 -> 32 | AE12: =AD12 -> 32 | AF12: 32 | AG12: 32 | AH12: 32 | AI12: 32 | AJ12: 32 | AK12: 32 | AL12: 32 | AM12: 32 | AN12: =AM12 -> 32 | AO12: 32 | AP12: 32 | AQ12: 32 | AR12: 32 | AS12: =IF($A$11="報表1",AS18,AS24) -> 0 | AT12: =IF($A$11="報表1",AT18,AT24) -> 0 | AU12: 0 | AV12: 0 | AW12: 0 | AX12: 0 | AY12: 0 | AZ12: 0 | BA12: 0 | BB12: 0 | BC12: 0 | BD12: 0 | BE12: 0 | BF12: 0 | BG12: 0 | BH12: 0 | BI12: 0 | BJ12: 0 | BK12: 0 | BL12: 0 | BM12: 0 | BN12: 0 | BO12: 0 | BP12: 0 | BQ12: 0 | BR12: 0 | BS12: 0 | BT12: 0 | BU12: 0 | BV12: 0 | BW12: 0 | BX12: 0 | BY12: 0 | BZ12: 0 | CA12: 0 | CB12: 0 | CC12: 0 | CD12: 0 | CE12: 0 | CF12: 0 | CG12: 0 | CH12: 0 | CI12: 0 | CJ12: 0 | CK12: 0 | CL12: 0 | CM12: 0 | CN12: 0 | CO12: 0 | CP12: 0 | CQ12: 0 | CR12: 0 | CS12: 0 | CT12: 0 | CU12: 0 | CV12: 0 | CW12: 0 | CX12: =AD12 -> 32 | CY12: =AE12 -> 32 | CZ12: 32 | DA12: 32 | DB12: 32 | DC12: 32 | DD12: 32 | DE12: 32 | DF12: 32 | DG12: 32 | DH12: 32 | DI12: 32 | DJ12: 32 | DK12: 32 | DL12: 32 | DM12: =IF($A$11="報表1",DM18,DM24) -> 0 | DN12: =IF($A$11="報表1",DN18,DN24) -> 0 | DO12: 0 | DP12: 0 | DQ12: 0 | DR12: 0 | DS12: 0 | DT12: 0 | DU12: 0 | DV12: 0 | DW12: 0 | DX12: 0 | DY12: 0 | DZ12: 0 | EA12: 0 | EB12: 0 | EC12: 0 | ED12: 0 | EE12: 0 | EF12: =EF11 -> 2 | EG12: =EF12 -> 2 | EH12: =EG12 -> 2 | EI12: 2 | EJ12: 2 | EK12: 2 | EL12: 2 | EM12: 2 | EN12: 2 | EO12: 2 | EP12: =IF($A$11="報表1",EP18,EP24) -> 0 | EQ12: =IF($A$11="報表1",EQ18,EQ24) -> 0 | ER12: 0 | ES12: 0 | ET12: 0 | EU12: 0 | EV12: 0 | EW12: 0 | EX12: 0 | EY12: 0 | EZ12: 0 | FA12: 0 | FB12: 0 | FC12: 0 | FD12: 0 | FE12: 0 | FF12: 0 | FG12: 0 | FH12: 0 | FI12: 0 | FJ12: 0 | FK12: 0 | FL12: 0 | FM12: 0 | FN12: 0 | FO12: 0 | FP12: 0 | FQ12: 0 | FR12: 0 | FS12: 0 | FT12: 0 | FU12: 0 | FV12: 0 | FW12: 0 | FX12: =IF($A$11="報表1",FX18,FX24) -> 0
A13: =CELL("filename",報表5!A16) -> T:\2. KG review of audited accounts\2017-18 KG Audited Accounts\NON-SCHEME\[2018fdkg-c.xlsm]報表5
A14: =TRIM(RIGHT(A13,LEN(A13)-SEARCH("]",A13,1))) -> 報表5 | E14: Row - Stmt 1 | G14: =VLOOKUP(G$1,報表1!$I$1:$J$483,2,0) -> 23 | H14: =VLOOKUP(H$1,報表1!$I$1:$J$483,2,0) -> 24 | I14: =VLOOKUP(I$1,報表1!$I$1:$J$483,2,0) -> 25 | J14: =VLOOKUP(J$1,報表1!$I$1:$J$483,2,0) -> 27 | K14: =VLOOKUP(K$1,報表1!$I$1:$J$483,2,0) -> 29 | L14: =VLOOKUP(L$1,報表1!$I$1:$J$483,2,0) -> 31 | M14: =VLOOKUP(M$1,報表1!$I$1:$J$483,2,0) -> 32 | N14: =VLOOKUP(N$1,報表1!$I$1:$J$483,2,0) -> 33 | O14: =VLOOKUP(O$1,報表1!$I$1:$J$483,2,0) -> 34 | P14: =VLOOKUP(P$1,報表6_其他!$K$14:$M$280,2,0) -> 241 | Q14: =VLOOKUP(Q$1,報表5!$G$15:$H$41,2,0) -> 16 | R14: =VLOOKUP(R$1,報表6_其他!$K$14:$M$280,2,0) -> 239 | S14: =VLOOKUP(S$1,報表6_其他!$K$14:$M$280,2,0) -> 237 | U14: =VLOOKUP(U$1,報表6_其他!$K$14:$M$280,2,0) -> 236 | V14: =VLOOKUP(V$1,報表6_其他!$K$14:$M$280,2,0) -> 238 | Y14: =VLOOKUP(Y$1,報表6_其他!$K$14:$M$280,2,0) -> 240 | AB14: =VLOOKUP(AB$1,報表6_其他!$K$14:$M$280,2,0) -> 242 | AC14: =VLOOKUP(AC$1,報表6_其他!$K$1:$M$278,2,0) -> 259 | AD14: =+AS14 -> 244 | AE14: 245 | AF14: 246 | AG14: 247 | AH14: 248 | AI14: 249 | AJ14: 250 | AK14: 251 | AL14: 252 | AM14: 253 | AN14: =+BC14 -> 254 | AO14: =+BD14 -> 255 | AP14: =+BE14 -> 256 | AQ14: =+BF14 -> 257 | AR14: =+BG14 -> 258 | AS14: =VLOOKUP(AS$1,報表6_其他!$K$14:$M$280,2,0) -> 244 | AT14: =VLOOKUP(AT$1,報表6_其他!$K$14:$M$280,2,0) -> 245 | AU14: =VLOOKUP(AU$1,報表6_其他!$K$14:$M$280,2,0) -> 246 | AV14: =VLOOKUP(AV$1,報表6_其他!$K$14:$M$280,2,0) -> 247 | AW14: =VLOOKUP(AW$1,報表6_其他!$K$14:$M$280,2,0) -> 248 | AX14: =VLOOKUP(AX$1,報表6_其他!$K$14:$M$280,2,0) -> 249 | AY14: =VLOOKUP(AY$1,報表6_其他!$K$14:$M$280,2,0) -> 250 | AZ14: =VLOOKUP(AZ$1,報表6_其他!$K$14:$M$280,2,0) -> 251 | BA14: =VLOOKUP(BA$1,報表6_其他!$K$14:$M$280,2,0) -> 252 | BB14: =VLOOKUP(BB$1,報表6_其他!$K$14:$M$280,2,0) -> 253 | BC14: =VLOOKUP(BC$1,報表6_其他!$K$14:$M$280,2,0) -> 254 | BD14: =VLOOKUP(BD$1,報表6_其他!$K$14:$M$280,2,0) -> 255 | BE14: =VLOOKUP(BE$1,報表6_其他!$K$14:$M$280,2,0) -> 256 | BF14: =VLOOKUP(BF$1,報表6_其他!$K$14:$M$280,2,0) -> 257 | BG14: =VLOOKUP(BG$1,報表6_其他!$K$14:$M$280,2,0) -> 258 | BH14: =VLOOKUP(BH$1,報表1!$I$1:$J$483,2,0) -> 36 | BI14: =VLOOKUP(BI$1,報表1!$I$1:$J$483,2,0) -> 39 | BJ14: =VLOOKUP(BJ$1,報表1!$I$1:$J$483,2,0) -> 40 | BM14: =VLOOKUP(BM$1,報表1!$I$1:$J$483,2,0) -> 42 | BN14: =VLOOKUP(BN$1,報表1!$I$1:$J$483,2,0) -> 43 | BO14: =VLOOKUP(BO$1,報表1!$I$1:$J$483,2,0) -> 45 | BP14: =VLOOKUP(BP$1,報表1!$I$1:$J$483,2,0) -> 46 | BQ14: =VLOOKUP(BQ$1,報表1!$I$1:$J$483,2,0) -> 47 | BR14: =VLOOKUP(BR$1,報表1!$I$1:$J$483,2,0) -> 48 | BS14: =VLOOKUP(BS$1,報表1!$I$1:$J$483,2,0) -> 49 | BT14: =VLOOKUP(BT$1,報表1!$I$1:$J$483,2,0) -> 50 | BU14: =VLOOKUP(BU$1,報表1!$I$1:$J$483,2,0) -> 52 | BV14: =VLOOKUP(BV$1,報表1!$I$1:$J$483,2,0) -> 53 | BW14: =VLOOKUP(BW$1,報表1!$I$1:$J$483,2,0) -> 54 | BX14: =VLOOKUP(BX$1,報表1!$I$1:$J$483,2,0) -> 55 | BY14: =VLOOKUP(BY$1,報表1!$I$1:$J$483,2,0) -> 56 | BZ14: =VLOOKUP(BZ$1,報表1!$I$1:$J$483,2,0) -> 58 | CA14: =VLOOKUP(CA$1,報表6_其他!$K$14:$M$280,2,0) -> 100 | CB14: =VLOOKUP(CB$1,報表6_其他!$K$14:$M$280,2,0) -> 101 | CC14: =VLOOKUP(CC$1,報表6_其他!$K$14:$M$280,2,0) -> 102 | CD14: =VLOOKUP(CD$1,報表6_其他!$K$14:$M$280,2,0) -> 103 | CG14: =VLOOKUP(CG$1,報表6_其他!$K$14:$M$280,2,0) -> 104 | CH14: =VLOOKUP(CH$1,報表6_其他!$K$14:$M$280,2,0) -> 105 | CI14: =VLOOKUP(CI$1,報表6_其他!$K$14:$M$280,2,0) -> 106 | CJ14: =VLOOKUP(CJ$1,報表6_其他!$K$14:$M$280,2,0) -> 107 | CK14: =VLOOKUP(CK$1,報表6_其他!$K$14:$M$280,2,0) -> 108 | CL14: =VLOOKUP(CL$1,報表6_其他!$K$14:$M$280,2,0) -> 109 | CM14: =VLOOKUP(CM$1,報表1!$I$1:$J$483,2,0) -> 60 | CN14: =VLOOKUP(CN$1,報表6_其他!$K$14:$M$280,2,0) -> 110 | CO14: =VLOOKUP(CO$1,報表6_其他!$K$14:$M$280,2,0) -> 111 | CP14: =VLOOKUP(CP$1,報表6_其他!$K$14:$M$280,2,0) -> 112 | CQ14: =VLOOKUP(CQ$1,報表6_其他!$K$14:$M$280,2,0) -> 113 | CR14: =VLOOKUP(CR$1,報表6_其他!$K$14:$M$280,2,0) -> 114 | CS14: =VLOOKUP(CS$1,報表6_其他!$K$14:$M$280,2,0) -> 115 | CT14: =VLOOKUP(CT$1,報表6_其他!$K$14:$M$280,2,0) -> 116 | CU14: =VLOOKUP(CU$1,報表6_其他!$K$14:$M$280,2,0) -> 117 | CV14: =VLOOKUP(CV$1,報表6_其他!$K$14:$M$280,2,0) -> 118 | CW14: =VLOOKUP(CW$1,報表5!$G$15:$H$41,2,0) -> 38 | CX14: =+DM14 -> 120 | CY14: 121 | CZ14: 122 | DA14: 123 | DB14: 124 | DC14: 125 | DD14: 126 | DE14: 127 | DF14: 128 | DG14: 129 | DH14: =+DW14 -> 130 | DI14: =+DX14 -> 131 | DJ14: =+DY14 -> 132 | DK14: =+DZ14 -> 133 | DL14: =+EA14 -> 134 | DM14: =VLOOKUP(DM$1,報表6_其他!$K$14:$M$280,2,0) -> 120 | DN14: =VLOOKUP(DN$1,報表6_其他!$K$14:$M$280,2,0) -> 121 | DO14: =VLOOKUP(DO$1,報表6_其他!$K$14:$M$280,2,0) -> 122 | DP14: =VLOOKUP(DP$1,報表6_其他!$K$14:$M$280,2,0) -> 123 | DQ14: =VLOOKUP(DQ$1,報表6_其他!$K$14:$M$280,2,0) -> 124 | DR14: =VLOOKUP(DR$1,報表6_其他!$K$14:$M$280,2,0) -> 125 | DS14: =VLOOKUP(DS$1,報表6_其他!$K$14:$M$280,2,0) -> 126 | DT14: =VLOOKUP(DT$1,報表6_其他!$K$14:$M$280,2,0) -> 127 | DU14: =VLOOKUP(DU$1,報表6_其他!$K$14:$M$280,2,0) -> 128 | DV14: =VLOOKUP(DV$1,報表6_其他!$K$14:$M$280,2,0) -> 129 | DW14: =VLOOKUP(DW$1,報表6_其他!$K$14:$M$280,2,0) -> 130 | DX14: =VLOOKUP(DX$1,報表6_其他!$K$14:$M$280,2,0) -> 131 | DY14: =VLOOKUP(DY$1,報表6_其他!$K$14:$M$280,2,0) -> 132 | DZ14: =VLOOKUP(DZ$1,報表6_其他!$K$14:$M$280,2,0) -> 133 | EA14: =VLOOKUP(EA$1,報表6_其他!$K$14:$M$280,2,0) -> 134 | EB14: =VLOOKUP(EB$1,報表1!$I$1:$J$483,2,0) -> 62 | EC14: =VLOOKUP(EC$1,報表1!$I$1:$J$483,2,0) -> 83 | EF14: =VLOOKUP(EF$1,報表6_其他!$K$1:$M$278,2,0) -> 267 | EG14: =VLOOKUP(EG$1,報表6_其他!$K$1:$M$278,2,0) -> 268 | EH14: =VLOOKUP(EH$1,報表6_其他!$K$1:$M$278,2,0) -> 269 | EI14: =VLOOKUP(EI$1,報表6_其他!$K$1:$M$278,2,0) -> 270 | EJ14: =VLOOKUP(EJ$1,報表6_其他!$K$1:$M$278,2,0) -> 271 | EK14: =VLOOKUP(EK$1,報表6_其他!$K$1:$M$278,2,0) -> 272 | EL14: =VLOOKUP(EL$1,報表6_其他!$K$1:$M$278,2,0) -> 273 | EM14: =VLOOKUP(EM$1,報表6_其他!$K$1:$M$278,2,0) -> 274 | EN14: =VLOOKUP(EN$1,報表6_其他!$K$1:$M$278,2,0) -> 275 | EO14: =VLOOKUP(EO$1,報表6_其他!$K$1:$M$278,2,0) -> 276 | EP14: =+EF14 -> 267 | EQ14: 268 | ER14: 269 | ES14: 270 | ET14: 271 | EU14: 272 | EV14: 273 | EW14: 274 | EX14: 275 | EY14: 276 | FW14: =VLOOKUP(FW$1,報表1!$I$1:$J$483,2,0) -> 87 | FX14: =VLOOKUP(FW$1,報表1!$I$1:$J$483,2,0) -> 87
A15: =CELL("filename",報表6_其他!A2) -> T:\2. KG review of audited accounts\2017-18 KG Audited Accounts\NON-SCHEME\[2018fdkg-c.xlsm]報表6_其他
A16: =TRIM(RIGHT(A15,LEN(A15)-SEARCH("]",A15,1))) -> 報表6_其他
E17: Column - Stmt 1 | G17: =COLUMN(報表1!$R$21) -> 18 | H17: =COLUMN(報表1!$R$21) -> 18 | I17: =COLUMN(報表1!$R$21) -> 18 | J17: =COLUMN(報表1!$R$21) -> 18 | K17: =COLUMN(報表1!$R$21) -> 18 | L17: =COLUMN(報表1!$R$21) -> 18 | M17: =COLUMN(報表1!$R$21) -> 18 | N17: =COLUMN(報表1!$R$21) -> 18 | O17: =COLUMN(報表1!$R$21) -> 18 | P17: =COLUMN(報表6_其他!$V$99) -> 22 | Q17: =COLUMN(報表5!$Q$9) -> 17 | R17: =COLUMN(報表6_其他!$V$99) -> 22 | S17: =COLUMN(報表6_其他!$V$99) -> 22 | U17: =COLUMN(報表6_其他!$V$99) -> 22 | V17: =COLUMN(報表6_其他!$V$99) -> 22 | Y17: =COLUMN(報表6_其他!$V$99) -> 22 | AB17: =COLUMN(報表6_其他!$V$99) -> 22 | AC17: =COLUMN(報表6_其他!$V$99) -> 22 | AD17: =COLUMN(報表6_其他!$B$244) -> 2 | AE17: =COLUMN(報表6_其他!$B$244) -> 2 | AF17: =COLUMN(報表6_其他!$B$244) -> 2 | AG17: =COLUMN(報表6_其他!$B$244) -> 2 | AH17: =COLUMN(報表6_其他!$B$244) -> 2 | AI17: =COLUMN(報表6_其他!$B$244) -> 2 | AJ17: =COLUMN(報表6_其他!$B$244) -> 2 | AK17: =COLUMN(報表6_其他!$B$244) -> 2 | AL17: =COLUMN(報表6_其他!$B$244) -> 2 | AM17: =COLUMN(報表6_其他!$B$244) -> 2 | AN17: =COLUMN(報表6_其他!$B$244) -> 2 | AO17: =COLUMN(報表6_其他!$B$244) -> 2 | AP17: =COLUMN(報表6_其他!$B$244) -> 2 | AQ17: =COLUMN(報表6_其他!$B$244) -> 2 | AR17: =COLUMN(報表6_其他!$B$244) -> 2 | AS17: =COLUMN(報表6_其他!$V$99) -> 22 | AT17: =COLUMN(報表6_其他!$V$99) -> 22 | AU17: =COLUMN(報表6_其他!$V$99) -> 22 | AV17: =COLUMN(報表6_其他!$V$99) -> 22 | AW17: =COLUMN(報表6_其他!$V$99) -> 22 | AX17: =COLUMN(報表6_其他!$V$99) -> 22 | AY17: =COLUMN(報表6_其他!$V$99) -> 22 | AZ17: =COLUMN(報表6_其他!$V$99) -> 22 | BA17: =COLUMN(報表6_其他!$V$99) -> 22 | BB17: =COLUMN(報表6_其他!$V$99) -> 22 | BC17: =COLUMN(報表6_其他!$V$99) -> 22 | BD17: =COLUMN(報表6_其他!$V$99) -> 22 | BE17: =COLUMN(報表6_其他!$V$99) -> 22 | BF17: =COLUMN(報表6_其他!$V$99) -> 22 | BG17: =COLUMN(報表6_其他!$V$99) -> 22 | BH17: =COLUMN(報表1!$R$21) -> 18 | BI17: =COLUMN(報表1!$R$21) -> 18 | BJ17: =COLUMN(報表1!$R$21) -> 18 | BM17: =COLUMN(報表1!$R$21) -> 18 | BN17: =COLUMN(報表1!$R$21) -> 18 | BO17: =COLUMN(報表1!$R$21) -> 18 | BP17: =COLUMN(報表1!$R$21) -> 18 | BQ17: =COLUMN(報表1!$R$21) -> 18 | BR17: =COLUMN(報表1!$R$21) -> 18 | BS17: =COLUMN(報表1!$R$21) -> 18 | BT17: =COLUMN(報表1!$R$21) -> 18 | BU17: =COLUMN(報表1!$R$21) -> 18 | BV17: =COLUMN(報表1!$R$21) -> 18 | BW17: =COLUMN(報表1!$R$21) -> 18 | BX17: =COLUMN(報表1!$R$21) -> 18 | BY17: =COLUMN(報表1!$R$21) -> 18 | BZ17: =COLUMN(報表1!$R$21) -> 18 | CA17: =COLUMN(報表6_其他!$V$99) -> 22 | CB17: =COLUMN(報表6_其他!$V$99) -> 22 | CC17: =COLUMN(報表6_其他!$V$99) -> 22 | CD17: =COLUMN(報表6_其他!$V$99) -> 22 | CG17: =COLUMN(報表6_其他!$V$99) -> 22 | CH17: =COLUMN(報表6_其他!$V$99) -> 22 | CI17: =COLUMN(報表6_其他!$V$99) -> 22 | CJ17: =COLUMN(報表6_其他!$V$99) -> 22 | CK17: =COLUMN(報表6_其他!$V$99) -> 22 | CL17: =COLUMN(報表6_其他!$V$99) -> 22 | CM17: =COLUMN(報表1!$R$21) -> 18 | CN17: =COLUMN(報表6_其他!$V$99) -> 22 | CO17: =COLUMN(報表6_其他!$V$99) -> 22 | CP17: =COLUMN(報表6_其他!$V$99) -> 22 | CQ17: =COLUMN(報表6_其他!$V$99) -> 22 | CR17: =COLUMN(報表6_其他!$V$99) -> 22 | CS17: =COLUMN(報表6_其他!$V$99) -> 22 | CT17: =COLUMN(報表6_其他!$V$99) -> 22 | CU17: =COLUMN(報表6_其他!$V$99) -> 22 | CV17: =COLUMN(報表6_其他!$V$99) -> 22 | CW17: =COLUMN(報表5!$Q$9) -> 17 | CX17: =COLUMN(報表6_其他!$B$120) -> 2 | CY17: =COLUMN(報表6_其他!$B$120) -> 2 | CZ17: =COLUMN(報表6_其他!$B$120) -> 2 | DA17: =COLUMN(報表6_其他!$B$120) -> 2 | DB17: =COLUMN(報表6_其他!$B$120) -> 2 | DC17: =COLUMN(報表6_其他!$B$120) -> 2 | DD17: =COLUMN(報表6_其他!$B$120) -> 2 | DE17: =COLUMN(報表6_其他!$B$120) -> 2 | DF17: =COLUMN(報表6_其他!$B$120) -> 2 | DG17: =COLUMN(報表6_其他!$B$120) -> 2 | DH17: =COLUMN(報表6_其他!$B$120) -> 2 | DI17: =COLUMN(報表6_其他!$B$120) -> 2 | DJ17: =COLUMN(報表6_其他!$B$120) -> 2 | DK17: =COLUMN(報表6_其他!$B$120) -> 2 | DL17: =COLUMN(報表6_其他!$B$120) -> 2 | DM17: =COLUMN(報表6_其他!$V$99) -> 22 | DN17: =COLUMN(報表6_其他!$V$99) -> 22 | DO17: =COLUMN(報表6_其他!$V$99) -> 22 | DP17: =COLUMN(報表6_其他!$V$99) -> 22 | DQ17: =COLUMN(報表6_其他!$V$99) -> 22 | DR17: =COLUMN(報表6_其他!$V$99) -> 22 | DS17: =COLUMN(報表6_其他!$V$99) -> 22 | DT17: =COLUMN(報表6_其他!$V$99) -> 22 | DU17: =COLUMN(報表6_其他!$V$99) -> 22 | DV17: =COLUMN(報表6_其他!$V$99) -> 22 | DW17: =COLUMN(報表6_其他!$V$99) -> 22 | DX17: =COLUMN(報表6_其他!$V$99) -> 22 | DY17: =COLUMN(報表6_其他!$V$99) -> 22 | DZ17: =COLUMN(報表6_其他!$V$99) -> 22 | EA17: =COLUMN(報表6_其他!$V$99) -> 22 | EB17: =COLUMN(報表1!$R$21) -> 18 | EC17: =COLUMN(報表1!$R$21) -> 18 | EF17: =COLUMN(報表6_其他!$B$267) -> 2 | EG17: =COLUMN(報表6_其他!$B$267) -> 2 | EH17: =COLUMN(報表6_其他!$B$267) -> 2 | EI17: =COLUMN(報表6_其他!$B$267) -> 2 | EJ17: =COLUMN(報表6_其他!$B$267) -> 2 | EK17: =COLUMN(報表6_其他!$B$267) -> 2 | EL17: =COLUMN(報表6_其他!$B$267) -> 2 | EM17: =COLUMN(報表6_其他!$B$267) -> 2 | EN17: =COLUMN(報表6_其他!$B$267) -> 2 | EO17: =COLUMN(報表6_其他!$B$267) -> 2 | EP17: =COLUMN(報表6_其他!$V$99) -> 22 | EQ17: =COLUMN(報表6_其他!$V$99) -> 22 | ER17: =COLUMN(報表6_其他!$V$99) -> 22 | ES17: =COLUMN(報表6_其他!$V$99) -> 22 | ET17: =COLUMN(報表6_其他!$V$99) -> 22 | EU17: =COLUMN(報表6_其他!$V$99) -> 22 | EV17: =COLUMN(報表6_其他!$V$99) -> 22 | EW17: =COLUMN(報表6_其他!$V$99) -> 22 | EX17: =COLUMN(報表6_其他!$V$99) -> 22 | EY17: =COLUMN(報表6_其他!$V$99) -> 22 | FW17: =COLUMN(報表1!$R$21) -> 18 | FX17: =COLUMN(報表1!$A$87) -> 1
E20: Row - Stmt 1A | G20: =VLOOKUP(G$1,報表1A!$I$1:$J$481,2,0) -> 25 | H20: =VLOOKUP(H$1,報表1A!$I$1:$J$481,2,0) -> 26 | I20: =VLOOKUP(I$1,報表1A!$I$1:$J$481,2,0) -> 27 | J20: =VLOOKUP(J$1,報表1A!$I$1:$J$481,2,0) -> 29 | K20: =VLOOKUP(K$1,報表1A!$I$1:$J$481,2,0) -> 31 | L20: =VLOOKUP(L$1,報表1A!$I$1:$J$481,2,0) -> 33 | M20: =VLOOKUP(M$1,報表1A!$I$1:$J$481,2,0) -> 34 | N20: =VLOOKUP(N$1,報表1A!$I$1:$J$481,2,0) -> 35 | O20: =VLOOKUP(O$1,報表1A!$I$1:$J$481,2,0) -> 36 | P20: =VLOOKUP(P$1,報表6_其他!$K$1:$M$278,2,0) -> 241 | Q20: =VLOOKUP(Q$1,報表5!$G$15:$H$41,2,0) -> 16 | R20: =VLOOKUP(R$1,報表6_其他!$K$1:$M$278,2,0) -> 239 | S20: =VLOOKUP(S$1,報表6_其他!$K$1:$M$278,2,0) -> 237 | U20: =VLOOKUP(U$1,報表6_其他!$K$1:$M$278,2,0) -> 236 | V20: =VLOOKUP(V$1,報表6_其他!$K$1:$M$278,2,0) -> 238 | Y20: =VLOOKUP(Y$1,報表6_其他!$K$1:$M$278,2,0) -> 240 | AB20: =VLOOKUP(AB$1,報表6_其他!$K$1:$M$278,2,0) -> 242 | AC20: =VLOOKUP(AC$1,報表6_其他!$K$1:$M$278,2,0) -> 259 | AD20: =+AS20 -> 244 | AE20: =+AT20 -> 245 | AF20: 246 | AG20: 247 | AH20: 248 | AI20: 249 | AJ20: 250 | AK20: 251 | AL20: 252 | AM20: 253 | AN20: =+BC20 -> 254 | AO20: =+BD20 -> 255 | AP20: =+BE20 -> 256 | AQ20: =+BF20 -> 257 | AR20: =+BG20 -> 258 | AS20: =VLOOKUP(AS$1,報表6_其他!$K$1:$M$278,2,0) -> 244 | AT20: =VLOOKUP(AT$1,報表6_其他!$K$1:$M$278,2,0) -> 245 | AU20: =VLOOKUP(AU$1,報表6_其他!$K$1:$M$278,2,0) -> 246 | AV20: =VLOOKUP(AV$1,報表6_其他!$K$1:$M$278,2,0) -> 247 | AW20: =VLOOKUP(AW$1,報表6_其他!$K$1:$M$278,2,0) -> 248 | AX20: =VLOOKUP(AX$1,報表6_其他!$K$1:$M$278,2,0) -> 249 | AY20: =VLOOKUP(AY$1,報表6_其他!$K$1:$M$278,2,0) -> 250 | AZ20: =VLOOKUP(AZ$1,報表6_其他!$K$1:$M$278,2,0) -> 251 | BA20: =VLOOKUP(BA$1,報表6_其他!$K$1:$M$278,2,0) -> 252 | BB20: =VLOOKUP(BB$1,報表6_其他!$K$1:$M$278,2,0) -> 253 | BC20: =VLOOKUP(BC$1,報表6_其他!$K$1:$M$278,2,0) -> 254 | BD20: =VLOOKUP(BD$1,報表6_其他!$K$1:$M$278,2,0) -> 255 | BE20: =VLOOKUP(BE$1,報表6_其他!$K$1:$M$278,2,0) -> 256 | BF20: =VLOOKUP(BF$1,報表6_其他!$K$1:$M$278,2,0) -> 257 | BG20: =VLOOKUP(BG$1,報表6_其他!$K$1:$M$278,2,0) -> 258 | BH20: =VLOOKUP(BH$1,報表1A!$I$1:$J$481,2,0) -> 38 | BI20: =VLOOKUP(BI$1,報表1A!$I$1:$J$481,2,0) -> 41 | BJ20: =VLOOKUP(BJ$1,報表1A!$I$1:$J$481,2,0) -> 42 | BM20: =VLOOKUP(BM$1,報表1A!$I$1:$J$481,2,0) -> 44 | BN20: =VLOOKUP(BN$1,報表1A!$I$1:$J$481,2,0) -> 45 | BO20: =VLOOKUP(BO$1,報表1A!$I$1:$J$481,2,0) -> 47 | BP20: =VLOOKUP(BP$1,報表1A!$I$1:$J$481,2,0) -> 48 | BQ20: =VLOOKUP(BQ$1,報表1A!$I$1:$J$481,2,0) -> 49 | BR20: =VLOOKUP(BR$1,報表1A!$I$1:$J$481,2,0) -> 50 | BS20: =VLOOKUP(BS$1,報表1A!$I$1:$J$481,2,0) -> 51 | BT20: =VLOOKUP(BT$1,報表1A!$I$1:$J$481,2,0) -> 52 | BU20: =VLOOKUP(BU$1,報表1A!$I$1:$J$481,2,0) -> 54 | BV20: =VLOOKUP(BV$1,報表1A!$I$1:$J$481,2,0) -> 55 | BW20: =VLOOKUP(BW$1,報表1A!$I$1:$J$481,2,0) -> 56 | BX20: =VLOOKUP(BX$1,報表1A!$I$1:$J$481,2,0) -> 57 | BY20: =VLOOKUP(BY$1,報表1A!$I$1:$J$481,2,0) -> 59 | BZ20: =VLOOKUP(BZ$1,報表1A!$I$1:$J$481,2,0) -> 61 | CA20: =VLOOKUP(CA$1,報表6_其他!$K$1:$M$278,2,0) -> 100 | CB20: =VLOOKUP(CB$1,報表6_其他!$K$1:$M$278,2,0) -> 101 | CC20: =VLOOKUP(CC$1,報表6_其他!$K$1:$M$278,2,0) -> 102 | CD20: =VLOOKUP(CD$1,報表6_其他!$K$1:$M$278,2,0) -> 103 | CG20: =VLOOKUP(CG$1,報表6_其他!$K$1:$M$278,2,0) -> 104 | CH20: =VLOOKUP(CH$1,報表6_其他!$K$1:$M$278,2,0) -> 105 | CI20: =VLOOKUP(CI$1,報表6_其他!$K$1:$M$278,2,0) -> 106 | CJ20: =VLOOKUP(CJ$1,報表6_其他!$K$1:$M$278,2,0) -> 107 | CK20: =VLOOKUP(CK$1,報表6_其他!$K$1:$M$278,2,0) -> 108 | CL20: =VLOOKUP(CL$1,報表6_其他!$K$1:$M$278,2,0) -> 109 | CM20: =VLOOKUP(CM$1,報表1A!$I$1:$J$481,2,0) -> 63 | CN20: =VLOOKUP(CN$1,報表6_其他!$K$1:$M$278,2,0) -> 110 | CO20: =VLOOKUP(CO$1,報表6_其他!$K$1:$M$278,2,0) -> 111 | CP20: =VLOOKUP(CP$1,報表6_其他!$K$1:$M$278,2,0) -> 112 | CQ20: =VLOOKUP(CQ$1,報表6_其他!$K$1:$M$278,2,0) -> 113 | CR20: =VLOOKUP(CR$1,報表6_其他!$K$1:$M$278,2,0) -> 114 | CS20: =VLOOKUP(CS$1,報表6_其他!$K$1:$M$278,2,0) -> 115 | CT20: =VLOOKUP(CT$1,報表6_其他!$K$1:$M$278,2,0) -> 116 | CU20: =VLOOKUP(CU$1,報表6_其他!$K$1:$M$278,2,0) -> 117 | CV20: =VLOOKUP(CV$1,報表6_其他!$K$1:$M$278,2,0) -> 118 | CW20: =VLOOKUP(CW$1,報表5!$G$15:$H$41,2,0) -> 38 | CX20: =+DM20 -> 120 | CY20: =+DN20 -> 121 | CZ20: 122 | DA20: 123 | DB20: 124 | DC20: 125 | DD20: 126 | DE20: 127 | DF20: 128 | DG20: 129 | DH20: =+DW20 -> 130 | DI20: 131 | DJ20: 132 | DK20: 133 | DL20: 134 | DM20: =VLOOKUP(DM$1,報表6_其他!$K$1:$M$278,2,0) -> 120 | DN20: =VLOOKUP(DN$1,報表6_其他!$K$1:$M$278,2,0) -> 121 | DO20: =VLOOKUP(DO$1,報表6_其他!$K$1:$M$278,2,0) -> 122 | DP20: =VLOOKUP(DP$1,報表6_其他!$K$1:$M$278,2,0) -> 123 | DQ20: =VLOOKUP(DQ$1,報表6_其他!$K$1:$M$278,2,0) -> 124 | DR20: =VLOOKUP(DR$1,報表6_其他!$K$1:$M$278,2,0) -> 125 | DS20: =VLOOKUP(DS$1,報表6_其他!$K$1:$M$278,2,0) -> 126 | DT20: =VLOOKUP(DT$1,報表6_其他!$K$1:$M$278,2,0) -> 127 | DU20: =VLOOKUP(DU$1,報表6_其他!$K$1:$M$278,2,0) -> 128 | DV20: =VLOOKUP(DV$1,報表6_其他!$K$1:$M$278,2,0) -> 129 | DW20: =VLOOKUP(DW$1,報表6_其他!$K$1:$M$278,2,0) -> 130 | DX20: =VLOOKUP(DX$1,報表6_其他!$K$1:$M$278,2,0) -> 131 | DY20: =VLOOKUP(DY$1,報表6_其他!$K$1:$M$278,2,0) -> 132 | DZ20: =VLOOKUP(DZ$1,報表6_其他!$K$1:$M$278,2,0) -> 133 | EA20: =VLOOKUP(EA$1,報表6_其他!$K$1:$M$278,2,0) -> 134 | EB20: =VLOOKUP(EB$1,報表1A!$I$1:$J$481,2,0) -> 65 | EC20: =VLOOKUP(EC$1,報表1A!$I$1:$J$481,2,0) -> 92 | EF20: =VLOOKUP(EF$1,報表6_其他!$K$1:$M$278,2,0) -> 267 | EG20: =VLOOKUP(EG$1,報表6_其他!$K$1:$M$278,2,0) -> 268 | EH20: =VLOOKUP(EH$1,報表6_其他!$K$1:$M$278,2,0) -> 269 | EI20: =VLOOKUP(EI$1,報表6_其他!$K$1:$M$278,2,0) -> 270 | EJ20: =VLOOKUP(EJ$1,報表6_其他!$K$1:$M$278,2,0) -> 271 | EK20: =VLOOKUP(EK$1,報表6_其他!$K$1:$M$278,2,0) -> 272 | EL20: =VLOOKUP(EL$1,報表6_其他!$K$1:$M$278,2,0) -> 273 | EM20: =VLOOKUP(EM$1,報表6_其他!$K$1:$M$278,2,0) -> 274 | EN20: =VLOOKUP(EN$1,報表6_其他!$K$1:$M$278,2,0) -> 275 | EO20: =VLOOKUP(EO$1,報表6_其他!$K$1:$M$278,2,0) -> 276 | EP20: =+EF20 -> 267 | EQ20: 268 | ER20: 269 | ES20: 270 | ET20: 271 | EU20: 272 | EV20: 273 | EW20: 274 | EX20: 275 | EY20: 276 | FW20: =VLOOKUP(FW$1,報表1A!$I$1:$J$481,2,0) -> 96 | FX20: =VLOOKUP(FW$1,報表1A!$I$1:$J$481,2,0) -> 96
G21: =+G20 -> 25 | H21: 26 | I21: 27 | J21: 29 | K21: 31 | L21: =+L20 -> 33 | M21: 34 | N21: 35 | O21: 36 | P21: =+P20 -> 241 | Q21: =+Q20 -> 16 | R21: =+R20 -> 239 | S21: =+S20 -> 237 | U21: =+U20 -> 236 | V21: =+V20 -> 238 | Y21: =+Y20 -> 240 | AB21: =+AB20 -> 242 | AC21: =+AC20 -> 259 | AD21: 244 | AE21: 245 | AF21: 246 | AG21: 247 | AH21: 248 | AI21: 249 | AJ21: 250 | AK21: 251 | AL21: 252 | AM21: 253 | AN21: =+AN20 -> 254 | AO21: =+AO20 -> 255 | AP21: =+AP20 -> 256 | AQ21: =+AQ20 -> 257 | AR21: =+AR20 -> 258 | AS21: 244 | AT21: 245 | AU21: 246 | AV21: 247 | AW21: 248 | AX21: 249 | AY21: 250 | AZ21: 251 | BA21: 252 | BB21: 253 | BC21: =+BC20 -> 254 | BD21: 255 | BE21: 256 | BF21: 257 | BG21: 258 | BH21: 38 | BI21: 41 | BJ21: 42 | BM21: =+BM20 -> 44 | BN21: 45 | BO21: 47 | BP21: 48 | BQ21: 49 | BR21: 50 | BS21: 51 | BT21: 52 | BU21: 54 | BV21: 55 | BW21: 56 | BX21: 57 | BY21: 59 | BZ21: 61 | CA21: =+CA20 -> 100 | CB21: 101 | CC21: 102 | CD21: 103 | CG21: 104 | CH21: 105 | CI21: 106 | CJ21: 107 | CK21: 108 | CL21: 109 | CM21: 63 | CN21: 110 | CO21: 111 | CP21: =+CP20 -> 112 | CQ21: 113 | CR21: 114 | CS21: 115 | CT21: 116 | CU21: 117 | CV21: 118 | CW21: 38 | CX21: =+DM21 -> 120 | CY21: 121 | CZ21: 122 | DA21: 123 | DB21: 124 | DC21: 125 | DD21: 126 | DE21: 127 | DF21: 128 | DG21: 129 | DH21: 130 | DI21: 131 | DJ21: 132 | DK21: 133 | DL21: 134 | DM21: =+DM20 -> 120 | DN21: 121 | DO21: 122 | DP21: 123 | DQ21: 124 | DR21: 125 | DS21: 126 | DT21: 127 | DU21: 128 | DV21: 129 | DW21: =+DW20 -> 130 | DX21: =+DX20 -> 131 | DY21: =+DY20 -> 132 | DZ21: =+DZ20 -> 133 | EA21: =+EA20 -> 134 | EB21: 65 | EC21: 92 | EF21: =+EF20 -> 267 | EG21: 268 | EH21: 269 | EI21: 270 | EJ21: 271 | EK21: =+EK20 -> 272 | EL21: =+EL20 -> 273 | EM21: =+EM20 -> 274 | EN21: =+EN20 -> 275 | EO21: =+EO20 -> 276 | EP21: 267 | EQ21: 268 | ER21: 269 | ES21: 270 | ET21: 271 | EU21: =+EU20 -> 272 | EV21: =+EV20 -> 273 | EW21: =+EW20 -> 274 | EX21: =+EX20 -> 275 | EY21: =+EY20 -> 276 | FW21: =+FW20 -> 96 | FX21: =+FX20 -> 96
E23: Column - Stmt 1A | G23: =COLUMN(報表1A!$V$20) -> 22 | H23: =COLUMN(報表1A!$V$20) -> 22 | I23: =COLUMN(報表1A!$V$20) -> 22 | J23: =COLUMN(報表1A!$V$20) -> 22 | K23: =COLUMN(報表1A!$V$20) -> 22 | L23: =COLUMN(報表1A!$V$20) -> 22 | M23: =COLUMN(報表1A!$V$20) -> 22 | N23: =COLUMN(報表1A!$V$20) -> 22 | O23: =COLUMN(報表1A!$V$20) -> 22 | P23: =COLUMN(報表6_其他!$V$99) -> 22 | Q23: =COLUMN(報表5!$Q$9) -> 17 | R23: =COLUMN(報表6_其他!$V$99) -> 22 | S23: =COLUMN(報表6_其他!$V$99) -> 22 | U23: =COLUMN(報表6_其他!$V$99) -> 22 | V23: =COLUMN(報表6_其他!$V$99) -> 22 | Y23: =COLUMN(報表6_其他!$V$99) -> 22 | AB23: =COLUMN(報表6_其他!$V$99) -> 22 | AC23: =COLUMN(報表6_其他!$V$267) -> 22 | AD23: =COLUMN(報表6_其他!$V$267) -> 22 | AE23: =COLUMN(報表6_其他!$V$267) -> 22 | AF23: =COLUMN(報表6_其他!$V$267) -> 22 | AG23: =COLUMN(報表6_其他!$V$267) -> 22 | AH23: =COLUMN(報表6_其他!$V$267) -> 22 | AI23: =COLUMN(報表6_其他!$V$267) -> 22 | AJ23: =COLUMN(報表6_其他!$V$267) -> 22 | AK23: =COLUMN(報表6_其他!$V$267) -> 22 | AL23: =COLUMN(報表6_其他!$V$267) -> 22 | AM23: =COLUMN(報表6_其他!$V$267) -> 22 | AN23: =COLUMN(報表6_其他!$V$267) -> 22 | AO23: =COLUMN(報表6_其他!$V$267) -> 22 | AP23: =COLUMN(報表6_其他!$V$267) -> 22 | AQ23: =COLUMN(報表6_其他!$V$267) -> 22 | AR23: =COLUMN(報表6_其他!$V$267) -> 22 | AS23: =COLUMN(報表6_其他!$V$99) -> 22 | AT23: =COLUMN(報表6_其他!$V$99) -> 22 | AU23: =COLUMN(報表6_其他!$V$99) -> 22 | AV23: =COLUMN(報表6_其他!$V$99) -> 22 | AW23: =COLUMN(報表6_其他!$V$99) -> 22 | AX23: =COLUMN(報表6_其他!$V$99) -> 22 | AY23: =COLUMN(報表6_其他!$V$99) -> 22 | AZ23: =COLUMN(報表6_其他!$V$99) -> 22 | BA23: =COLUMN(報表6_其他!$V$99) -> 22 | BB23: =COLUMN(報表6_其他!$V$99) -> 22 | BC23: =COLUMN(報表6_其他!$V$99) -> 22 | BD23: =COLUMN(報表6_其他!$V$99) -> 22 | BE23: =COLUMN(報表6_其他!$V$99) -> 22 | BF23: =COLUMN(報表6_其他!$V$99) -> 22 | BG23: =COLUMN(報表6_其他!$V$99) -> 22 | BH23: =COLUMN(報表1A!$V$20) -> 22 | BI23: =COLUMN(報表1A!$V$20) -> 22 | BJ23: =COLUMN(報表1A!$V$20) -> 22 | BM23: =COLUMN(報表1A!$V$20) -> 22 | BN23: =COLUMN(報表1A!$V$20) -> 22 | BO23: =COLUMN(報表1A!$V$20) -> 22 | BP23: =COLUMN(報表1A!$V$20) -> 22 | BQ23: =COLUMN(報表1A!$V$20) -> 22 | BR23: =COLUMN(報表1A!$V$20) -> 22 | BS23: =COLUMN(報表1A!$V$20) -> 22 | BT23: =COLUMN(報表1A!$V$20) -> 22 | BU23: =COLUMN(報表1A!$V$20) -> 22 | BV23: =COLUMN(報表1A!$V$20) -> 22 | BW23: =COLUMN(報表1A!$V$20) -> 22 | BX23: =COLUMN(報表1A!$V$20) -> 22 | BY23: =COLUMN(報表1A!$V$20) -> 22 | BZ23: =COLUMN(報表1A!$V$20) -> 22 | CA23: =COLUMN(報表6_其他!$V$99) -> 22 | CB23: =COLUMN(報表6_其他!$V$99) -> 22 | CC23: =COLUMN(報表6_其他!$V$99) -> 22 | CD23: =COLUMN(報表6_其他!$V$99) -> 22 | CG23: =COLUMN(報表6_其他!$V$99) -> 22 | CH23: =COLUMN(報表6_其他!$V$99) -> 22 | CI23: =COLUMN(報表6_其他!$V$99) -> 22 | CJ23: =COLUMN(報表6_其他!$V$99) -> 22 | CK23: =COLUMN(報表6_其他!$V$99) -> 22 | CL23: =COLUMN(報表6_其他!$V$99) -> 22 | CM23: =COLUMN(報表1A!$V$20) -> 22 | CN23: =COLUMN(報表6_其他!$V$99) -> 22 | CO23: =COLUMN(報表6_其他!$V$99) -> 22 | CP23: =COLUMN(報表6_其他!$V$99) -> 22 | CQ23: =COLUMN(報表6_其他!$V$99) -> 22 | CR23: =COLUMN(報表6_其他!$V$99) -> 22 | CS23: =COLUMN(報表6_其他!$V$99) -> 22 | CT23: =COLUMN(報表6_其他!$V$99) -> 22 | CU23: =COLUMN(報表6_其他!$V$99) -> 22 | CV23: =COLUMN(報表6_其他!$V$99) -> 22 | CW23: =COLUMN(報表5!$Q$9) -> 17 | CX23: =COLUMN(報表6_其他!$V$267) -> 22 | CY23: =COLUMN(報表6_其他!$V$267) -> 22 | CZ23: =COLUMN(報表6_其他!$V$267) -> 22 | DA23: =COLUMN(報表6_其他!$V$267) -> 22 | DB23: =COLUMN(報表6_其他!$V$267) -> 22 | DC23: =COLUMN(報表6_其他!$V$267) -> 22 | DD23: =COLUMN(報表6_其他!$V$267) -> 22 | DE23: =COLUMN(報表6_其他!$V$267) -> 22 | DF23: =COLUMN(報表6_其他!$V$267) -> 22 | DG23: =COLUMN(報表6_其他!$V$267) -> 22 | DH23: =COLUMN(報表6_其他!$V$267) -> 22 | DI23: =COLUMN(報表6_其他!$V$267) -> 22 | DJ23: =COLUMN(報表6_其他!$V$267) -> 22 | DK23: =COLUMN(報表6_其他!$V$267) -> 22 | DL23: =COLUMN(報表6_其他!$V$267) -> 22 | DM23: =COLUMN(報表6_其他!$V$99) -> 22 | DN23: =COLUMN(報表6_其他!$V$99) -> 22 | DO23: =COLUMN(報表6_其他!$V$99) -> 22 | DP23: =COLUMN(報表6_其他!$V$99) -> 22 | DQ23: =COLUMN(報表6_其他!$V$99) -> 22 | DR23: =COLUMN(報表6_其他!$V$99) -> 22 | DS23: =COLUMN(報表6_其他!$V$99) -> 22 | DT23: =COLUMN(報表6_其他!$V$99) -> 22 | DU23: =COLUMN(報表6_其他!$V$99) -> 22 | DV23: =COLUMN(報表6_其他!$V$99) -> 22 | DW23: =COLUMN(報表6_其他!$V$99) -> 22 | DX23: =COLUMN(報表6_其他!$V$99) -> 22 | DY23: =COLUMN(報表6_其他!$V$99) -> 22 | DZ23: =COLUMN(報表6_其他!$V$99) -> 22 | EA23: =COLUMN(報表6_其他!$V$99) -> 22 | EB23: =COLUMN(報表1A!$V$20) -> 22 | EC23: =COLUMN(報表1A!$V$20) -> 22 | EF23: =COLUMN(報表6_其他!$V$267) -> 22 | EG23: =COLUMN(報表6_其他!$V$267) -> 22 | EH23: =COLUMN(報表6_其他!$V$267) -> 22 | EI23: =COLUMN(報表6_其他!$V$267) -> 22 | EJ23: =COLUMN(報表6_其他!$V$267) -> 22 | EK23: =COLUMN(報表6_其他!$V$267) -> 22 | EL23: =COLUMN(報表6_其他!$V$267) -> 22 | EM23: =COLUMN(報表6_其他!$V$267) -> 22 | EN23: =COLUMN(報表6_其他!$V$267) -> 22 | EO23: =COLUMN(報表6_其他!$V$267) -> 22 | EP23: =COLUMN(報表6_其他!$V$99) -> 22 | EQ23: =COLUMN(報表6_其他!$V$99) -> 22 | ER23: =COLUMN(報表6_其他!$V$99) -> 22 | ES23: =COLUMN(報表6_其他!$V$99) -> 22 | ET23: =COLUMN(報表6_其他!$V$99) -> 22 | EU23: =COLUMN(報表6_其他!$V$99) -> 22 | EV23: =COLUMN(報表6_其他!$V$99) -> 22 | EW23: =COLUMN(報表6_其他!$V$99) -> 22 | EX23: =COLUMN(報表6_其他!$V$99) -> 22 | EY23: =COLUMN(報表6_其他!$V$99) -> 22 | FW23: =COLUMN(報表1A!$V$20) -> 22 | FX23: =COLUMN(報表1A!$A$96) -> 1
G24: =COLUMN(報表1A!$AE$20) -> 31 | H24: =COLUMN(報表1A!$AE$20) -> 31 | I24: =COLUMN(報表1A!$AE$20) -> 31 | J24: =COLUMN(報表1A!$AE$20) -> 31 | K24: =COLUMN(報表1A!$AE$20) -> 31 | L24: =COLUMN(報表1A!$AE$20) -> 31 | M24: =COLUMN(報表1A!$AE$20) -> 31 | N24: =COLUMN(報表1A!$AE$20) -> 31 | O24: =COLUMN(報表1A!$AE$20) -> 31 | P24: =COLUMN(報表6_其他!$AE$99) -> 31 | R24: =COLUMN(報表6_其他!$AE$99) -> 31 | S24: =COLUMN(報表6_其他!$AE$99) -> 31 | U24: =COLUMN(報表6_其他!$AE$99) -> 31 | V24: =COLUMN(報表6_其他!$AE$99) -> 31 | Y24: =COLUMN(報表6_其他!$AE$99) -> 31 | AB24: =COLUMN(報表6_其他!$AE$99) -> 31 | AC24: =COLUMN(報表6_其他!$AE$267) -> 31 | AD24: =COLUMN(報表6_其他!$AE$267) -> 31 | AE24: =COLUMN(報表6_其他!$AE$267) -> 31 | AF24: =COLUMN(報表6_其他!$AE$267) -> 31 | AG24: =COLUMN(報表6_其他!$AE$267) -> 31 | AH24: =COLUMN(報表6_其他!$AE$267) -> 31 | AI24: =COLUMN(報表6_其他!$AE$267) -> 31 | AJ24: =COLUMN(報表6_其他!$AE$267) -> 31 | AK24: =COLUMN(報表6_其他!$AE$267) -> 31 | AL24: =COLUMN(報表6_其他!$AE$267) -> 31 | AM24: =COLUMN(報表6_其他!$AE$267) -> 31 | AN24: =COLUMN(報表6_其他!$AE$267) -> 31 | AO24: =COLUMN(報表6_其他!$AE$267) -> 31 | AP24: =COLUMN(報表6_其他!$AE$267) -> 31 | AQ24: =COLUMN(報表6_其他!$AE$267) -> 31 | AR24: =COLUMN(報表6_其他!$AE$267) -> 31 | AS24: =COLUMN(報表6_其他!$AE$99) -> 31 | AT24: =COLUMN(報表6_其他!$AE$99) -> 31 | AU24: =COLUMN(報表6_其他!$AE$99) -> 31 | AV24: =COLUMN(報表6_其他!$AE$99) -> 31 | AW24: =COLUMN(報表6_其他!$AE$99) -> 31 | AX24: =COLUMN(報表6_其他!$AE$99) -> 31 | AY24: =COLUMN(報表6_其他!$AE$99) -> 31 | AZ24: =COLUMN(報表6_其他!$AE$99) -> 31 | BA24: =COLUMN(報表6_其他!$AE$99) -> 31 | BB24: =COLUMN(報表6_其他!$AE$99) -> 31 | BC24: =COLUMN(報表6_其他!$AE$99) -> 31 | BD24: =COLUMN(報表6_其他!$AE$99) -> 31 | BE24: =COLUMN(報表6_其他!$AE$99) -> 31 | BF24: =COLUMN(報表6_其他!$AE$99) -> 31 | BG24: =COLUMN(報表6_其他!$AE$99) -> 31 | BH24: =COLUMN(報表1A!$AE$20) -> 31 | BI24: =COLUMN(報表1A!$AE$20) -> 31 | BJ24: =COLUMN(報表1A!$AE$20) -> 31 | BM24: =COLUMN(報表1A!$AE$20) -> 31 | BN24: =COLUMN(報表1A!$AE$20) -> 31 | BO24: =COLUMN(報表1A!$AE$20) -> 31 | BP24: =COLUMN(報表1A!$AE$20) -> 31 | BQ24: =COLUMN(報表1A!$AE$20) -> 31 | BR24: =COLUMN(報表1A!$AE$20) -> 31 | BS24: =COLUMN(報表1A!$AE$20) -> 31 | BT24: =COLUMN(報表1A!$AE$20) -> 31 | BU24: =COLUMN(報表1A!$AE$20) -> 31 | BV24: =COLUMN(報表1A!$AE$20) -> 31 | BW24: =COLUMN(報表1A!$AE$20) -> 31 | BX24: =COLUMN(報表1A!$AE$20) -> 31 | BY24: =COLUMN(報表1A!$AE$20) -> 31 | BZ24: =COLUMN(報表1A!$AE$20) -> 31 | CA24: =COLUMN(報表6_其他!$AE$99) -> 31 | CB24: =COLUMN(報表6_其他!$AE$99) -> 31 | CC24: =COLUMN(報表6_其他!$AE$99) -> 31 | CD24: =COLUMN(報表6_其他!$AE$99) -> 31 | CG24: =COLUMN(報表6_其他!$AE$99) -> 31 | CH24: =COLUMN(報表6_其他!$AE$99) -> 31 | CI24: =COLUMN(報表6_其他!$AE$99) -> 31 | CJ24: =COLUMN(報表6_其他!$AE$99) -> 31 | CK24: =COLUMN(報表6_其他!$AE$99) -> 31 | CL24: =COLUMN(報表6_其他!$AE$99) -> 31 | CM24: =COLUMN(報表1A!$AE$20) -> 31 | CN24: =COLUMN(報表6_其他!$AE$99) -> 31 | CO24: =COLUMN(報表6_其他!$AE$99) -> 31 | CP24: =COLUMN(報表6_其他!$AE$99) -> 31 | CQ24: =COLUMN(報表6_其他!$AE$99) -> 31 | CR24: =COLUMN(報表6_其他!$AE$99) -> 31 | CS24: =COLUMN(報表6_其他!$AE$99) -> 31 | CT24: =COLUMN(報表6_其他!$AE$99) -> 31 | CU24: =COLUMN(報表6_其他!$AE$99) -> 31 | CV24: =COLUMN(報表6_其他!$AE$99) -> 31 | CX24: =COLUMN(報表6_其他!$AE$267) -> 31 | CY24: =COLUMN(報表6_其他!$AE$267) -> 31 | CZ24: =COLUMN(報表6_其他!$AE$267) -> 31 | DA24: =COLUMN(報表6_其他!$AE$267) -> 31 | DB24: =COLUMN(報表6_其他!$AE$267) -> 31 | DC24: =COLUMN(報表6_其他!$AE$267) -> 31 | DD24: =COLUMN(報表6_其他!$AE$267) -> 31 | DE24: =COLUMN(報表6_其他!$AE$267) -> 31 | DF24: =COLUMN(報表6_其他!$AE$267) -> 31 | DG24: =COLUMN(報表6_其他!$AE$267) -> 31 | DH24: =COLUMN(報表6_其他!$AE$267) -> 31 | DI24: =COLUMN(報表6_其他!$AE$267) -> 31 | DJ24: =COLUMN(報表6_其他!$AE$267) -> 31 | DK24: =COLUMN(報表6_其他!$AE$267) -> 31 | DL24: =COLUMN(報表6_其他!$AE$267) -> 31 | DM24: =COLUMN(報表6_其他!$AE$99) -> 31 | DN24: =COLUMN(報表6_其他!$AE$99) -> 31 | DO24: =COLUMN(報表6_其他!$AE$99) -> 31 | DP24: =COLUMN(報表6_其他!$AE$99) -> 31 | DQ24: =COLUMN(報表6_其他!$AE$99) -> 31 | DR24: =COLUMN(報表6_其他!$AE$99) -> 31 | DS24: =COLUMN(報表6_其他!$AE$99) -> 31 | DT24: =COLUMN(報表6_其他!$AE$99) -> 31 | DU24: =COLUMN(報表6_其他!$AE$99) -> 31 | DV24: =COLUMN(報表6_其他!$AE$99) -> 31 | DW24: =COLUMN(報表6_其他!$AE$99) -> 31 | DX24: =COLUMN(報表6_其他!$AE$99) -> 31 | DY24: =COLUMN(報表6_其他!$AE$99) -> 31 | DZ24: =COLUMN(報表6_其他!$AE$99) -> 31 | EA24: =COLUMN(報表6_其他!$AE$99) -> 31 | EB24: =COLUMN(報表1A!$AE$20) -> 31 | EC24: =COLUMN(報表1A!$AE$20) -> 31 | EF24: =COLUMN(報表6_其他!$AE$267) -> 31 | EG24: =COLUMN(報表6_其他!$AE$267) -> 31 | EH24: =COLUMN(報表6_其他!$AE$267) -> 31 | EI24: =COLUMN(報表6_其他!$AE$267) -> 31 | EJ24: =COLUMN(報表6_其他!$AE$267) -> 31 | EK24: =COLUMN(報表6_其他!$AE$267) -> 31 | EL24: =COLUMN(報表6_其他!$AE$267) -> 31 | EM24: =COLUMN(報表6_其他!$AE$267) -> 31 | EN24: =COLUMN(報表6_其他!$AE$267) -> 31 | EO24: =COLUMN(報表6_其他!$AE$267) -> 31 | EP24: =COLUMN(報表6_其他!$AE$99) -> 31 | EQ24: =COLUMN(報表6_其他!$AE$99) -> 31 | ER24: =COLUMN(報表6_其他!$AE$99) -> 31 | ES24: =COLUMN(報表6_其他!$AE$99) -> 31 | ET24: =COLUMN(報表6_其他!$AE$99) -> 31 | EU24: =COLUMN(報表6_其他!$AE$99) -> 31 | EV24: =COLUMN(報表6_其他!$AE$99) -> 31 | EW24: =COLUMN(報表6_其他!$AE$99) -> 31 | EX24: =COLUMN(報表6_其他!$AE$99) -> 31 | EY24: =COLUMN(報表6_其他!$AE$99) -> 31 | FW24: =COLUMN(報表1A!$AE$20) -> 31 | FX24: =COLUMN(報表1A!$A$96) -> 1

Sheet AuditedAc1 (hidden)
A1: Year | B1: RegNo | C1: BranchId | D1: TeachingType | E1: Stream | F1: Type | G1: FeeIncomeParent | H1: FeeIncomePEVS | I1: FeeIncomeKCFRS | J1: FeeRemssion | K1: KCSS | L1: SME | M1: GovRentReimbur | N1: RatesReimbur | O1: RentReimbur | P1: BankInterestIncome | Q1: DonationsReceived | R1: CourseFeeRefundToTeachers | S1: AppFeeRegFee | T1: AirConditioning | U1: MealCharges | V1: SubsidiesFromSchSponsorBody | W1: SchItmSchBus | X1: ActivitiesIncome | Y1: DesignatedGrants | Z1: InsufficientInformationItems | AA1: SundryIncomeNotFromParent | AB1: InsuranceCompensation | AC1: OthersNoBreakdown | AD1: OtherIncomeName1 | AE1: OtherIncomeName2 | AF1: OtherIncomeName3 | AG1: OtherIncomeName4 | AH1: OtherIncomeName5 | AI1: OtherIncomeName6 | AJ1: OtherIncomeName7 | AK1: OtherIncomeName8 | AL1: OtherIncomeName9 | AM1: OtherIncomeName10 | AN1: OtherIncomeName11 | AO1: OtherIncomeName12 | AP1: OtherIncomeName13 | AQ1: OtherIncomeName14 | AR1: OtherIncomeName15 | AS1: OtherIncomeAmount1 | AT1: OtherIncomeAmount2 | AU1: OtherIncomeAmount3 | AV1: OtherIncomeAmount4 | AW1: OtherIncomeAmount5 | AX1: OtherIncomeAmount6 | AY1: OtherIncomeAmount7 | AZ1: OtherIncomeAmount8 | BA1: OtherIncomeAmount9 | BB1: OtherIncomeAmount10 | BC1: OtherIncomeAmount11 | BD1: OtherIncomeAmount12 | BE1: OtherIncomeAmount13 | BF1: OtherIncomeAmount14 | BG1: OtherIncomeAmount15 | BH1: TotalIncome | BI1: Salary_T | BJ1: Salary_NT | BK1: Allowance_T | BL1: Allowance_NT | BM1: PFund_T | BN1: PFund_NT | BO1: LongServicePay_T | BP1: LongServicePay_NT | BQ1: SupervisorPay | BR1: GovRent | BS1: Rates | BT1: Rental | BU1: DeprecPremises | BV1: DeprecFurniture | BW1: DeprecComputer | BX1: DeprecOthers | BY1: MajorRepairs | BZ1: MinorRepairs | CA1: ExpMealPreparation | CB1: FEAndTeachingAids | CC1: Water | CD1: Electricity | CE1: BadDebt | CF1: LossOnDisposal | CG1: Telephone | CH1: Cleaning | CI1: Printing | CJ1: TeachingConsumables | CK1: Insurance | CL1: FirstAidAndFireSafety | CM1: AuditFee | CN1: Travelling | CO1: RegularLearning | CP1: Postage | CQ1: Publications | CR1: StudentHandbooks | CS1: Advertisement | CT1: BankInterest | CU1: BankCharges | CV1: Newspapers | CW1: ExpChargedToDonationIncome | CX1: OtherExpenditureName1 | CY1: OtherExpenditureName2 | CZ1: OtherExpenditureName3 | DA1: OtherExpenditureName4 | DB1: OtherExpenditureName5 | DC1: OtherExpenditureName6 | DD1: OtherExpenditureName7 | DE1: OtherExpenditureName8 | DF1: OtherExpenditureName9 | DG1: OtherExpenditureName10 | DH1: OtherExpenditureName11 | DI1: OtherExpenditureName12 | DJ1: OtherExpenditureName13 | DK1: OtherExpenditureName14 | DL1: OtherExpenditureName15 | DM1: OtherExpenditureAmount1 | DN1: OtherExpenditureAmount2 | DO1: OtherExpenditureAmount3 | DP1: OtherExpenditureAmount4 | DQ1: OtherExpenditureAmount5 | DR1: OtherExpenditureAmount6 | DS1: OtherExpenditureAmount7 | DT1: OtherExpenditureAmount8 | DU1: OtherExpenditureAmount9 | DV1: OtherExpenditureAmount10 | DW1: OtherExpenditureAmount11 | DX1: OtherExpenditureAmount12 | DY1: OtherExpenditureAmount13 | DZ1: OtherExpenditureAmount14 | EA1: OtherExpenditureAmount15 | EB1: TotalExpense | EC1: SurplusDefTA | ED1: SurplusDefSWD | EE1: SurplusDefBFAdj | EF1: TransferToReserveName1 | EG1: TransferToReserveName2 | EH1: TransferToReserveName3 | EI1: TransferToReserveName4 | EJ1: TransferToReserveName5 | EK1: TransferToReserveName6 | EL1: TransferToReserveName7 | EM1: TransferToReserveName8 | EN1: TransferToReserveName9 | EO1: TransferToReserveName10 | EP1: TransferToReserveAmount1 | EQ1: TransferToReserveAmount2 | ER1: TransferToReserveAmount3 | ES1: TransferToReserveAmount4 | ET1: TransferToReserveAmount5 | EU1: TransferToReserveAmount6 | EV1: TransferToReserveAmount7 | EW1: TransferToReserveAmount8 | EX1: TransferToReserveAmount9 | EY1: TransferToReserveAmount10 | EZ1: TransferToReserveSSBName1 | FA1: TransferToReserveSSBName2 | FB1: TransferToReserveSSBName3 | FC1: TransferToReserveSSBAmount1 | FD1: TransferToReserveSSBAmount2 | FE1: TransferToReserveSSBAmount3 | FF1: DonationToSponsor | FG1: DonationToOthers | FH1: Entertainment | FI1: Messing | FJ1: ManageFeetoSSB | FK1: OthersSpecialExpName1 | FL1: OthersSpecialExp1 | FM1: OthersSpecialExpName2 | FN1: OthersSpecialExp2 | FO1: OthersSpecialExpName3 | FP1: OthersSpecialExp3 | FQ1: OthersSpecialExpName4 | FR1: OthersSpecialExp4 | FS1: CumulativeSurplusDefTABFAdj | FT1: Remarks | FU1: IsUsed | FV1: IsFullAmountMR | FW1: =Interim!FW1 -> PriorYearAdj | FX1: =Interim!FX1 -> PriorYearAdjDesc
A2: =Interim!A2 ->  | B2: =Interim!B2 ->  | C2: =Interim!C2 -> A | D2: =Interim!D2 -> A | E2: =Interim!E2 -> L | F2: =Interim!F2 -> A | G2: =Interim!G2 -> 0 | H2: =Interim!H2 -> 0 | I2: =Interim!I2 -> 0 | J2: =Interim!J2 -> 0 | K2: =Interim!K2 -> 0 | L2: =Interim!L2 -> 0 | M2: =Interim!M2 -> 0 | N2: =Interim!N2 -> 0 | O2: =Interim!O2 -> 0 | P2: =Interim!P2 -> 0 | Q2: =Interim!Q2 -> 0 | R2: =Interim!R2 -> 0 | S2: =Interim!S2 -> 0 | T2: =Interim!T2 -> 0 | U2: =Interim!U2 -> 0 | V2: =Interim!V2 -> 0 | W2: =Interim!W2 -> 0 | X2: =Interim!X2 -> 0 | Y2: =Interim!Y2 -> 0 | Z2: =Interim!Z2 -> 0 | AA2: =Interim!AA2 -> 0 | AB2: =Interim!AB2 -> 0 | AC2: =Interim!AC2 -> 0 | AD2: =Interim!AD2 ->  | AE2: =Interim!AE2 ->  | AF2: =Interim!AF2 ->  | AG2: =Interim!AG2 ->  | AH2: =Interim!AH2 ->  | AI2: =Interim!AI2 ->  | AJ2: =Interim!AJ2 ->  | AK2: =Interim!AK2 ->  | AL2: =Interim!AL2 ->  | AM2: =Interim!AM2 ->  | AN2: =Interim!AN2 ->  | AO2: =Interim!AO2 ->  | AP2: =Interim!AP2 ->  | AQ2: =Interim!AQ2 ->  | AR2: =Interim!AR2 ->  | AS2: =Interim!AS2 -> 0 | AT2: =Interim!AT2 -> 0 | AU2: =Interim!AU2 -> 0 | AV2: =Interim!AV2 -> 0 | AW2: =Interim!AW2 -> 0 | AX2: =Interim!AX2 -> 0 | AY2: =Interim!AY2 -> 0 | AZ2: =Interim!AZ2 -> 0 | BA2: =Interim!BA2 -> 0 | BB2: =Interim!BB2 -> 0 | BC2: =Interim!BC2 -> 0 | BD2: =Interim!BD2 -> 0 | BE2: =Interim!BE2 -> 0 | BF2: =Interim!BF2 -> 0 | BG2: =Interim!BG2 -> 0 | BH2: =Interim!BH2 -> 0 | BI2: =Interim!BI2 -> 0 | BJ2: =Interim!BJ2 -> 0 | BK2: =Interim!BK2 -> 0 | BL2: =Interim!BL2 -> 0 | BM2: =Interim!BM2 -> 0 | BN2: =Interim!BN2 -> 0 | BO2: =Interim!BO2 -> 0 | BP2: =Interim!BP2 -> 0 | BQ2: =Interim!BQ2 -> 0 | BR2: =Interim!BR2 -> 0 | BS2: =Interim!BS2 -> 0 | BT2: =Interim!BT2 -> 0 | BU2: =Interim!BU2 -> 0 | BV2: =Interim!BV2 -> 0 | BW2: =Interim!BW2 -> 0 | BX2: =Interim!BX2 -> 0 | BY2: =Interim!BY2 -> 0 | BZ2: =Interim!BZ2 -> 0 | CA2: =Interim!CA2 -> 0 | CB2: =Interim!CB2 -> 0 | CC2: =Interim!CC2 -> 0 | CD2: =Interim!CD2 -> 0 | CE2: =Interim!CE2 -> 0 | CF2: =Interim!CF2 -> 0 | CG2: =Interim!CG2 -> 0 | CH2: =Interim!CH2 -> 0 | CI2: =Interim!CI2 -> 0 | CJ2: =Interim!CJ2 -> 0 | CK2: =Interim!CK2 -> 0 | CL2: =Interim!CL2 -> 0 | CM2: =Interim!CM2 -> 0 | CN2: =Interim!CN2 -> 0 | CO2: =Interim!CO2 -> 0 | CP2: =Interim!CP2 -> 0 | CQ2: =Interim!CQ2 -> 0 | CR2: =Interim!CR2 -> 0 | CS2: =Interim!CS2 -> 0 | CT2: =Interim!CT2 -> 0 | CU2: =Interim!CU2 -> 0 | CV2: =Interim!CV2 -> 0 | CW2: =Interim!CW2 -> 0 | CX2: =Interim!CX2 ->  | CY2: =Interim!CY2 ->  | CZ2: =Interim!CZ2 ->  | DA2: =Interim!DA2 ->  | DB2: =Interim!DB2 ->  | DC2: =Interim!DC2 ->  | DD2: =Interim!DD2 ->  | DE2: =Interim!DE2 ->  | DF2: =Interim!DF2 ->  | DG2: =Interim!DG2 ->  | DH2: =Interim!DH2 ->  | DI2: =Interim!DI2 ->  | DJ2: =Interim!DJ2 ->  | DK2: =Interim!DK2 ->  | DL2: =Interim!DL2 ->  | DM2: =Interim!DM2 -> 0 | DN2: =Interim!DN2 -> 0 | DO2: =Interim!DO2 -> 0 | DP2: =Interim!DP2 -> 0 | DQ2: =Interim!DQ2 -> 0 | DR2: =Interim!DR2 -> 0 | DS2: =Interim!DS2 -> 0 | DT2: =Interim!DT2 -> 0 | DU2: =Interim!DU2 -> 0 | DV2: =Interim!DV2 -> 0 | DW2: =Interim!DW2 -> 0 | DX2: =Interim!DX2 -> 0 | DY2: =Interim!DY2 -> 0 | DZ2: =Interim!DZ2 -> 0 | EA2: =Interim!EA2 -> 0 | EB2: =Interim!EB2 -> 0 | EC2: =Interim!EC2 -> 0 | ED2: =Interim!ED2 -> 0 | EE2: =Interim!EE2 -> 0 | EF2: =Interim!EF2 ->  | EG2: =Interim!EG2 ->  | EH2: =Interim!EH2 ->  | EI2: =Interim!EI2 ->  | EJ2: =Interim!EJ2 ->  | EK2: =Interim!EK2 ->  | EL2: =Interim!EL2 ->  | EM2: =Interim!EM2 ->  | EN2: =Interim!EN2 ->  | EO2: =Interim!EO2 ->  | EP2: =Interim!EP2 -> 0 | EQ2: =Interim!EQ2 -> 0 | ER2: =Interim!ER2 -> 0 | ES2: =Interim!ES2 -> 0 | ET2: =Interim!ET2 -> 0 | EU2: =Interim!EU2 -> 0 | EV2: =Interim!EV2 -> 0 | EW2: =Interim!EW2 -> 0 | EX2: =Interim!EX2 -> 0 | EY2: =Interim!EY2 -> 0 | EZ2: =IF(Interim!EZ2="","",+Interim!EZ2) ->  | FA2: =IF(Interim!FA2="","",+Interim!FA2) ->  | FB2: =IF(Interim!FB2="","",+Interim!FB2) ->  | FC2: =Interim!FC2 -> 0 | FD2: =Interim!FD2 -> 0 | FE2: =Interim!FE2 -> 0 | FF2: =Interim!FF2 -> 0 | FG2: =Interim!FG2 -> 0 | FH2: =Interim!FH2 -> 0 | FI2: =Interim!FI2 -> 0 | FJ2: =Interim!FJ2 -> 0 | FK2: =IF(Interim!FK2="","",+Interim!FK2) ->  | FL2: =Interim!FL2 -> 0 | FM2: =IF(Interim!FM2="","",+Interim!FM2) ->  | FN2: =Interim!FN2 -> 0 | FO2: =IF(Interim!FO2="","",+Interim!FO2) ->  | FP2: =Interim!FP2 -> 0 | FQ2: =IF(Interim!FQ2="","",+Interim!FQ2) ->  | FR2: =Interim!FR2 -> 0 | FS2: =Interim!FS2 -> 0 | FT2: =IF(Interim!FT2="","",+Interim!FT2) ->  | FU2: =IF(Interim!FU2="","",+Interim!FU2) ->  | FV2: =IF(Interim!FV2="","",+Interim!FV2) -> 1 | FW2: =Interim!FW2 -> 0 | FX2: =Interim!FX2 -> 往年度調整 (請說明性質)
A3: =Interim!A3 ->  | B3: =Interim!B3 ->  | C3: =Interim!C3 -> A | D3: =Interim!D3 -> A | E3: =Interim!E3 -> N | F3: =Interim!F3 -> A | G3: =Interim!G3 ->  | H3: =Interim!H3 ->  | I3: =Interim!I3 ->  | J3: =Interim!J3 ->  | K3: =Interim!K3 ->  | L3: =Interim!L3 ->  | M3: =Interim!M3 ->  | N3: =Interim!N3 ->  | O3: =Interim!O3 ->  | P3: =Interim!P3 ->  | Q3: =Interim!Q3 -> 0 | R3: =Interim!R3 ->  | S3: =Interim!S3 ->  | T3: =Interim!T3 -> 0 | U3: =Interim!U3 ->  | V3: =Interim!V3 ->  | W3: =Interim!W3 -> 0 | X3: =Interim!X3 -> 0 | Y3: =Interim!Y3 ->  | Z3: =Interim!Z3 -> 0 | AA3: =Interim!AA3 -> 0 | AB3: =Interim!AB3 ->  | AC3: =Interim!AC3 -> 0 | AD3: =Interim!AD3 ->  | AE3: =Interim!AE3 ->  | AF3: =Interim!AF3 ->  | AG3: =Interim!AG3 ->  | AH3: =Interim!AH3 ->  | AI3: =Interim!AI3 ->  | AJ3: =Interim!AJ3 ->  | AK3: =Interim!AK3 ->  | AL3: =Interim!AL3 ->  | AM3: =Interim!AM3 ->  | AN3: =Interim!AN3 ->  | AO3: =Interim!AO3 ->  | AP3: =Interim!AP3 ->  | AQ3: =Interim!AQ3 ->  | AR3: =Interim!AR3 ->  | AS3: =Interim!AS3 ->  | AT3: =Interim!AT3 ->  | AU3: =Interim!AU3 ->  | AV3: =Interim!AV3 ->  | AW3: =Interim!AW3 ->  | AX3: =Interim!AX3 ->  | AY3: =Interim!AY3 ->  | AZ3: =Interim!AZ3 ->  | BA3: =Interim!BA3 ->  | BB3: =Interim!BB3 ->  | BC3: =Interim!BC3 ->  | BD3: =Interim!BD3 ->  | BE3: =Interim!BE3 ->  | BF3: =Interim!BF3 ->  | BG3: =Interim!BG3 ->  | BH3: =Interim!BH3 ->  | BI3: =Interim!BI3 ->  | BJ3: =Interim!BJ3 ->  | BK3: =Interim!BK3 -> 0 | BL3: =Interim!BL3 -> 0 | BM3: =Interim!BM3 ->  | BN3: =Interim!BN3 ->  | BO3: =Interim!BO3 ->  | BP3: =Interim!BP3 ->  | BQ3: =Interim!BQ3 ->  | BR3: =Interim!BR3 ->  | BS3: =Interim!BS3 ->  | BT3: =Interim!BT3 ->  | BU3: =Interim!BU3 ->  | BV3: =Interim!BV3 ->  | BW3: =Interim!BW3 ->  | BX3: =Interim!BX3 ->  | BY3: =Interim!BY3 ->  | BZ3: =Interim!BZ3 ->  | CA3: =Interim!CA3 ->  | CB3: =Interim!CB3 ->  | CC3: =Interim!CC3 ->  | CD3: =Interim!CD3 ->  | CE3: =Interim!CE3 -> 0 | CF3: =Interim!CF3 -> 0 | CG3: =Interim!CG3 ->  | CH3: =Interim!CH3 ->  | CI3: =Interim!CI3 ->  | CJ3: =Interim!CJ3 ->  | CK3: =Interim!CK3 ->  | CL3: =Interim!CL3 ->  | CM3: =Interim!CM3 ->  | CN3: =Interim!CN3 ->  | CO3: =Interim!CO3 ->  | CP3: =Interim!CP3 ->  | CQ3: =Interim!CQ3 ->  | CR3: =Interim!CR3 ->  | CS3: =Interim!CS3 ->  | CT3: =Interim!CT3 ->  | CU3: =Interim!CU3 ->  | CV3: =Interim!CV3 ->  | CW3: =Interim!CW3 -> 0 | CX3: =Interim!CX3 ->  | CY3: =Interim!CY3 ->  | CZ3: =Interim!CZ3 ->  | DA3: =Interim!DA3 ->  | DB3: =Interim!DB3 ->  | DC3: =Interim!DC3 ->  | DD3: =Interim!DD3 ->  | DE3: =Interim!DE3 ->  | DF3: =Interim!DF3 ->  | DG3: =Interim!DG3 ->  | DH3: =Interim!DH3 ->  | DI3: =Interim!DI3 ->  | DJ3: =Interim!DJ3 ->  | DK3: =Interim!DK3 ->  | DL3: =Interim!DL3 ->  | DM3: =Interim!DM3 ->  | DN3: =Interim!DN3 ->  | DO3: =Interim!DO3 ->  | DP3: =Interim!DP3 ->  | DQ3: =Interim!DQ3 ->  | DR3: =Interim!DR3 ->  | DS3: =Interim!DS3 ->  | DT3: =Interim!DT3 ->  | DU3: =Interim!DU3 ->  | DV3: =Interim!DV3 ->  | DW3: =Interim!DW3 ->  | DX3: =Interim!DX3 ->  | DY3: =Interim!DY3 ->  | DZ3: =Interim!DZ3 ->  | EA3: =Interim!EA3 ->  | EB3: =Interim!EB3 ->  | EC3: =Interim!EC3 ->  | ED3: =Interim!ED3 -> 0 | EE3: =Interim!EE3 -> 0 | EF3: =Interim!EF3 ->  | EG3: =Interim!EG3 ->  | EH3: =Interim!EH3 ->  | EI3: =Interim!EI3 ->  | EJ3: =Interim!EJ3 ->  | EK3: =Interim!EK3 ->  | EL3: =Interim!EL3 ->  | EM3: =Interim!EM3 ->  | EN3: =Interim!EN3 ->  | EO3: =Interim!EO3 ->  | EP3: =Interim!EP3 ->  | EQ3: =Interim!EQ3 ->  | ER3: =Interim!ER3 ->  | ES3: =Interim!ES3 ->  | ET3: =Interim!ET3 ->  | EU3: =Interim!EU3 ->  | EV3: =Interim!EV3 ->  | EW3: =Interim!EW3 ->  | EX3: =Interim!EX3 ->  | EY3: =Interim!EY3 ->  | EZ3: =IF(Interim!EZ3="","",+Interim!EZ3) ->  | FA3: =IF(Interim!FA3="","",+Interim!FA3) ->  | FB3: =IF(Interim!FB3="","",+Interim!FB3) ->  | FC3: =Interim!FC3 -> 0 | FD3: =Interim!FD3 -> 0 | FE3: =Interim!FE3 -> 0 | FF3: =Interim!FF3 -> 0 | FG3: =Interim!FG3 -> 0 | FH3: =Interim!FH3 -> 0 | FI3: =Interim!FI3 -> 0 | FJ3: =Interim!FJ3 -> 0 | FK3: =IF(Interim!FK3="","",+Interim!FK3) ->  | FL3: =Interim!FL3 -> 0 | FM3: =IF(Interim!FM3="","",+Interim!FM3) ->  | FN3: =Interim!FN3 -> 0 | FO3: =IF(Interim!FO3="","",+Interim!FO3) ->  | FP3: =Interim!FP3 -> 0 | FQ3: =IF(Interim!FQ3="","",+Interim!FQ3) ->  | FR3: =Interim!FR3 -> 0 | FS3: =Interim!FS3 -> 0 | FT3: =IF(Interim!FT3="","",+Interim!FT3) ->  | FU3: =IF(Interim!FU3="","",+Interim!FU3) ->  | FV3: =IF(Interim!FV3="","",+Interim!FV3) -> 1 | FW3: =Interim!FW3 ->  | FX3: =Interim!FX3 -> 
T4: blank | V4: New | W4: blank | X4: blank | Z4: blank | AA4: blank | BK4: blank | BL4: blank | BX4: New | CA4: New | CE4: blank | CF4: blank | CT4: blank | CU4: blank | ED4: blank | EE4: note 1 | EZ4: note 1 | FA4: note 1 | FB4: note 1 | FC4: note 1 | FD4: note 1 | FE4: note 1 | FF4: note 1 | FG4: note 1 | FH4: note 1 | FI4: note 1 | FJ4: note 1 | FK4: note 1 | FL4: note 1 | FM4: note 1 | FN4: note 1 | FO4: note 1 | FP4: note 1 | FQ4: note 1 | FR4: note 1 | FS4: note 1 | FT4: note 1 | FU4: note 1 | FV4: note 1
A12: Remarks
A13: note 1: | B13: data to be filled in by MS
A14: blank | B14: column not being used in 2012/13
A15: new : | B15: new column added in 2012/13

Sheet AuditedAc2 (hidden)
A1: Year | B1: RegNo | C1: BranchId | D1: TeachingType | E1: Stream | F1: SDG_GrantReceived | G1: SDG_Expenditure1 | H1: SDG_Expenditure2 | I1: SDG_Expenditure3 | J1: SDG_Expenditure4 | K1: SDG_Expenditure5 | L1: SDG_Expenditure6 | M1: SDG_Expenditure7 | N1: SDG_Expenditure8 | O1: SDG_Expenditure9 | P1: SDG_Expenditure10 | Q1: SDG_Expenditure11 | R1: SDG_Expenditure12 | S1: SDG_Expenditure13 | T1: SDG_Expenditure14 | U1: SDG_Expenditure15 | V1: SDG_ExpRemark1 | W1: SDG_ExpRemark2 | X1: SDG_ExpRemark3 | Y1: SDG_ExpRemark4 | Z1: SDG_ExpRemark5 | AA1: SDG_ExpRemark6 | AB1: SDG_ExpRemark7 | AC1: SDG_ExpRemark8 | AD1: SDG_ExpRemark9 | AE1: SDG_ExpRemark10 | AF1: SDG_ExpRemark11 | AG1: SDG_ExpRemark12 | AH1: SDG_ExpRemark13 | AI1: SDG_ExpRemark14 | AJ1: SDG_ExpRemark15 | AK1: SDG_Surplus | AL1: SDG_SurplusBF | AM1: SDG_SurplusCF | AN1: DI_DonationIncome | AO1: DI_DonationExpenses | AP1: DI_Expenditure1 | AQ1: DI_Expenditure2 | AR1: DI_Expenditure3 | AS1: DI_Expenditure4 | AT1: DI_Expenditure5 | AU1: DI_Expenditure6 | AV1: DI_Expenditure7 | AW1: DI_Expenditure8 | AX1: DI_Expenditure9 | AY1: DI_Expenditure10 | AZ1: DI_Expenditure11 | BA1: DI_Expenditure12 | BB1: DI_Expenditure13 | BC1: DI_Expenditure14 | BD1: DI_Expenditure15 | BE1: DI_ExpRemark1 | BF1: DI_ExpRemark2 | BG1: DI_ExpRemark3 | BH1: DI_ExpRemark4 | BI1: DI_ExpRemark5 | BJ1: DI_ExpRemark6 | BK1: DI_ExpRemark7 | BL1: DI_ExpRemark8 | BM1: DI_ExpRemark9 | BN1: DI_ExpRemark10 | BO1: DI_ExpRemark11 | BP1: DI_ExpRemark12 | BQ1: DI_ExpRemark13 | BR1: DI_ExpRemark14 | BS1: DI_ExpRemark15 | BT1: BS_DataAsAt | BU1: BS_FixedAssProperty | BV1: BS_FixedAssAvailForSale | BW1: BS_FixedAssOther1 | BX1: BS_FixedAssDesc1 | BY1: BS_FixedAssOther2 | BZ1: BS_FixedAssDesc2 | CA1: BS_FixedAssOther3 | CB1: BS_FixedAssDesc3 | CC1: BS_FixedAssOther4 | CD1: BS_FixedAssDesc4 | CE1: BS_FixedAssOther5 | CF1: BS_FixedAssDesc5 | CG1: BS_FixedAssOther6 | CH1: BS_FixedAssDesc6 | CI1: BS_FixedAssOther7 | CJ1: BS_FixedAssDesc7 | CK1: BS_FixedAssOther8 | CL1: BS_FixedAssDesc8 | CM1: BS_FixedAssOther9 | CN1: BS_FixedAssDesc9 | CO1: BS_FixedAssOther10 | CP1: BS_FixedAssDesc10 | CQ1: BS_FixedAssets | CR1: BS_CurrentAssAccountWithDirector | CS1: BS_CurrentAssAccountWithSSB | CT1: BS_CurrentAssAccountDueFromDirector | CU1: BS_CurrentAssAccountDueFromSSB | CV1: BS_CurrentAssAccountDueFromRelatedCompany | CW1: BS_CurrentAssLoan | CX1: BS_CurrentAssLoanRemarks | CY1: BS_CurrentAssStockOfStationery | CZ1: BS_CurrentAssSundryDebtors | DA1: BS_CurrentAssRentalDeposit | DB1: BS_CurrentAssCash | DC1: BS_CurrentAssOthers1 | DD1: BS_CurrentAssDesc1 | DE1: BS_CurrentAssOthers2 | DF1: BS_CurrentAssDesc2 | DG1: BS_CurrentAssOthers3 | DH1: BS_CurrentAssDesc3 | DI1: BS_CurrentAssOthers4 | DJ1: BS_CurrentAssDesc4 | DK1: BS_CurrentAssOthers5 | DL1: BS_CurrentAssDesc5 | DM1: BS_CurrentAssOthers6 | DN1: BS_CurrentAssDesc6 | DO1: BS_CurrentAssOthers7 | DP1: BS_CurrentAssDesc7 | DQ1: BS_CurrentAssOthers8 | DR1: BS_CurrentAssDesc8 | DS1: BS_CurrentAssOthers9 | DT1: BS_CurrentAssDesc9 | DU1: BS_CurrentAssOthers10 | DV1: BS_CurrentAssDesc10 | DW1: BS_CurrentAssets | DX1: BS_CurrentLiabAccountWithDirector | DY1: BS_CurrentLiabAccountWithSSB | DZ1: BS_CurrentLiabAccountDueToDirector | EA1: BS_CurrentLiabAccountDueToSSB | EB1: BS_CurrentLiabAccountDueToRelatedCompany | EC1: BS_CurrentLiabLoan | ED1: BS_CurrentLiabLoanRemarks | EE1: BS_CurrentLiabSchoolFees | EF1: BS_CurrentLiabBankOverdraft | EG1: BS_CurrentLiabSundaryCreditor | EH1: BS_CurrentLiabOthers1 | EI1: BS_CurrentLiabDesc1 | EJ1: BS_CurrentLiabOthers2 | EK1: BS_CurrentLiabDesc2 | EL1: BS_CurrentLiabOthers3 | EM1: BS_CurrentLiabDesc3 | EN1: BS_CurrentLiabOthers4 | EO1: BS_CurrentLiabDesc4 | EP1: BS_CurrentLiabOthers5 | EQ1: BS_CurrentLiabDesc5 | ER1: BS_CurrentLiabOthers6 | ES1: BS_CurrentLiabDesc6 | ET1: BS_CurrentLiabOthers7 | EU1: BS_CurrentLiabDesc7 | EV1: BS_CurrentLiabOthers8 | EW1: BS_CurrentLiabDesc8 | EX1: BS_CurrentLiabOthers9 | EY1: BS_CurrentLiabDesc9 | EZ1: BS_CurrentLiabOthers10 | FA1: BS_CurrentLiabDesc10 | FB1: BS_CurrentLiabilities | FC1: BS_SurplusReserve1 | FD1: BS_SurplusReserve2 | FE1: BS_SurplusReserve3 | FF1: BS_SurplusReserve4 | FG1: BS_SurplusReserve5 | FH1: BS_SurplusReserve6 | FI1: BS_SurplusReserve7 | FJ1: BS_SurplusReserve8 | FK1: BS_SurplusReserve9 | FL1: BS_SurplusReserve10 | FM1: BS_SurplusReserve1Name | FN1: BS_SurplusReserve2Name | FO1: BS_SurplusReserve3Name | FP1: BS_SurplusReserve4Name | FQ1: BS_SurplusReserve5Name | FR1: BS_SurplusReserve6Name | FS1: BS_SurplusReserve7Name | FT1: BS_SurplusReserve8Name | FU1: BS_SurplusReserve9Name | FV1: BS_SurplusReserve10Name | FW1: BS_DevGrantPEVS | FX1: BS_SurplusForTeacherDev | FY1: BS_LongTermLiabBankLoan | FZ1: BS_LongTermLiabDueToSSB | GA1: BS_LongTermLiabDueToRelatedCompany | GB1: BS_LongTermLiabOthers | GC1: BS_LongTermLiabOthersRemarks | GD1: BS_LongTermLiabOthers2 | GE1: BS_LongTermLiabOthersRemarks2 | GF1: BS_LongTermLiabOthers3 | GG1: BS_LongTermLiabOthersRemarks3 | GH1: BS_LongTermLiabOthers4 | GI1: BS_LongTermLiabOthersRemarks4 | GJ1: BS_LongTermLiabOthers5 | GK1: BS_LongTermLiabOthersRemarks5 | GL1: BS_LongTermLiabOthers6 | GM1: BS_LongTermLiabOthersRemarks6 | GN1: BS_LongTermLiabOthers7 | GO1: BS_LongTermLiabOthersRemarks7 | GP1: BS_LongTermLiabOthers8 | GQ1: BS_LongTermLiabOthersRemarks8 | GR1: BS_LongTermLiabOthers9 | GS1: BS_LongTermLiabOthersRemarks9 | GT1: BS_LongTermLiabOthers10 | GU1: BS_LongTermLiabOthersRemarks10 | GV1: AmountDueFromRelatedParties1 | GW1: AmountDueFromRelatedPartiesName1 | GX1: AmountDueFromRelatedParties2 | GY1: AmountDueFromRelatedPartiesName2 | GZ1: AmountDueFromRelatedParties3 | HA1: AmountDueFromRelatedPartiesName3 | HB1: AmountDueFromRelatedParties4 | HC1: AmountDueFromRelatedPartiesName4 | HD1: AmountDueFromRelatedParties5 | HE1: AmountDueFromRelatedPartiesName5 | HF1: AmountDueFromRelatedParties6 | HG1: AmountDueFromRelatedPartiesName6 | HH1: AmountDueFromRelatedParties7 | HI1: AmountDueFromRelatedPartiesName7 | HJ1: AmountDueFromRelatedParties8 | HK1: AmountDueFromRelatedPartiesName8 | HL1: AmountDueFromRelatedParties9 | HM1: AmountDueFromRelatedPartiesName9 | HN1: AmountDueFromRelatedParties10 | HO1: AmountDueFromRelatedPartiesName10 | HP1: AmountDueToRelatedParties1 | HQ1: AmountDueToRelatedPartiesName1 | HR1: AmountDueToRelatedParties2 | HS1: AmountDueToRelatedPartiesName2 | HT1: AmountDueToRelatedParties3 | HU1: AmountDueToRelatedPartiesName3 | HV1: AmountDueToRelatedParties4 | HW1: AmountDueToRelatedPartiesName4 | HX1: AmountDueToRelatedParties5 | HY1: AmountDueToRelatedPartiesName5 | HZ1: PaymentToRelatedParties1 | IA1: PaymentToRelatedPartiesName1 | IB1: PaymentToRelatedParties2 | IC1: PaymentToRelatedPartiesName2 | ID1: PaymentToRelatedParties3 | IE1: PaymentToRelatedPartiesName3 | IF1: PaymentToRelatedParties4 | IG1: PaymentToRelatedPartiesName4 | IH1: PaymentToRelatedParties5 | II1: PaymentToRelatedPartiesName5 | IJ1: ReceiptFromRelatedParties1 | IK1: ReceiptFromRelatedPartiesName1 | IL1: ReceiptFromRelatedParties2 | IM1: ReceiptFromRelatedPartiesName2 | IN1: ReceiptFromRelatedParties3 | IO1: ReceiptFromRelatedPartiesName3 | IP1: ReceiptFromRelatedParties4 | IQ1: ReceiptFromRelatedPartiesName4 | IR1: ReceiptFromRelatedParties5 | IS1: ReceiptFromRelatedPartiesName5
A2: =+AuditedAc1!A2 ->  | B2: =+AuditedAc1!B2 ->  | C2: =+AuditedAc1!C2 -> A | D2: =+AuditedAc1!D2 -> A | E2: =IF(Interim!A11="Statement 1A","N","L") -> L | AN2: =+報表5!Q16 -> 0 | AP2: =+報表5!Q22 -> 0 | AQ2: =+報表5!Q23 -> 0 | AR2: =+報表5!Q24 -> 0 | AS2: =+報表5!Q25 -> 0 | AT2: =+報表5!Q26 -> 0 | AU2: =+報表5!Q27 -> 0 | AV2: =+報表5!Q28 -> 0 | AW2: =+報表5!Q29 -> 0 | AX2: =+報表5!Q30 -> 0 | AY2: =+報表5!Q31 -> 0 | AZ2: =+報表5!Q32 -> 0 | BA2: =+報表5!Q33 -> 0 | BB2: =+報表5!Q34 -> 0 | BC2: =+報表5!Q35 -> 0 | BD2: =+報表5!Q36 -> 0 | BE2: =IF(OR(AP2="",AP2=0),"",+報表5!$A22) ->  | BF2: =IF(OR(AQ2="",AQ2=0),"",+報表5!$A23) ->  | BG2: =IF(OR(AR2="",AR2=0),"",+報表5!$A24) ->  | BH2: =IF(OR(AS2="",AS2=0),"",+報表5!$A25) ->  | BI2: =IF(OR(AT2="",AT2=0),"",+報表5!$A26) ->  | BJ2: =IF(OR(AU2="",AU2=0),"",+報表5!$A27) ->  | BK2: =IF(OR(AV2="",AV2=0),"",+報表5!$A28) ->  | BL2: =IF(OR(AW2="",AW2=0),"",+報表5!$A29) ->  | BM2: =IF(OR(AX2="",AX2=0),"",+報表5!$A30) ->  | BN2: =IF(OR(AY2="",AY2=0),"",+報表5!$A31) ->  | BO2: =IF(OR(AZ2="",AZ2=0),"",+報表5!$A32) ->  | BP2: =IF(OR(BA2="",BA2=0),"",+報表5!$A33) ->  | BQ2: =IF(OR(BB2="",BB2=0),"",+報表5!$A34) ->  | BR2: =IF(OR(BC2="",BC2=0),"",+報表5!$A35) ->  | BS2: =IF(OR(BD2="",BD2=0),"",+報表5!$A36) ->  | BT2: =(TEXT(附件一!C33,"dd/mm/yyyy")) -> 例如:31/8/2018 | BU2: =+報表2!N18 -> 0 | BV2: 0 | BW2: =+報表2!$N20 -> 0 | BX2: =IF(OR(BW2="",BW2=0),"",報表2!$A20) ->  | BY2: =+報表2!$N21 -> 0 | BZ2: =IF(OR(BY2="",BY2=0),"",報表2!$A21) ->  | CA2: =+報表2!$N22 -> 0 | CB2: =IF(OR(CA2="",CA2=0),"",報表2!$A22) ->  | CC2: =+報表2!$N23 -> 0 | CD2: =IF(OR(CC2="",CC2=0),"",報表2!$A23) ->  | CE2: =+報表2!$N24 -> 0 | CF2: =IF(OR(CE2="",CE2=0),"",報表2!$A24) ->  | CG2: =+報表2!$N25 -> 0 | CH2: =IF(OR(CG2="",CG2=0),"",報表2!$A25) ->  | CI2: =+報表2!$N26 -> 0 | CJ2: =IF(OR(CI2="",CI2=0),"",報表2!$A26) ->  | CK2: =+報表2!$N27 -> 0 | CL2: =IF(OR(CK2="",CK2=0),"",報表2!$A27) ->  | CM2: =+報表2!$N28 -> 0 | CN2: =IF(OR(CM2="",CM2=0),"",報表2!$A28) ->  | CO2: =+報表2!$N29 -> 0 | CP2: =IF(OR(CO2="",CO2=0),"",報表2!$A29) ->  | CQ2: =報表2!N31 -> 0 | CR2: 0 | CS2: 0 | CT2: 0 | CU2: 0 | CV2: 0 | CW2: 0 | CY2: =+報表2!N34 -> 0 | CZ2: =+報表2!N35 -> 0 | DA2: =+報表2!N36 -> 0 | DB2: =+報表2!N37 -> 0 | DC2: =+報表2!$N39 -> 0 | DD2: =IF(OR(DC2="",DC2=0),"",報表2!$A39) ->  | DE2: =+報表2!$N40 -> 0 | DF2: =IF(OR(DE2="",DE2=0),"",報表2!$A40) ->  | DG2: =+報表2!$N41 -> 0 | DH2: =IF(OR(DG2="",DG2=0),"",報表2!$A41) ->  | DI2: =+報表2!$N42 -> 0 | DJ2: =IF(OR(DI2="",DI2=0),"",報表2!$A42) ->  | DK2: =+報表2!$N43 -> 0 | DL2: =IF(OR(DK2="",DK2=0),"",報表2!$A43) ->  | DM2: =+報表2!$N44 -> 0 | DN2: =IF(OR(DM2="",DM2=0),"",報表2!$A44) ->  | DO2: =+報表2!$N45 -> 0 | DP2: =IF(OR(DO2="",DO2=0),"",報表2!$A45) ->  | DQ2: =+報表2!$N46 -> 0 | DR2: =IF(OR(DQ2="",DQ2=0),"",報表2!$A46) ->  | DS2: =+報表2!$N47 -> 0 | DT2: =IF(OR(DS2="",DS2=0),"",報表2!$A47) ->  | DU2: =+報表2!$N48 -> 0 | DV2: =IF(OR(DU2="",DU2=0),"",報表2!$A48) ->  | DW2: =+報表2!N50 -> 0 | DX2: 0 | DY2: 0 | DZ2: 0 | EA2: 0 | EB2: 0 | EC2: 0 | EE2: =+報表2!N53 -> 0 | EF2: =+報表2!N54 -> 0 | EG2: =+報表2!N55 -> 0 | EH2: =+報表2!$N57 -> 0 | EI2: =IF(OR(EH2="",EH2=0),"",報表2!$A57) ->  | EJ2: =+報表2!$N58 -> 0 | EK2: =IF(OR(EJ2="",EJ2=0),"",報表2!$A58) ->  | EL2: =+報表2!$N59 -> 0 | EM2: =IF(OR(EL2="",EL2=0),"",報表2!$A59) ->  | EN2: =+報表2!$N60 -> 0 | EO2: =IF(OR(EN2="",EN2=0),"",報表2!$A60) ->  | EP2: =+報表2!$N61 -> 0 | EQ2: =IF(OR(EP2="",EP2=0),"",報表2!$A61) ->  | ER2: =+報表2!$N62 -> 0 | ES2: =IF(OR(ER2="",ER2=0),"",報表2!$A62) ->  | ET2: =+報表2!$N63 -> 0 | EU2: =IF(OR(ET2="",ET2=0),"",報表2!$A63) ->  | EV2: =+報表2!$N64 -> 0 | EW2: =IF(OR(EV2="",EV2=0),"",報表2!$A64) ->  | EX2: =+報表2!$N65 -> 0 | EY2: =IF(OR(EX2="",EX2=0),"",報表2!$A65) ->  | EZ2: =+報表2!$N66 -> 0 | FA2: =IF(OR(EZ2="",EZ2=0),"",報表2!$A66) ->  | FB2: =+報表2!N68 -> 0 | FC2: =+報表2!$N76 -> 0 | FD2: =+報表2!$N77 -> 0 | FE2: =+報表2!$N78 -> 0 | FF2: =+報表2!$N79 -> 0 | FG2: =+報表2!$N80 -> 0 | FH2: =+報表2!$N81 -> 0 | FI2: =+報表2!$N82 -> 0 | FJ2: =+報表2!$N83 -> 0 | FK2: =+報表2!$N84 -> 0 | FL2: =+報表2!$N85 -> 0 | FM2: =IF(OR(FC2="",FC2=0),"",報表2!$A76) ->  | FN2: =IF(OR(FD2="",FD2=0),"",報表2!$A77) ->  | FO2: =IF(OR(FE2="",FE2=0),"",報表2!$A78) ->  | FP2: =IF(OR(FF2="",FF2=0),"",報表2!$A79) ->  | FQ2: =IF(OR(FG2="",FG2=0),"",報表2!$A80) ->  | FR2: =IF(OR(FH2="",FH2=0),"",報表2!$A81) ->  | FS2: =IF(OR(FI2="",FI2=0),"",報表2!$A82) ->  | FT2: =IF(OR(FJ2="",FJ2=0),"",報表2!$A83) ->  | FU2: =IF(OR(FK2="",FK2=0),"",報表2!$A84) ->  | FV2: =IF(OR(FL2="",FL2=0),"",報表2!$A85) ->  | FY2: =+報表2!N92 -> 0 | FZ2: 0 | GA2: 0 | GB2: =+報表2!$N94 -> 0 | GC2: =IF(OR(GB2="",GB2=0),"",報表2!$A94) ->  | GD2: =+報表2!$N95 -> 0 | GE2: =IF(OR(GD2="",GD2=0),"",報表2!$A95) ->  | GF2: =+報表2!$N96 -> 0 | GG2: =IF(OR(GF2="",GF2=0),"",報表2!$A96) ->  | GH2: =+報表2!$N97 -> 0 | GI2: =IF(OR(GH2="",GH2=0),"",報表2!$A97) ->  | GJ2: =+報表2!$N98 -> 0 | GK2: =IF(OR(GJ2="",GJ2=0),"",報表2!$A98) ->  | GL2: =+報表2!$N99 -> 0 | GM2: =IF(OR(GL2="",GL2=0),"",報表2!$A99) ->  | GN2: =+報表2!$N100 -> 0 | GO2: =IF(OR(GN2="",GN2=0),"",報表2!$A100) ->  | GP2: =+報表2!$N101 -> 0 | GQ2: =IF(OR(GP2="",GP2=0),"",報表2!$A101) ->  | GR2: =+報表2!$N102 -> 0 | GS2: =IF(OR(GR2="",GR2=0),"",報表2!$A102) ->  | GT2: =+報表2!$N103 -> 0 | GU2: =IF(OR(GT2="",GT2=0),"",報表2!$A103) ->  | GV2: =+報表6_其他!V161 -> 0 | GW2: =IF(OR(GV2="",GV2=0),"",報表6_其他!$B161) ->  | GX2: =+報表6_其他!V162 -> 0 | GY2: =IF(OR(GX2="",GX2=0),"",報表6_其他!$B162) ->  | GZ2: =+報表6_其他!V163 -> 0 | HA2: =IF(OR(GZ2="",GZ2=0),"",報表6_其他!$B163) ->  | HB2: =+報表6_其他!V164 -> 0 | HC2: =IF(OR(HB2="",HB2=0),"",報表6_其他!$B164) ->  | HD2: =+報表6_其他!$V165 -> 0 | HE2: =IF(OR(HD2="",HD2=0),"",報表6_其他!$B165) ->  | HF2: =+報表6_其他!$V166 -> 0 | HG2: =IF(OR(HF2="",HF2=0),"",報表6_其他!$B166) ->  | HH2: =+報表6_其他!$V167 -> 0 | HI2: =IF(OR(HH2="",HH2=0),"",報表6_其他!$B167) ->  | HJ2: =+報表6_其他!$V168 -> 0 | HK2: =IF(OR(HJ2="",HJ2=0),"",報表6_其他!$B168) ->  | HL2: =+報表6_其他!$V169 -> 0 | HM2: =IF(OR(HL2="",HL2=0),"",報表6_其他!$B169) ->  | HN2: =+報表6_其他!$V170 -> 0 | HO2: =IF(OR(HN2="",HN2=0),"",報表6_其他!$B170) ->  | HP2: =+報表6_其他!V172 -> 0 | HQ2: =IF(OR(HP2="",HP2=0),"",報表6_其他!$B172) ->  | HR2: =+報表6_其他!V173 -> 0 | HS2: =IF(OR(HR2="",HR2=0),"",報表6_其他!$B173) ->  | HT2: =+報表6_其他!V174 -> 0 | HU2: =IF(OR(HT2="",HT2=0),"",報表6_其他!$B174) ->  | HV2: =+報表6_其他!V175 -> 0 | HW2: =IF(OR(HV2="",HV2=0),"",報表6_其他!$B175) ->  | HX2: =+報表6_其他!V176 -> 0 | HY2: =IF(OR(HX2="",HX2=0),"",報表6_其他!$B176) ->  | HZ2: =+報表6_其他!V183 -> 0 | IA2: =IF(OR(HZ2="",HZ2=0),"",報表6_其他!$B183) ->  | IB2: =+報表6_其他!V184 -> 0 | IC2: =IF(OR(IB2="",IB2=0),"",報表6_其他!$B184) ->  | ID2: =+報表6_其他!V185 -> 0 | IE2: =IF(OR(ID2="",ID2=0),"",報表6_其他!$B185) ->  | IF2: =+報表6_其他!V186 -> 0 | IG2: =IF(OR(IF2="",IF2=0),"",報表6_其他!$B186) ->  | IH2: =+報表6_其他!V187 -> 0 | II2: =IF(OR(IH2="",IH2=0),"",報表6_其他!$B187) ->  | IJ2: =+報表6_其他!V194 -> 0 | IK2: =IF(OR(IJ2="",IJ2=0),"",報表6_其他!$B194) ->  | IL2: =+報表6_其他!V195 -> 0 | IM2: =IF(OR(IL2="",IL2=0),"",報表6_其他!$B195) ->  | IN2: =+報表6_其他!V196 -> 0 | IO2: =IF(OR(IN2="",IN2=0),"",報表6_其他!$B196) ->  | IP2: =+報表6_其他!V197 -> 0 | IQ2: =IF(OR(IP2="",IP2=0),"",報表6_其他!$B197) ->  | IR2: =+報表6_其他!V198 -> 0 | IS2: =IF(OR(IR2="",IR2=0),"",報表6_其他!$B198) -> 
F4: Statement 4A | G4: Statement 4A | H4: Statement 4A | I4: Statement 4A | J4: Statement 4A | K4: Statement 4A | L4: Statement 4A | M4: Statement 4A | N4: Statement 4A | O4: Statement 4A | P4: Statement 4A | Q4: Statement 4A | R4: Statement 4A | S4: Statement 4A | T4: Statement 4A | U4: Statement 4A | V4: Statement 4A | W4: Statement 4A | X4: Statement 4A | Y4: Statement 4A | Z4: Statement 4A | AA4: Statement 4A | AB4: Statement 4A | AC4: Statement 4A | AD4: Statement 4A | AE4: Statement 4A | AF4: Statement 4A | AG4: Statement 4A | AH4: Statement 4A | AI4: Statement 4A | AJ4: Statement 4A | AK4: Statement 4A | AL4: Statement 4A | AM4: Statement 4A | AN4: Statement 6 | AO4: Statement 6 | AP4: Statement 6 | AQ4: Statement 6 | AR4: Statement 6 | AS4: Statement 6 | AT4: Statement 6 | AU4: Statement 6 | AV4: Statement 6 | AW4: Statement 6 | AX4: Statement 6 | AY4: Statement 6 | AZ4: Statement 6 | BA4: Statement 6 | BB4: Statement 6 | BC4: Statement 6 | BD4: Statement 6 | BE4: Statement 6 | BF4: Statement 6 | BG4: Statement 6 | BH4: Statement 6 | BI4: Statement 6 | BJ4: Statement 6 | BK4: Statement 6 | BL4: Statement 6 | BM4: Statement 6 | BN4: Statement 6 | BO4: Statement 6 | BP4: Statement 6 | BQ4: Statement 6 | BR4: Statement 6 | BS4: Statement 6 | BT4: Statement 2 | BU4: Statement 2 | BV4: Statement 2 | BW4: Statement 2 | BX4: Statement 2 | BY4: Statement 2 | BZ4: Statement 2 | CA4: Statement 2 | CB4: Statement 2 | CC4: Statement 2 | CD4: Statement 2 | CE4: Statement 2 | CF4: Statement 2 | CG4: Statement 2 | CH4: Statement 2 | CI4: Statement 2 | CJ4: Statement 2 | CK4: Statement 2 | CL4: Statement 2 | CM4: Statement 2 | CN4: Statement 2 | CO4: Statement 2 | CP4: Statement 2 | CQ4: Statement 2 | CR4: Statement 2 | CS4: Statement 2 | CT4: Statement 2 | CU4: Statement 2 | CV4: Statement 2 | CW4: Statement 2 | CX4: Statement 2 | CY4: Statement 2 | CZ4: Statement 2 | DA4: Statement 2 | DB4: Statement 2 | DC4: Statement 2 | DD4: Statement 2 | DE4: Statement 2 | DF4: Statement 2 | DG4: Statement 2 | DH4: Statement 2 | DI4: Statement 2 | DJ4: Statement 2 | DK4: Statement 2 | DL4: Statement 2 | DM4: Statement 2 | DN4: Statement 2 | DO4: Statement 2 | DP4: Statement 2 | DQ4: Statement 2 | DR4: Statement 2 | DS4: Statement 2 | DT4: Statement 2 | DU4: Statement 2 | DV4: Statement 2 | DW4: Statement 2 | DX4: Statement 2 | DY4: Statement 2 | DZ4: Statement 2 | EA4: Statement 2 | EB4: Statement 2 | EC4: Statement 2 | ED4: Statement 2 | EE4: Statement 2 | EF4: Statement 2 | EG4: Statement 2 | EH4: Statement 2 | EI4: Statement 2 | EJ4: Statement 2 | EK4: Statement 2 | EL4: Statement 2 | EM4: Statement 2 | EN4: Statement 2 | EO4: Statement 2 | EP4: Statement 2 | EQ4: Statement 2 | ER4: Statement 2 | ES4: Statement 2 | ET4: Statement 2 | EU4: Statement 2 | EV4: Statement 2 | EW4: Statement 2 | EX4: Statement 2 | EY4: Statement 2 | EZ4: Statement 2 | FA4: Statement 2 | FB4: Statement 2 | FC4: Statement 2 | FD4: Statement 2 | FE4: Statement 2 | FF4: Statement 2 | FG4: Statement 2 | FH4: Statement 2 | FI4: Statement 2 | FJ4: Statement 2 | FK4: Statement 2 | FL4: Statement 2 | FM4: Statement 2 | FN4: Statement 2 | FO4: Statement 2 | FP4: Statement 2 | FQ4: Statement 2 | FR4: Statement 2 | FS4: Statement 2 | FT4: Statement 2 | FU4: Statement 2 | FV4: Statement 2 | FW4: Statement 2 | FX4: Statement 2 | FY4: Statement 2 | FZ4: Statement 2 | GA4: Statement 2 | GB4: Statement 2 | GC4: Statement 2 | GD4: Statement 2 | GE4: Statement 2 | GF4: Statement 2 | GG4: Statement 2 | GH4: Statement 2 | GI4: Statement 2 | GJ4: Statement 2 | GK4: Statement 2 | GL4: Statement 2 | GM4: Statement 2 | GN4: Statement 2 | GO4: Statement 2 | GP4: Statement 2 | GQ4: Statement 2 | GR4: Statement 2 | GS4: Statement 2 | GT4: Statement 2 | GU4: Statement 2 | GV4: Statement 6_Others | GW4: Statement 6_Others | GX4: Statement 6_Others | GY4: Statement 6_Others | GZ4: Statement 6_Others | HA4: Statement 6_Others | HB4: Statement 6_Others | HC4: Statement 6_Others | HD4: Statement 6_Others | HE4: Statement 6_Others | HF4: Statement 6_Others | HG4: Statement 6_Others | HH4: Statement 6_Others | HI4: Statement 6_Others | HJ4: Statement 6_Others | HK4: Statement 6_Others | HL4: Statement 6_Others | HM4: Statement 6_Others | HN4: Statement 6_Others | HO4: Statement 6_Others | HP4: Statement 6_Others | HQ4: Statement 6_Others | HR4: Statement 6_Others | HS4: Statement 6_Others | HT4: Statement 6_Others | HU4: Statement 6_Others | HV4: Statement 6_Others | HW4: Statement 6_Others | HX4: Statement 6_Others | HY4: Statement 6_Others | HZ4: Statement 6_Others | IA4: Statement 6_Others | IB4: Statement 6_Others | IC4: Statement 6_Others | ID4: Statement 6_Others | IE4: Statement 6_Others | IF4: Statement 6_Others | IG4: Statement 6_Others | IH4: Statement 6_Others | II4: Statement 6_Others | IJ4: Statement 6_Others | IK4: Statement 6_Others | IL4: Statement 6_Others | IM4: Statement 6_Others | IN4: Statement 6_Others | IO4: Statement 6_Others | IP4: Statement 6_Others | IQ4: Statement 6_Others | IR4: Statement 6_Others | IS4: Statement 6_Others
AO5: note 1 | BV5: note 1 | CC5: New | CD5: New | CE5: New | CF5: New | CG5: New | CH5: New | CI5: New | CJ5: New | CK5: New | CL5: New | CM5: New | CN5: New | CO5: New | CP5: New | CR5: note 1 | CS5: note 1 | CT5: note 1 | CU5: note 1 | CV5: note 1 | CW5: note 1 | CX5: note 1 | DI5: New | DJ5: New | DK5: New | DL5: New | DM5: New | DN5: New | DO5: New | DP5: New | DQ5: New | DR5: New | DS5: New | DT5: New | DU5: New | DV5: New | DX5: note 1 | DY5: note 1 | DZ5: note 1 | EA5: note 1 | EB5: note 1 | EC5: note 1 | ED5: note 1 | EN5: New | EO5: New | EP5: New | EQ5: New | ER5: New | ES5: New | ET5: New | EU5: New | EV5: New | EW5: New | EX5: New | EY5: New | EZ5: New | FA5: New | FF5: New | FG5: New | FH5: New | FI5: New | FJ5: New | FK5: New | FL5: New | FP5: New | FQ5: New | FR5: New | FS5: New | FT5: New | FU5: New | FV5: New | FZ5: note 1 | GA5: note 1 | GD5: New | GE5: New | GF5: New | GG5: New | GH5: New | GI5: New | GJ5: New | GK5: New | GL5: New | GM5: New | GN5: New | GO5: New | GP5: New | GQ5: New | GR5: New | GS5: New | GT5: New | GU5: New | GV5: New | GW5: New | GX5: New | GY5: New | GZ5: New | HA5: New | HB5: New | HC5: New | HD5: New | HE5: New | HF5: New | HG5: New | HH5: New | HI5: New | HJ5: New | HK5: New | HL5: New | HM5: New | HN5: New | HO5: New | HP5: New | HQ5: New | HR5: New | HS5: New | HT5: New | HU5: New | HV5: New | HW5: New | HX5: New | HY5: New | HZ5: New | IA5: New | IB5: New | IC5: New | ID5: New | IE5: New | IF5: New | IG5: New | IH5: New | II5: New | IJ5: New | IK5: New | IL5: New | IM5: New | IN5: New | IO5: New | IP5: New | IQ5: New | IR5: New | IS5: New
A8: Remarks
A9: note 1: | B9: data to be filled in by MS
A10: Auto: | B10: Auto calculation
A11: blank : | B11: column not being used in 2012/13
A12: new : | B12: new column added in 2012/13

Sheet AuditedAc3 (hidden)
A1: Year | B1: RegNo | C1: BranchId | D1: TeachingType | E1: Stream | F1: OtherExp1 | G1: OtherExp2 | H1: OtherExp3 | I1: OtherExp4 | J1: OtherExp5 | K1: OtherExp6 | L1: OtherExp7 | M1: OtherExp8 | N1: OtherExp9 | O1: OtherExp10 | P1: TO_SchoolBusIncome | Q1: TO_SchoolBusOpenStock | R1: TO_SchoolBusPurchase | S1: TO_SchoolBusOtherExp1 | T1: TO_SchoolBusOtherExp2 | U1: TO_SchoolBusOtherExp3 | V1: TO_SchoolBusOtherExp4 | W1: TO_SchoolBusOtherExp5 | X1: TO_SchoolBusOtherExp6 | Y1: TO_SchoolBusOtherExp7 | Z1: TO_SchoolBusOtherExp8 | AA1: TO_SchoolBusOtherExp9 | AB1: TO_SchoolBusOtherExp10 | AC1: TO_SchoolBusCloseStock | AD1: TO_SchoolBusCost | AE1: TO_TextBooksIncome | AF1: TO_TextBooksOpenStock | AG1: TO_TextBooksPurchase | AH1: TO_TextBooksOtherExp1 | AI1: TO_TextBooksOtherExp2 | AJ1: TO_TextBooksOtherExp3 | AK1: TO_TextBooksOtherExp4 | AL1: TO_TextBooksOtherExp5 | AM1: TO_TextBooksOtherExp6 | AN1: TO_TextBooksOtherExp7 | AO1: TO_TextBooksOtherExp8 | AP1: TO_TextBooksOtherExp9 | AQ1: TO_TextBooksOtherExp10 | AR1: TO_TextBooksCloseStock | AS1: TO_TextBooksCost | AT1: TO_BooksIncome | AU1: TO_BooksOpenStock | AV1: TO_BooksPurchase | AW1: TO_BooksOtherExp1 | AX1: TO_BooksOtherExp2 | AY1: TO_BooksOtherExp3 | AZ1: TO_BooksOtherExp4 | BA1: TO_BooksOtherExp5 | BB1: TO_BooksOtherExp6 | BC1: TO_BooksOtherExp7 | BD1: TO_BooksOtherExp8 | BE1: TO_BooksOtherExp9 | BF1: TO_BooksOtherExp10 | BG1: TO_BooksCloseStock | BH1: TO_BooksCost | BI1: TO_SchoolUniformIncome | BJ1: TO_SchoolUniformOpenStock | BK1: TO_SchoolUniformPurchase | BL1: TO_SchoolUniformOtherExp1 | BM1: TO_SchoolUniformOtherExp2 | BN1: TO_SchoolUniformOtherExp3 | BO1: TO_SchoolUniformOtherExp4 | BP1: TO_SchoolUniformOtherExp5 | BQ1: TO_SchoolUniformOtherExp6 | BR1: TO_SchoolUniformOtherExp7 | BS1: TO_SchoolUniformOtherExp8 | BT1: TO_SchoolUniformOtherExp9 | BU1: TO_SchoolUniformOtherExp10 | BV1: TO_SchoolUniformCloseStock | BW1: TO_SchoolUniformCost | BX1: TO_SchoolBagIncome | BY1: TO_SchoolBagOpenStock | BZ1: TO_SchoolBagPurchase | CA1: TO_SchoolBagOtherExp1 | CB1: TO_SchoolBagOtherExp2 | CC1: TO_SchoolBagOtherExp3 | CD1: TO_SchoolBagOtherExp4 | CE1: TO_SchoolBagOtherExp5 | CF1: TO_SchoolBagOtherExp6 | CG1: TO_SchoolBagOtherExp7 | CH1: TO_SchoolBagOtherExp8 | CI1: TO_SchoolBagOtherExp9 | CJ1: TO_SchoolBagOtherExp10 | CK1: TO_SchoolBagCloseStock | CL1: TO_SchoolBagCost | CM1: TO_BeddingIncome | CN1: TO_BeddingOpenStock | CO1: TO_BeddingPurchase | CP1: TO_BeddingOtherExp1 | CQ1: TO_BeddingOtherExp2 | CR1: TO_BeddingOtherExp3 | CS1: TO_BeddingOtherExp4 | CT1: TO_BeddingOtherExp5 | CU1: TO_BeddingOtherExp6 | CV1: TO_BeddingOtherExp7 | CW1: TO_BeddingOtherExp8 | CX1: TO_BeddingOtherExp9 | CY1: TO_BeddingOtherExp10 | CZ1: TO_BeddingCloseStock | DA1: TO_BeddingCost | DB1: TO_ActivitiesIncome | DC1: TO_ActivitiesOpenStock | DD1: TO_ActivitiesPurchase | DE1: TO_ActivitiesOtherExp1 | DF1: TO_ActivitiesOtherExp2 | DG1: TO_ActivitiesOtherExp3 | DH1: TO_ActivitiesOtherExp4 | DI1: TO_ActivitiesOtherExp5 | DJ1: TO_ActivitiesOtherExp6 | DK1: TO_ActivitiesOtherExp7 | DL1: TO_ActivitiesOtherExp8 | DM1: TO_ActivitiesOtherExp9 | DN1: TO_ActivitiesOtherExp10 | DO1: TO_ActivitiesCloseStock | DP1: TO_ActivitiesCost | DQ1: TO_StationeryIncome | DR1: TO_StationeryOpenStock | DS1: TO_StationeryPurchase | DT1: TO_StationeryOtherExp1 | DU1: TO_StationeryOtherExp2 | DV1: TO_StationeryOtherExp3 | DW1: TO_StationeryOtherExp4 | DX1: TO_StationeryOtherExp5 | DY1: TO_StationeryOtherExp6 | DZ1: TO_StationeryOtherExp7 | EA1: TO_StationeryOtherExp8 | EB1: TO_StationeryOtherExp9 | EC1: TO_StationeryOtherExp10 | ED1: TO_StationeryCloseStock | EE1: TO_StationeryCost | EF1: TO_TeachingMaterialIncome | EG1: TO_TeachingMaterialOpenStock | EH1: TO_TeachingMaterialPurchase | EI1: TO_TeachingMaterialOtherExp1 | EJ1: TO_TeachingMaterialOtherExp2 | EK1: TO_TeachingMaterialOtherExp3 | EL1: TO_TeachingMaterialOtherExp4 | EM1: TO_TeachingMaterialOtherExp5 | EN1: TO_TeachingMaterialOtherExp6 | EO1: TO_TeachingMaterialOtherExp7 | EP1: TO_TeachingMaterialOtherExp8 | EQ1: TO_TeachingMaterialOtherExp9 | ER1: TO_TeachingMaterialOtherExp10 | ES1: TO_TeachingMaterialCloseStock | ET1: TO_TeachingMaterialCost | EU1: TO_FoodIncome | EV1: TO_FoodOpenStock | EW1: TO_FoodPurchase | EX1: TO_FoodOtherExp1 | EY1: TO_FoodOtherExp2 | EZ1: TO_FoodOtherExp3 | FA1: TO_FoodOtherExp4 | FB1: TO_FoodOtherExp5 | FC1: TO_FoodOtherExp6 | FD1: TO_FoodOtherExp7 | FE1: TO_FoodOtherExp8 | FF1: TO_FoodOtherExp9 | FG1: TO_FoodOtherExp10 | FH1: TO_FoodCloseStock | FI1: TO_FoodCost | FJ1: TO_OthersIncome | FK1: TO_OthersOpenStock | FL1: TO_OthersPurchase | FM1: TO_OthersOtherExp1 | FN1: TO_OthersOtherExp2 | FO1: TO_OthersOtherExp3 | FP1: TO_OthersOtherExp4 | FQ1: TO_OthersOtherExp5 | FR1: TO_OthersOtherExp6 | FS1: TO_OthersOtherExp7 | FT1: TO_OthersOtherExp8 | FU1: TO_OthersOtherExp9 | FV1: TO_OthersOtherExp10 | FW1: TO_OthersCloseStock | FX1: TO_OthersCost | FY1: TO_RemarksForOthers | FZ1: TO_RemarksForGoods
A2: =+AuditedAc1!A2 ->  | B2: =+AuditedAc1!B2 ->  | C2: =+AuditedAc1!C2 -> A | D2: =+AuditedAc1!D2 -> A | E2: =IF(Interim!A11="Statement 1A","N","L") -> L | F2: =IF(OR(報表4!$AS24="",報表4!$AS24=0),"",報表4!$B24) ->  | G2: =IF(OR(報表4!$AS25="",報表4!$AS25=0),"",報表4!$B25) ->  | H2: =IF(OR(報表4!$AS26="",報表4!$AS26=0),"",報表4!$B26) ->  | I2: =IF(OR(報表4!$AS27="",報表4!$AS27=0),"",報表4!$B27) ->  | J2: =IF(OR(報表4!$AS28="",報表4!$AS28=0),"",報表4!$B28) ->  | K2: =IF(OR(報表4!$AS29="",報表4!$AS29=0),"",報表4!$B29) ->  | L2: =IF(OR(報表4!$AS30="",報表4!$AS30=0),"",報表4!$B30) ->  | M2: =IF(OR(報表4!$AS31="",報表4!$AS31=0),"",報表4!$B31) ->  | N2: =IF(OR(報表4!$AS32="",報表4!$AS32=0),"",報表4!$B32) ->  | O2: =IF(OR(報表4!$AS33="",報表4!$AS33=0),"",報表4!$B33) ->  | P2: =+報表4!$AW15 -> 0 | Q2: =+報表4!$AW20 -> 0 | R2: =+報表4!$AW22 -> 0 | S2: =+報表4!$AW24 -> 0 | T2: =+報表4!$AW25 -> 0 | U2: =+報表4!$AW26 -> 0 | V2: =+報表4!$AW27 -> 0 | W2: =+報表4!$AW28 -> 0 | X2: =+報表4!$AW29 -> 0 | Y2: =+報表4!$AW30 -> 0 | Z2: =+報表4!$AW31 -> 0 | AA2: =+報表4!$AW32 -> 0 | AB2: =+報表4!$AW33 -> 0 | AC2: =+報表4!$AW35 -> 0 | AD2: =+報表4!$AW37 -> 0 | AE2: =+報表4!$AY15 -> 0 | AF2: =+報表4!$AY20 -> 0 | AG2: =+報表4!$AY22 -> 0 | AH2: =+報表4!$AY24 -> 0 | AI2: =+報表4!$AY25 -> 0 | AJ2: =+報表4!$AY26 -> 0 | AK2: =+報表4!$AY27 -> 0 | AL2: =+報表4!$AY28 -> 0 | AM2: =+報表4!$AY29 -> 0 | AN2: =+報表4!$AY30 -> 0 | AO2: =+報表4!$AY31 -> 0 | AP2: =+報表4!$AY32 -> 0 | AQ2: =+報表4!$AY33 -> 0 | AR2: =+報表4!$AY35 -> 0 | AS2: =+報表4!$AY37 -> 0 | AT2: =+報表4!$BA15 -> 0 | AU2: =+報表4!$BA20 -> 0 | AV2: =+報表4!$BA22 -> 0 | AW2: =+報表4!$BA24 -> 0 | AX2: =+報表4!$BA25 -> 0 | AY2: =+報表4!$BA26 -> 0 | AZ2: =+報表4!$BA27 -> 0 | BA2: =+報表4!$BA28 -> 0 | BB2: =+報表4!$BA29 -> 0 | BC2: =+報表4!$BA30 -> 0 | BD2: =+報表4!$BA31 -> 0 | BE2: =+報表4!$BA32 -> 0 | BF2: =+報表4!$BA33 -> 0 | BG2: =+報表4!$BA35 -> 0 | BH2: =+報表4!$BA37 -> 0 | BI2: =+報表4!$BC15 -> 0 | BJ2: =+報表4!$BC20 -> 0 | BK2: =+報表4!$BC22 -> 0 | BL2: =+報表4!$BC24 -> 0 | BM2: =+報表4!$BC25 -> 0 | BN2: =+報表4!$BC26 -> 0 | BO2: =+報表4!$BC27 -> 0 | BP2: =+報表4!$BC28 -> 0 | BQ2: =+報表4!$BC29 -> 0 | BR2: =+報表4!$BC30 -> 0 | BS2: =+報表4!$BC31 -> 0 | BT2: =+報表4!$BC32 -> 0 | BU2: =+報表4!$BC33 -> 0 | BV2: =+報表4!$BC35 -> 0 | BW2: =+報表4!$BC37 -> 0 | BX2: =+報表4!$BE15 -> 0 | BY2: =+報表4!$BE20 -> 0 | BZ2: =+報表4!$BE22 -> 0 | CA2: =+報表4!$BE24 -> 0 | CB2: =+報表4!$BE25 -> 0 | CC2: =+報表4!$BE26 -> 0 | CD2: =+報表4!$BE27 -> 0 | CE2: =+報表4!$BE28 -> 0 | CF2: =+報表4!$BE29 -> 0 | CG2: =+報表4!$BE30 -> 0 | CH2: =+報表4!$BE31 -> 0 | CI2: =+報表4!$BE32 -> 0 | CJ2: =+報表4!$BE33 -> 0 | CK2: =+報表4!$BE35 -> 0 | CL2: =+報表4!$BE37 -> 0 | CM2: =+報表4!$BG15 -> 0 | CN2: =+報表4!$BG20 -> 0 | CO2: =+報表4!$BG22 -> 0 | CP2: =+報表4!$BG24 -> 0 | CQ2: =+報表4!$BG25 -> 0 | CR2: =+報表4!$BG26 -> 0 | CS2: =+報表4!$BG27 -> 0 | CT2: =+報表4!$BG28 -> 0 | CU2: =+報表4!$BG29 -> 0 | CV2: =+報表4!$BG30 -> 0 | CW2: =+報表4!$BG31 -> 0 | CX2: =+報表4!$BG32 -> 0 | CY2: =+報表4!$BG33 -> 0 | CZ2: =+報表4!$BG35 -> 0 | DA2: =+報表4!$BG37 -> 0 | DB2: =+報表4!$BI15 -> 0 | DC2: =+報表4!$BI20 -> 0 | DD2: =+報表4!$BI22 -> 0 | DE2: =+報表4!$BI24 -> 0 | DF2: =+報表4!$BI25 -> 0 | DG2: =+報表4!$BI26 -> 0 | DH2: =+報表4!$BI27 -> 0 | DI2: =+報表4!$BI28 -> 0 | DJ2: =+報表4!$BI29 -> 0 | DK2: =+報表4!$BI30 -> 0 | DL2: =+報表4!$BI31 -> 0 | DM2: =+報表4!$BI32 -> 0 | DN2: =+報表4!$BI33 -> 0 | DO2: =+報表4!$BI35 -> 0 | DP2: =+報表4!$BI37 -> 0 | DQ2: =+報表4!$BK15 -> 0 | DR2: =+報表4!$BK20 -> 0 | DS2: =+報表4!$BK22 -> 0 | DT2: =+報表4!$BK24 -> 0 | DU2: =+報表4!$BK25 -> 0 | DV2: =+報表4!$BK26 -> 0 | DW2: =+報表4!$BK27 -> 0 | DX2: =+報表4!$BK28 -> 0 | DY2: =+報表4!$BK29 -> 0 | DZ2: =+報表4!$BK30 -> 0 | EA2: =+報表4!$BK31 -> 0 | EB2: =+報表4!$BK32 -> 0 | EC2: =+報表4!$BK33 -> 0 | ED2: =+報表4!$BK35 -> 0 | EE2: =+報表4!$BK37 -> 0 | EF2: =+報表4!$BM15 -> 0 | EG2: =+報表4!$BM20 -> 0 | EH2: =+報表4!$BM22 -> 0 | EI2: =+報表4!$BM24 -> 0 | EJ2: =+報表4!$BM25 -> 0 | EK2: =+報表4!$BM26 -> 0 | EL2: =+報表4!$BM27 -> 0 | EM2: =+報表4!$BM28 -> 0 | EN2: =+報表4!$BM29 -> 0 | EO2: =+報表4!$BM30 -> 0 | EP2: =+報表4!$BM31 -> 0 | EQ2: =+報表4!$BM32 -> 0 | ER2: =+報表4!$BM33 -> 0 | ES2: =+報表4!$BM35 -> 0 | ET2: =+報表4!$BM37 -> 0 | EU2: =+報表4!$BO15 -> 0 | EV2: =+報表4!$BO20 -> 0 | EW2: =+報表4!$BO22 -> 0 | EX2: =+報表4!$BO24 -> 0 | EY2: =+報表4!$BO25 -> 0 | EZ2: =+報表4!$BO26 -> 0 | FA2: =+報表4!$BO27 -> 0 | FB2: =+報表4!$BO28 -> 0 | FC2: =+報表4!$BO29 -> 0 | FD2: =+報表4!$BO30 -> 0 | FE2: =+報表4!$BO31 -> 0 | FF2: =+報表4!$BO32 -> 0 | FG2: =+報表4!$BO33 -> 0 | FH2: =+報表4!$BO35 -> 0 | FI2: =+報表4!$BO37 -> 0 | FJ2: =報表4!$BQ15 -> 0 | FK2: =報表4!$BQ20 -> 0 | FL2: =報表4!$BQ22 -> 0 | FM2: =報表4!$BQ24 -> 0 | FN2: =報表4!$BQ25 -> 0 | FO2: =報表4!$BQ26 -> 0 | FP2: =報表4!$BQ27 -> 0 | FQ2: =報表4!$BQ28 -> 0 | FR2: =報表4!$BQ29 -> 0 | FS2: =報表4!$BQ30 -> 0 | FT2: =報表4!$BQ31 -> 0 | FU2: =報表4!$BQ32 -> 0 | FV2: =報表4!$BQ33 -> 0 | FW2: =報表4!$BQ35 -> 0 | FX2: =報表4!$BQ37 -> 0
F4: Statement 4 | G4: Statement 4 | H4: Statement 4 | I4: Statement 4 | J4: Statement 4 | K4: Statement 4 | L4: Statement 4 | M4: Statement 4 | N4: Statement 4 | O4: Statement 4 | P4: Statement 4 | Q4: Statement 4 | R4: Statement 4 | S4: Statement 4 | T4: Statement 4 | U4: Statement 4 | V4: Statement 4 | W4: Statement 4 | X4: Statement 4 | Y4: Statement 4 | Z4: Statement 4 | AA4: Statement 4 | AB4: Statement 4 | AC4: Statement 4 | AD4: Statement 4 | AE4: Statement 4 | AF4: Statement 4 | AG4: Statement 4 | AH4: Statement 4 | AI4: Statement 4 | AJ4: Statement 4 | AK4: Statement 4 | AL4: Statement 4 | AM4: Statement 4 | AN4: Statement 4 | AO4: Statement 4 | AP4: Statement 4 | AQ4: Statement 4 | AR4: Statement 4 | AS4: Statement 4 | AT4: Statement 4 | AU4: Statement 4 | AV4: Statement 4 | AW4: Statement 4 | AX4: Statement 4 | AY4: Statement 4 | AZ4: Statement 4 | BA4: Statement 4 | BB4: Statement 4 | BC4: Statement 4 | BD4: Statement 4 | BE4: Statement 4 | BF4: Statement 4 | BG4: Statement 4 | BH4: Statement 4 | BI4: Statement 4 | BJ4: Statement 4 | BK4: Statement 4 | BL4: Statement 4 | BM4: Statement 4 | BN4: Statement 4 | BO4: Statement 4 | BP4: Statement 4 | BQ4: Statement 4 | BR4: Statement 4 | BS4: Statement 4 | BT4: Statement 4 | BU4: Statement 4 | BV4: Statement 4 | BW4: Statement 4 | BX4: Statement 4 | BY4: Statement 4 | BZ4: Statement 4 | CA4: Statement 4 | CB4: Statement 4 | CC4: Statement 4 | CD4: Statement 4 | CE4: Statement 4 | CF4: Statement 4 | CG4: Statement 4 | CH4: Statement 4 | CI4: Statement 4 | CJ4: Statement 4 | CK4: Statement 4 | CL4: Statement 4 | CM4: Statement 4 | CN4: Statement 4 | CO4: Statement 4 | CP4: Statement 4 | CQ4: Statement 4 | CR4: Statement 4 | CS4: Statement 4 | CT4: Statement 4 | CU4: Statement 4 | CV4: Statement 4 | CW4: Statement 4 | CX4: Statement 4 | CY4: Statement 4 | CZ4: Statement 4 | DA4: Statement 4 | DB4: Statement 4 | DC4: Statement 4 | DD4: Statement 4 | DE4: Statement 4 | DF4: Statement 4 | DG4: Statement 4 | DH4: Statement 4 | DI4: Statement 4 | DJ4: Statement 4 | DK4: Statement 4 | DL4: Statement 4 | DM4: Statement 4 | DN4: Statement 4 | DO4: Statement 4 | DP4: Statement 4 | DQ4: Statement 4 | DR4: Statement 4 | DS4: Statement 4 | DT4: Statement 4 | DU4: Statement 4 | DV4: Statement 4 | DW4: Statement 4 | DX4: Statement 4 | DY4: Statement 4 | DZ4: Statement 4 | EA4: Statement 4 | EB4: Statement 4 | EC4: Statement 4 | ED4: Statement 4 | EE4: Statement 4 | EF4: Statement 4 | EG4: Statement 4 | EH4: Statement 4 | EI4: Statement 4 | EJ4: Statement 4 | EK4: Statement 4 | EL4: Statement 4 | EM4: Statement 4 | EN4: Statement 4 | EO4: Statement 4 | EP4: Statement 4 | EQ4: Statement 4 | ER4: Statement 4 | ES4: Statement 4 | ET4: Statement 4 | EU4: Statement 4 | EV4: Statement 4 | EW4: Statement 4 | EX4: Statement 4 | EY4: Statement 4 | EZ4: Statement 4 | FA4: Statement 4 | FB4: Statement 4 | FC4: Statement 4 | FD4: Statement 4 | FE4: Statement 4 | FF4: Statement 4 | FG4: Statement 4 | FH4: Statement 4 | FI4: Statement 4 | FJ4: Statement 4 | FK4: Statement 4 | FL4: Statement 4 | FM4: Statement 4 | FN4: Statement 4 | FO4: Statement 4 | FP4: Statement 4 | FQ4: Statement 4 | FR4: Statement 4 | FS4: Statement 4 | FT4: Statement 4 | FU4: Statement 4 | FV4: Statement 4 | FW4: Statement 4 | FX4: Statement 4 | FY4: Statement 4 | FZ4: Statement 4
F5: New | G5: New | H5: New | I5: New | J5: New | K5: New | L5: New | M5: New | N5: New | O5: New | Q5: New | R5: New | S5: New | T5: New | U5: New | V5: New | W5: New | X5: New | Y5: New | Z5: New | AA5: New | AB5: New | AC5: New | AF5: New | AG5: New | AH5: New | AI5: New | AJ5: New | AK5: New | AL5: New | AM5: New | AN5: New | AO5: New | AP5: New | AQ5: New | AR5: New | AU5: New | AV5: New | AW5: New | AX5: New | AY5: New | AZ5: New | BA5: New | BB5: New | BC5: New | BD5: New | BE5: New | BF5: New | BG5: New | BJ5: New | BK5: New | BL5: New | BM5: New | BN5: New | BO5: New | BP5: New | BQ5: New | BR5: New | BS5: New | BT5: New | BU5: New | BV5: New | BY5: New | BZ5: New | CA5: New | CB5: New | CC5: New | CD5: New | CE5: New | CF5: New | CG5: New | CH5: New | CI5: New | CJ5: New | CK5: New | CN5: New | CO5: New | CP5: New | CQ5: New | CR5: New | CS5: New | CT5: New | CU5: New | CV5: New | CW5: New | CX5: New | CY5: New | CZ5: New | DC5: New | DD5: New | DE5: New | DF5: New | DG5: New | DH5: New | DI5: New | DJ5: New | DK5: New | DL5: New | DM5: New | DN5: New | DO5: New | DR5: New | DS5: New | DT5: New | DU5: New | DV5: New | DW5: New | DX5: New | DY5: New | DZ5: New | EA5: New | EB5: New | EC5: New | ED5: New | EG5: New | EH5: New | EI5: New | EJ5: New | EK5: New | EL5: New | EM5: New | EN5: New | EO5: New | EP5: New | EQ5: New | ER5: New | ES5: New | EV5: New | EW5: New | EX5: New | EY5: New | EZ5: New | FA5: New | FB5: New | FC5: New | FD5: New | FE5: New | FF5: New | FG5: New | FH5: New | FK5: New | FL5: New | FM5: New | FN5: New | FO5: New | FP5: New | FQ5: New | FR5: New | FS5: New | FT5: New | FU5: New | FV5: New | FW5: New | FY5: note 1 | FZ5: note 1
A8: Remarks
A9: note 1: | B9: data to be filled in by MS
A10: new : | B10: new column added in 2012/13

Sheet AuditedAc4 (hidden)
A1: Year | B1: RegNo | C1: BranchId | D1: TeachingType | E1: Stream | F1: AmountDueToRelatedParties6 | G1: AmountDueToRelatedPartiesName6 | H1: AmountDueToRelatedParties7 | I1: AmountDueToRelatedPartiesName7 | J1: AmountDueToRelatedParties8 | K1: AmountDueToRelatedPartiesName8 | L1: AmountDueToRelatedParties9 | M1: AmountDueToRelatedPartiesName9 | N1: AmountDueToRelatedParties10 | O1: AmountDueToRelatedPartiesName10 | P1: PaymentToRelatedParties6 | Q1: PaymentToRelatedPartiesName6 | R1: PaymentToRelatedParties7 | S1: PaymentToRelatedPartiesName7 | T1: PaymentToRelatedParties8 | U1: PaymentToRelatedPartiesName8 | V1: PaymentToRelatedParties9 | W1: PaymentToRelatedPartiesName9 | X1: PaymentToRelatedParties10 | Y1: PaymentToRelatedPartiesName10 | Z1: ReceiptFromRelatedParties6 | AA1: ReceiptFromRelatedPartiesName6 | AB1: ReceiptFromRelatedParties7 | AC1: ReceiptFromRelatedPartiesName7 | AD1: ReceiptFromRelatedParties8 | AE1: ReceiptFromRelatedPartiesName8 | AF1: ReceiptFromRelatedParties9 | AG1: ReceiptFromRelatedPartiesName9 | AH1: ReceiptFromRelatedParties10 | AI1: ReceiptFromRelatedPartiesName10 | AJ1: CCCSS_SalaryExp_T
A2: =+AuditedAc1!A2 ->  | B2: =+AuditedAc1!B2 ->  | C2: =+AuditedAc1!C2 -> A | D2: =+AuditedAc1!D2 -> A | E2: =IF(Interim!A11="Statement 1A","N","L") -> L | F2: =+報表6_其他!$V177 -> 0 | G2: =IF(OR(F2="",F2=0),"",報表6_其他!$B177) ->  | H2: =+報表6_其他!$V178 -> 0 | I2: =IF(OR(H2="",H2=0),"",報表6_其他!$B178) ->  | J2: =+報表6_其他!$V179 -> 0 | K2: =IF(OR(J2="",J2=0),"",報表6_其他!$B179) ->  | L2: =+報表6_其他!$V180 -> 0 | M2: =IF(OR(L2="",L2=0),"",報表6_其他!$B180) ->  | N2: =+報表6_其他!$V181 -> 0 | O2: =IF(OR(N2="",N2=0),"",報表6_其他!$B181) ->  | P2: =+報表6_其他!$V188 -> 0 | Q2: =IF(OR(P2="",P2=0),"",報表6_其他!$B188) ->  | R2: =+報表6_其他!$V189 -> 0 | S2: =IF(OR(R2="",R2=0),"",報表6_其他!$B189) ->  | T2: =+報表6_其他!$V190 -> 0 | U2: =IF(OR(T2="",T2=0),"",報表6_其他!$B190) ->  | V2: =+報表6_其他!$V191 -> 0 | W2: =IF(OR(V2="",V2=0),"",報表6_其他!$B191) ->  | X2: =+報表6_其他!$V192 -> 0 | Y2: =IF(OR(X2="",X2=0),"",報表6_其他!$B192) ->  | Z2: =+報表6_其他!$V199 -> 0 | AA2: =IF(OR(Z2="",Z2=0),"",報表6_其他!$B199) ->  | AB2: =+報表6_其他!$V200 -> 0 | AC2: =IF(OR(AB2="",AB2=0),"",報表6_其他!$B200) ->  | AD2: =+報表6_其他!$V201 -> 0 | AE2: =IF(OR(AD2="",AD2=0),"",報表6_其他!$B201) ->  | AF2: =+報表6_其他!$V202 -> 0 | AG2: =IF(OR(AF2="",AF2=0),"",報表6_其他!$B202) ->  | AH2: =+報表6_其他!$V203 -> 0 | AI2: =IF(OR(AH2="",AH2=0),"",報表6_其他!$B203) ->  | AJ2: =報表3!$Q$36 -> 0
F4: Statement 6_Others | G4: Statement 6_Others | H4: Statement 6_Others | I4: Statement 6_Others | J4: Statement 6_Others | K4: Statement 6_Others | L4: Statement 6_Others | M4: Statement 6_Others | N4: Statement 6_Others | O4: Statement 6_Others | P4: Statement 6_Others | Q4: Statement 6_Others | R4: Statement 6_Others | S4: Statement 6_Others | T4: Statement 6_Others | U4: Statement 6_Others | V4: Statement 6_Others | W4: Statement 6_Others | X4: Statement 6_Others | Y4: Statement 6_Others | Z4: Statement 6_Others | AA4: Statement 6_Others | AB4: Statement 6_Others | AC4: Statement 6_Others | AD4: Statement 6_Others | AE4: Statement 6_Others | AF4: Statement 6_Others | AG4: Statement 6_Others | AH4: Statement 6_Others | AI4: Statement 6_Others | AJ4: Statement 3
F5: New | G5: New | H5: New | I5: New | J5: New | K5: New | L5: New | M5: New | N5: New | O5: New | P5: New | Q5: New | R5: New | S5: New | T5: New | U5: New | V5: New | W5: New | X5: New | Y5: New | Z5: New | AA5: New | AB5: New | AC5: New | AD5: New | AE5: New | AF5: New | AG5: New | AH5: New | AI5: New | AJ5: New
A8: Remarks
A9: note 1: | B9: data to be filled in by MS
A10: Auto: | B10: Auto calculation
A11: blank : | B11: column not being used in 2012/13
A12: new : | B12: new column added in 2012/13

Sheet 學校名稱 (hidden)
A1: =TRIM(CONCATENATE("學校名稱 : ",IF(ISBLANK(附件一!$C$7),A$15,LEFT($A$15,$E$34)))) -> 學校名稱 : ________________________________________________________________________
A2: =IF(ISBLANK(附件一!$C$7),"",IF(E$34<$B$20,CONCATENATE(" ",TRIM(RIGHT($A$15,$B$20-E$34))),"")) -> 
A4: =TRIM(CONCATENATE("學校名稱 : ",IF(ISBLANK(附件一!$C$7),A$15,LEFT($A$15,F$34)))) -> 學校名稱 : ________________________________________________________________________
A5: =IF(ISBLANK(附件一!$C$7),"",IF(F$34<$B$20,CONCATENATE(" ",TRIM(RIGHT($A$15,$B$20-F$34))),"")) -> 
A7: =TRIM(CONCATENATE("學校名稱 : ",IF(ISBLANK(附件一!$C$7),A$15,LEFT($A$15,G$34)))) -> 學校名稱 : ________________________________________________________________________
A8: =IF(ISBLANK(附件一!$C$7),"",IF(G$34<$B$20,CONCATENATE(" ",TRIM(RIGHT($A$15,$B$20-G$34))),"")) -> 
A15: =TRIM(CONCATENATE(IF(ISBLANK(附件一!C7)," ________________________________________________________________________ ",附件一!C7),IF(ISBLANK(附件一!C15),"",(" ("&附件一!C15&")")))) -> ________________________________________________________________________
D17: Statement | E17: 1 | F17: 1A | G17: 3
D18: Maximum | E18: 70 | F18: 75 | G18: 65
B19: Length | D19: Start | E19: =IF($B$20<=E$18,$B$20,E$18-30) -> 40 | F19: =IF($B$20<=F$18,$B$20,F$18-30) -> 72 | G19: =IF($B$20<=G$18,$B$20,G$18-30) -> 35
B20: =LEN(A15) -> 72 | E20: =IF($B$20<=E$18,$B$20,IF(ISERROR(SEARCH(" ",$A$15,E19+1)),E19,IF(SEARCH(" ",$A$15,E19+1)>E$18,E19,SEARCH(" ",$A$15,E19+1)))) -> 40 | F20: =IF($B$20<=F$18,$B$20,IF(ISERROR(SEARCH(" ",$A$15,F19+1)),F19,IF(SEARCH(" ",$A$15,F19+1)>F$18,F19,SEARCH(" ",$A$15,F19+1)))) -> 72 | G20: =IF($B$20<=G$18,$B$20,IF(ISERROR(SEARCH(" ",$A$15,G19+1)),G19,IF(SEARCH(" ",$A$15,G19+1)>G$18,G19,SEARCH(" ",$A$15,G19+1)))) -> 35
E21: =IF($B$20<=E$18,$B$20,IF(ISERROR(SEARCH(" ",$A$15,E20+1)),E20,IF(SEARCH(" ",$A$15,E20+1)>E$18,E20,SEARCH(" ",$A$15,E20+1)))) -> 40 | F21: =IF($B$20<=F$18,$B$20,IF(ISERROR(SEARCH(" ",$A$15,F20+1)),F20,IF(SEARCH(" ",$A$15,F20+1)>F$18,F20,SEARCH(" ",$A$15,F20+1)))) -> 72 | G21: =IF($B$20<=G$18,$B$20,IF(ISERROR(SEARCH(" ",$A$15,G20+1)),G20,IF(SEARCH(" ",$A$15,G20+1)>G$18,G20,SEARCH(" ",$A$15,G20+1)))) -> 35
E22: 40 | F22: 72 | G22: 35
E23: 40 | F23: 72 | G23: 35
E24: 40 | F24: 72 | G24: 35
E25: 40 | F25: 72 | G25: 35
E26: 40 | F26: 72 | G26: 35
E27: 40 | F27: 72 | G27: 35
E28: 40 | F28: 72 | G28: 35
E29: 40 | F29: 72 | G29: 35
E30: 40 | F30: 72 | G30: 35
E31: 40 | F31: 72 | G31: 35
E32: 40 | F32: 72 | G32: 35
E33: 40 | F33: 72 | G33: 35
E34: 40 | F34: 72 | G34: 35

Sheet 程序指引
B2: 使用 Excel 模板輸入資料的程序／指引
B4: 步驟 | C4: 程序／應注意事項
B6: 1 | C6: 在附件一的首頁輸入學校的基本資料
C7: - 為方便學校搜尋學校名稱，學校可先從“辦學團體名稱”（項目1）的下拉式選單中選擇所屬辦學團體名稱(可選項目)。根據你的選擇，只有該辦學團體的學校會顯示在“學校名稱”(項目2)的下拉式選單中。學校可選擇直接到項目2。
C8: - 從“學校名稱”(項目 2) 的下拉式選單中選擇所屬學校後，根據你的選擇，項目3會顯示出學校編號。請核對學校編號是否正確。
C9: - 在相同的學校編號下設有分校的學校，請在“分校識別碼”(項目 4) 的儲存格填入有關分校(請選擇“B”、“C”、“D”等，以識別總校以外的每一所分校)。同時，亦請填寫“分校名稱”(項目 5) 的儲存格。
C10: - 所有在“學校類別”(項目 6) 欄下的儲存格均為必須填寫項目。 請從下拉式選單中作適當的選擇。
C11: - 在申報年度內有開辦非本地課程的學校，請在項目 7 選擇“是”，沒有開辦則請選擇“否”。 然後請填寫報表1 (供沒有開辦非本地課程的學校使用) 或 報表1A (供有開辦非本地課程的學校使用)。
C12: - 請在項目8 填上申報周期開始／結束日，有關日期會自動複製至其他報表。
B13: 2 | C13: 校監證明書及核數師報告
C14: - 所有學校必須填寫此兩份工作表。提交教育局的硬複本，必須經校監／核數師簽署並蓋上學校／核數師印鑑，而軟複本則毋須簽署／蓋印。
B16: 3 | C16: 報表 1 至 7
C17: - 只有某些儲存格是可供修改。 其他儲存格已被鎖定為不可變更，其值是預設的或將根據你在可編輯的儲存格內輸入的資料自動計算。為方便識別，可編輯的儲存格是以藍色陰影凸顯的。如有必要，學校可以取消可編輯儲存格的陰影。
C18: - 學校可根據學校報告的要求在可編輯的附註（或註解）欄輸入相關附註／註解。
C19: - 請按次序由 (a) 至 (d) 填寫報表 1／1A、2 至 6：
C20: (a) 填寫報表 6_FA 及 6_其他。
C21: (b) 填寫報表 3、 4 及 5。
C22: (c) 填寫報表 1／1A。
C23: (d) 填寫報表 2。
B28: 報表編號 | C28: 一般指引
B30: 全部 | C30: - 對於顯示 “-” 的欄位，毋須輸入資料，這些欄位會因應其他欄位輸入的資料而自動更新。
C31: - 在所有的報表，學校可以根據學校報告的要求隱藏不適用的列。
B32: 1／1A | C32: - 請只填寫報表 1 (供只開辦本地課程班級的學校使用) 或報表 1A (供同時開辦本地及非本地課程班級的學校使用)。
C33: - 請勿同時填寫報表 1 及 1A。
B35: 2 | C35: - “其他非流動資產”、“其他流動資產”、“其他流動負債”、“儲備金”及“其他長期負債” 均需要列出明細。 請就每個分項目提供說明，以 50 字為限。
C36: - 每個項目最多可輸入10個分項目。 在適當情況下，請把餘下者合併為第十分項。
B37: 3 | C37: - 這報表只適用於收取幼兒中心資助計劃津貼或優化幼兒服務人員津貼的幼稚園暨幼兒中心。
B39: 4 | C39: - 在報表 5中未有註明的商業活動，請在K欄輸入所需資料。 若需輸入多於一項商業活動，可取消隱藏L欄至U欄並輸入有關資料。請就新加的每一項商業活動作扼要說明(於第12列)，字數以 50 字為限。
C40: - 在“其他開支”欄下加入的新項目，均須加以說明，每項說明的字數請以 50 字為限。
B41: 5 | C41: - 請就所加入的每一項開支提供說明，每項字數以 50 字為限。
B43: 6_FA | C43: - 在報表 7_FA未有註明的固定資產類別，請在 D 欄輸入所需資料，若需輸入多於一項固定資產，可取消隱藏E欄至M欄並輸入有關資料。請就每一項固定資產作扼要說明，字數以50字為限。
B45: 6_其他 | C45: - 就每一項被列在“添置的固定資產詳細報表”(註解 2) 、“與有關連人士或機構團體的交易”(註解 4) 及 “轉撥到儲備金／(由儲備金轉撥)”(註解 6) 的資料，請提供說明，以 50 字為限。
C46: - 在“其他支出”(註解 3) 及“其他收入”(註解 5) 下加入的新項目，必須加以說明，每項說明的字數應以 50 字為限。
B48: 註： 如有需要，教育局可能就那些在報表內合併歸入"其他"的項目，要求學校提供進一步資料。

Sheet 附件一
E1: 附件一
A4: (1) | B4: 辦學團體名稱 :
B5: [可選項目 ]
A7: (2) | B7: 學校名稱：
A11: (3) | B11: 學校編號 : | C11: =IF(ISBLANK(C7),"",VLOOKUP(C7,KG!$A$4:$B$2002,2,0)) -> 
A13: (4) | B13: 分校識別碼 : | D13: B | E13: C | F13: D | G13: E | H13: F | I13: G | J13: H | K13: I | L13: J | M13: K | N13: L | O13: M | P13: N | Q13: O | R13: P | S13: Q | T13: R | U13: S | V13: T | W13: U | X13: V | Y13: W | Z13: X | AA13: Y | AB13: Z
A15: (5) | B15: 分校名稱：
A17: (6) | B17: 學校類別 :
B19: *幼稚園/幼稚園暨幼兒中心 | D19: 幼稚園 | E19: 幼稚園暨幼兒中心
B20: *兌現/非兌現學券計劃資助 | D20: 兌現學券計劃資助 | E20: 非兌現學券計劃資助
B21: *參加/非參加幼兒中心資助計劃 | D21: 參加幼兒中心資助計劃 | E21: 非參加幼兒中心資助計劃
B22: *獲發/非獲發優化幼兒服務人員津貼 | D22: 獲發優化幼兒服務人員津貼 | E22: 非獲發優化幼兒服務人員津貼
B23: *獲發還/非獲發還租金 | D23: 獲發還租金 | E23: 非獲發還租金
A25: (7) | B25: 有/沒有非本地課程 :
B27: 非本地課程 : | D27: 有 | E27: 沒有
C28: =IF(ISBLANK(C27),"",CONCATENATE("請填寫報表 ",IF(C27=D27,"1A","1"),"而並非報表 ",IF(C27=D27,"1","1A"),".")) -> 
A30: (8) | B30: 申報周期 :
B32: 開始日期 : | C32: 例如:1/9/2017 | E32: 2017-2018
B33: 結束日期 : | C33: 例如:31/8/2018
B36: 報表編號 | C36: 內容 | E36: 頁數
B37: - | C37: 校監證明書 | E37: 2
B38: - | C38: 核數師報告 | E38: 3
B39: 1 | C39: 收支帳(適用於没有填寫報表1A的幼稚園/幼稚園暨幼兒中心) | E39: 4 - 5
B40: 1A | C40: 收支帳(適用於兌現學券計劃資助並同時開辦本地及非本地課程的幼稚園/幼稚園暨幼兒中心) | E40: 6 - 7
B41: 2 | C41: 資產負債表 | E41: 8
B42: 3 | C42: 幼兒中心資助計劃及優化幼兒服務人員津貼報表(如適用) | E42: 9
B45: 4 | C45: 商業活動報表 | E45: 10
B46: 5 | C46: 捐款收入報表 | E46: 11
B47: 6 | C47: 帳目註解 | E47: 12 - 16
B49: 註 :
B50: 在填寫各報表前請參閱"使用 Excel模板輸入資料程序 / 指引"。
A54: - 1 -

Sheet 校鑑證明書
A1: 學校名稱 : | B1: =IF(附件一!C7="","",附件一!C7) -> 
A4: =附件一!C33 -> 例如:31/8/2018 | B4: =附件一!E33 -> 0
B5: =附件一!E33 -> 0
A8: =CONCATENATE("截至 ",IF(NOT(ISNUMBER(附件一!C32)),"_____________________",UPPER(TEXT(附件一!C33,"yyyy年 m月d日"))),"的年度帳目") -> 截至 _____________________的年度帳目
A11: 校監證明書
B15: =CONCATENATE("本人特此證明，有關本校截至 ",IF(NOT(ISNUMBER(附件一!C32))," __________________________ ",TEXT(附件一!C33,"yyyy年m月d日"))," 的年度帳目，") -> 本人特此證明，有關本校截至 __________________________ 的年度帳目，
A17: =CONCATENATE("其中", IF(ISBLANK(附件一!C27)," *報表 1 / 1A 、 ",IF(附件一!C27="有"," 報表 1A 、 "," 報表 1、")),"2、3、4、5 及 6 所載的資料及闡釋，均屬正確無誤。") -> 其中 *報表 1 / 1A 、 2、3、4、5 及 6 所載的資料及闡釋，均屬正確無誤。
E32: 簽署 :
F33: (校監)
E35: 校監姓名 :
E37: 日期 :
A42: =IF(ISBLANK(附件一!C27),"* 請刪去不適用者","") -> * 請刪去不適用者
A48: - 2 -

Sheet 核數師報告
A1: 學校名稱 : | B1: =校鑑證明書!B1 -> 
A4: =附件一!C33 -> 例如:31/8/2018 | B4: =附件一!E33 -> 0
A6: =校鑑證明書!A8 -> 截至 _____________________的年度帳目
A9: 核數師報告
F32: 簽署 :
G33: ( 核數師 )
F34: 核數師姓名 :
F36: 日期 :
A48: - 3 -

Sheet 報表1
A2: 報表1
E3: (二頁的第一頁)
A5: (i)兌現學券計劃資助及∕或(ii)收取(a)幼兒中心資助計劃津貼、及∕或(b)優化幼兒服務人員津貼，及∕或(c)租金發還的幼稚園∕幼稚園暨幼兒中心適用
A6: =IF(附件一!C27="有","(至於兌現學券計劃資助並同時開辦本地及非本地課程班級的幼稚園∕幼稚園暨幼兒中心，則應填寫報表1A。)","") -> 
A8: =學校名稱!A1 -> 學校名稱 : ________________________________________________________________________
A9: =學校名稱!A2 -> 
A11: =CONCATENATE("學校類別 : ",IF(ISBLANK(附件一!C19),"*幼稚園 /幼稚園暨幼兒中心",附件一!C19)) -> 學校類別 : *幼稚園 /幼稚園暨幼兒中心 | D11: =IF(AND(附件一!$C$19="",附件一!$C$20=""),"[*請删去不適用者]","") -> [*請删去不適用者]
A12: =CONCATENATE(" ",IF(ISBLANK(附件一!C20),"*兌現/非兌現學券計劃資助",附件一!C20)) -> *兌現/非兌現學券計劃資助
A15: =CONCATENATE("截至 ",IF(NOT(ISNUMBER(附件一!C32)),"______________________________",UPPER(TEXT(附件一!C33,"yyyy年m月d日"))),"為止的年度收支帳") -> 截至 ______________________________為止的年度收支帳
C18: 本年度 | D18: 上年度 | E18: 附註 | K18: maximum | L18: =MAX(L21:L520)*200 -> 0
B20: 元 | C20: 元 | D20: 元 | E20: (或註解) | K20: Original | L20: Integer | M20: Decimal | N20: Fake No. | O20: Rank | P20: Adj. Rank | Q20: Adjustment | R20: Final
A21: 收入
A22: 學費
A23: - 來自家長 | I23: FeeIncomeParent | J23: =ROW() -> 23 | K23: =B23 -> 0 | L23: =ROUND(K23,0) -> 0 | M23: =K23-L23 -> 0 | N23: =ABS(M23)*L$18+L23 -> 0 | O23: =RANK(N23,$N$23:$N$35) -> 1 | P23: =O23+COUNTIF($O$23:O23,O23)-1 -> 1 | Q23: =IF(P23<=ABS(Q$36),IF(M23<0,-1,1),0) -> 0 | R23: =Q23+L23 -> 0
A24: - 來自學券計劃 | I24: FeeIncomePEVS | J24: =ROW() -> 24 | K24: =B24 -> 0 | L24: =ROUND(K24,0) -> 0 | M24: =K24-L24 -> 0 | N24: =ABS(M24)*L$18+L24 -> 0 | O24: =RANK(N24,$N$23:$N$35) -> 1 | P24: =O24+COUNTIF($O$23:O24,O24)-1 -> 2 | Q24: =IF(P24<=ABS(Q$36),IF(M24<0,-1,1),0) -> 0 | R24: =Q24+L24 -> 0
A25: - 來自幼稚園及幼兒中心學費減免計劃 | I25: FeeIncomeKCFRS | J25: =ROW() -> 25 | K25: =B25 -> 0 | L25: =ROUND(K25,0) -> 0 | M25: =K25-L25 -> 0 | N25: =ABS(M25)*L$18+L25 -> 0 | O25: =RANK(N25,$N$23:$N$35) -> 1 | P25: =O25+COUNTIF($O$23:O25,O25)-1 -> 3 | Q25: =IF(P25<=ABS(Q$36),IF(M25<0,-1,1),0) -> 0 | R25: =Q25+L25 -> 0
A26: 減：
A27: 校方給予學生的學費減免額 | I27: FeeRemssion | J27: =ROW() -> 27 | K27: =B27 -> 0 | L27: =ROUND(K27,0) -> 0 | M27: =K27-L27 -> 0 | N27: =ABS(M27)*L$18+L27 -> 0 | O27: =RANK(N27,$N$23:$N$35) -> 1 | P27: =O27+COUNTIF($O$23:O27,O27)-1 -> 4 | Q27: =IF(P27<=ABS(Q$36),IF(M27<0,-1,1),0) -> 0 | R27: =Q27+L27 -> 0
C28: =SUM(B23:B25)-B27 -> 0 | D28: =+SUM(D23:D25)-D27 -> 0
A29: 根據幼兒中心資助計劃獲發的資助 | E29: 須與報表3所列數額相符 | I29: KCSS | J29: =ROW() -> 29 | K29: =C29 -> 0 | L29: =ROUND(K29,0) -> 0 | M29: =K29-L29 -> 0 | N29: =ABS(M29)*L$18+L29 -> 0 | O29: =RANK(N29,$N$23:$N$35) -> 1 | P29: =O29+COUNTIF($O$23:O29,O29)-1 -> 5 | Q29: =IF(P29<=ABS(Q$36),IF(M29<0,-1,1),0) -> 0 | R29: =Q29+L29 -> 0
A31: 優化幼兒服務人員津貼 | I31: SME | J31: =ROW() -> 31 | K31: =C31 -> 0 | L31: =ROUND(K31,0) -> 0 | M31: =K31-L31 -> 0 | N31: =ABS(M31)*L$18+L31 -> 0 | O31: =RANK(N31,$N$23:$N$35) -> 1 | P31: =O31+COUNTIF($O$23:O31,O31)-1 -> 6 | Q31: =IF(P31<=ABS(Q$36),IF(M31<0,-1,1),0) -> 0 | R31: =Q31+L31 -> 0
A32: 獲發還的地租 | I32: GovRentReimbur | J32: =ROW() -> 32 | K32: =C32 -> 0 | L32: =ROUND(K32,0) -> 0 | M32: =K32-L32 -> 0 | N32: =ABS(M32)*L$18+L32 -> 0 | O32: =RANK(N32,$N$23:$N$35) -> 1 | P32: =O32+COUNTIF($O$23:O32,O32)-1 -> 7 | Q32: =IF(P32<=ABS(Q$36),IF(M32<0,-1,1),0) -> 0 | R32: =Q32+L32 -> 0
A33: 獲發還的差餉 | I33: RatesReimbur | J33: =ROW() -> 33 | K33: =C33 -> 0 | L33: =ROUND(K33,0) -> 0 | M33: =K33-L33 -> 0 | N33: =ABS(M33)*L$18+L33 -> 0 | O33: =RANK(N33,$N$23:$N$35) -> 1 | P33: =O33+COUNTIF($O$23:O33,O33)-1 -> 8 | Q33: =IF(P33<=ABS(Q$36),IF(M33<0,-1,1),0) -> 0 | R33: =Q33+L33 -> 0
A34: 獲發還的租金 | I34: RentReimbur | J34: =ROW() -> 34 | K34: =C34 -> 0 | L34: =ROUND(K34,0) -> 0 | M34: =K34-L34 -> 0 | N34: =ABS(M34)*L$18+L34 -> 0 | O34: =RANK(N34,$N$23:$N$35) -> 1 | P34: =O34+COUNTIF($O$23:O34,O34)-1 -> 9 | Q34: =IF(P34<=ABS(Q$36),IF(M34<0,-1,1),0) -> 0 | R34: =Q34+L34 -> 0
A35: 其他收入(註1) | C35: =IF(附件一!$C$27="沒有",+報表6_其他!D259,0) -> 0 | D35: =IF(附件一!$C$27="沒有",+報表6_其他!H259,0) -> 0 | E35: 須與報表6 (項目5) 所列數額相符 | I35: OthersNoBreakdown | J35: =ROW() -> 35 | K35: =C35 -> 0 | L35: =ROUND(K35,0) -> 0 | R35: =Q35+L35 -> 0
A36: 總收入(a) | C36: =SUM(C28:C35) -> 0 | D36: =SUM(D28:D35) -> 0 | I36: TotalIncome | J36: =ROW() -> 36 | K36: =SUM(K23:K25,K29:K35)-K27 -> 0 | L36: =SUM(L23:L25,L29:L35)-L27 -> 0 | M36: =ROUND(SUM(M23:M35),2) -> 0 | Q36: =R75-L36 -> 0 | R36: =SUM(R23:R25,R29:R35,-R27) -> 0
A37: 開支(註2)
A38: 薪金
A39: -教學人員(包括校長) | I39: Salary_T | J39: =ROW() -> 39 | K39: =C39 -> 0 | L39: =INT(K39) -> 0 | M39: =ROUND(K39,2)-L39 -> 0 | N39: =M39*L$18+L39 -> 0 | O39: =RANK(N39,$N$39:$N$61) -> 1 | P39: =O39+COUNTIF($O$39:O39,O39)-1 -> 1 | Q39: =IF(P39<=Q$62,1,0) -> 0 | R39: =Q39+L39 -> 0
A40: -非教學人員 | I40: Salary_NT | J40: =ROW() -> 40 | K40: =C40 -> 0 | L40: 0 | M40: =ROUND(K40,2)-L40 -> 0 | N40: =M40*L$18+L40 -> 0 | O40: =RANK(N40,$N$39:$N$61) -> 1 | P40: =O40+COUNTIF($O$39:O40,O40)-1 -> 2 | Q40: =IF(P40<=Q$62,1,0) -> 0 | R40: 0
A41: 僱主對公積金計劃的供款
A42: -教學人員(包括校長) | I42: PFund_T | J42: =ROW() -> 42 | K42: =C42 -> 0 | L42: =INT(K42) -> 0 | M42: =ROUND(K42,2)-L42 -> 0 | N42: =M42*L$18+L42 -> 0 | O42: =RANK(N42,$N$39:$N$61) -> 1 | P42: =O42+COUNTIF($O$39:O42,O42)-1 -> 3 | Q42: =IF(P42<=Q$62,1,0) -> 0 | R42: =Q42+L42 -> 0
A43: -非教學人員 | I43: PFund_NT | J43: =ROW() -> 43 | K43: 0 | L43: 0 | M43: 0 | N43: =M43*L$18+L43 -> 0 | O43: 1 | P43: =O43+COUNTIF($O$39:O43,O43)-1 -> 4 | Q43: 0 | R43: 0
A44: 遣散費∕長期服務金
A45: -教學人員(包括校長) | I45: LongServicePay_T | J45: =ROW() -> 45 | K45: 0 | L45: 0 | M45: 0 | N45: =M45*L$18+L45 -> 0 | O45: 1 | P45: =O45+COUNTIF($O$39:O45,O45)-1 -> 5 | Q45: 0 | R45: 0
A46: -非教學人員 | I46: LongServicePay_NT | J46: =ROW() -> 46 | K46: 0 | L46: 0 | M46: 0 | N46: 0 | O46: 1 | P46: =O46+COUNTIF($O$39:O46,O46)-1 -> 6 | Q46: 0 | R46: 0
A47: 校監薪酬 | I47: SupervisorPay | J47: =ROW() -> 47 | K47: 0 | L47: 0 | M47: 0 | N47: 0 | O47: 1 | P47: =O47+COUNTIF($O$39:O47,O47)-1 -> 7 | Q47: 0 | R47: 0
A48: 地租 | I48: GovRent | J48: =ROW() -> 48 | K48: 0 | L48: 0 | M48: 0 | N48: 0 | O48: 1 | P48: =O48+COUNTIF($O$39:O48,O48)-1 -> 8 | Q48: 0 | R48: 0
A49: 差餉 | I49: Rates | J49: =ROW() -> 49 | K49: 0 | L49: 0 | M49: 0 | N49: 0 | O49: 1 | P49: =O49+COUNTIF($O$39:O49,O49)-1 -> 9 | Q49: 0 | R49: 0
A50: 租金 | I50: Rental | J50: =ROW() -> 50 | K50: 0 | L50: 0 | M50: 0 | N50: 0 | O50: 1 | P50: =O50+COUNTIF($O$39:O50,O50)-1 -> 10 | Q50: 0 | R50: 0
A51: 折舊
A52: -校舍 | C52: =IF(附件一!$C$27="沒有",+報表6_FA!C32,0) -> 0 | E52: 須與報表6 (項目1) 所列數額相符 | I52: DeprecPremises | J52: =ROW() -> 52 | K52: =C52 -> 0 | L52: =ROUND(K52,0) -> 0 | R52: 0
A53: -家具/設備/裝置/器材 | C53: =IF(附件一!$C$27="沒有",+報表6_FA!E32,0) -> 0 | I53: DeprecFurniture | J53: =ROW() -> 53 | K53: =C53 -> 0 | L53: =ROUND(K53,0) -> 0 | R53: 0
A54: -電腦硬件及軟件 | C54: =IF(附件一!$C$27="沒有",+報表6_FA!G32,0) -> 0 | I54: DeprecComputer | J54: =ROW() -> 54 | K54: =C54 -> 0 | L54: =ROUND(K54,0) -> 0 | R54: 0
A55: -其他 | C55: =IF(附件一!$C$27="沒有",+報表6_FA!AC32-SUM(報表6_FA!C32:G32),0) -> 0 | I55: DeprecOthers | J55: =ROW() -> 55 | K55: =C55 -> 0 | L55: =ROUND(K55,0) -> 0 | R55: 0
A56: 大型修葺及維修 (每項達8,000元或以上的工程) | I56: MajorRepairs | J56: =ROW() -> 56 | K56: 0 | L56: 0 | M56: 0 | N56: =M56*L$18+L56 -> 0 | O56: 1 | P56: =O56+COUNTIF($O$39:O56,O56)-1 -> 11 | Q56: 0 | R56: 0
A58: 小型修葺及維修 (每項少於8,000元的工程) | I58: MinorRepairs | J58: =ROW() -> 58 | K58: 0 | L58: 0 | M58: 0 | N58: =M58*L$18+L58 -> 0 | O58: 1 | P58: =O58+COUNTIF($O$39:O58,O58)-1 -> 12 | Q58: 0 | R58: 0
A59: $8,000 each)
A60: 核數費 | I60: AuditFee | J60: =ROW() -> 60 | K60: 0 | L60: 0 | M60: 0 | N60: =M60*L$18+L60 -> 0 | O60: 1 | P60: =O60+COUNTIF($O$39:O60,O60)-1 -> 13 | Q60: 0 | R60: 0
A61: 其他支出(註3) | C61: =IF(附件一!$C$27="沒有",+報表6_其他!D135,0) -> 0 | D61: =IF(附件一!$C$27="沒有",+報表6_其他!H135,0) -> 0 | E61: 須與報表6 (項目3) 所列數額相符 | K61: =C61 -> 0 | L61: =ROUND(K61,0) -> 0 | R61: 0
A62: 總開支(b) | C62: =SUM(C39:C61) -> 0 | D62: =SUM(D39:D61) -> 0 | I62: TotalExpense | J62: =ROW() -> 62 | K62: =SUM(K39:K61) -> 0 | L62: =SUM(L39:L61) -> 0 | M62: =SUM(M39:M61) -> 0 | Q62: =R78-L62 -> 0 | R62: =SUM(R39:R61) -> 0
E65: (轉下頁)
A66: - 4 -
A71: =A2 -> 報表1
E72: (二頁的第二頁)
A74: =A8 -> 學校名稱 : ________________________________________________________________________ | K74: Total Income
A75: =A9 ->  | K75: =C36 -> 0 | L75: =ROUND(K75,0) -> 0 | M75: =K75-L75 -> 0 | N75: =ABS(M75)*L$18+L75 -> 0 | O75: =RANK(N75,N$75:N$78) -> 1 | P75: =O75+COUNTIF(O$75:O75,O75)-1 -> 1 | Q75: =IF(P75<=ABS(Q$80),IF(M75<0,-1,1),0) -> 0 | R75: =Q75+L75 -> 0
K77: Total Expenditure
C78: 本年度 | D78: 上年度 | E78: 附註 | K78: =C62 -> 0 | L78: =ROUND(K78,0) -> 0 | M78: =K78-L78 -> 0 | N78: =ABS(M78)*L$18+L78 -> 0 | O78: =RANK(N78,N$75:N$78) -> 1 | P78: =O78+COUNTIF(O$75:O78,O78)-1 -> 2 | Q78: =IF(P78<=ABS(Q$80),IF(M78<0,-1,1),0) -> 0 | R78: =Q78+L78 -> 0
B80: 元 | C80: 元 | D80: 元 | E80: (或註解) | Q80: =R82-L75+L78 -> 0
A82: 商業活動前的盈餘/(虧損)[(a)減(b)項] | C82: =C36-C62 -> 0 | D82: =D36-D62 -> 0 | K82: =C82 -> 0 | L82: =INT(K82) -> 0 | M82: =ROUND(K82,2)-L82 -> 0 | N82: =M82*L$18+L82 -> 0 | O82: =RANK(N82,N$82:N$88) -> 1 | P82: =O82+COUNTIF(O$82:O82,O82)-1 -> 1 | Q82: =IF(P82<=ABS(Q$90),1,0) -> 0 | R82: =Q82+L82 -> 0
A83: 商業活動的利潤 / (虧損)(註4) | C83: =IF(附件一!$C$27="沒有",報表4!AS40,0) -> 0 | E83: 須與報表4所列數額相符 | I83: SurplusDefTA | J83: =ROW() -> 83 | K83: =C83 -> 0 | L83: =ROUND(K83,0) -> 0 | R83: =Q83+L83 -> 0
A84: 捐款收入(註5) | C84: =IF(附件一!$C$27="沒有",報表5!B40,0) -> 0 | D84: =IF(附件一!$C$27="沒有",報表5!C40,0) -> 0 | E84: 須與報表5所列數額相符 | I84: DonationsReceived | J84: =ROW() -> 84 | K84: 0 | L84: =ROUND(K84,0) -> 0 | R84: 0
A85: 本年度的盈餘∕(虧損) | C85: =SUM(C82:C84) -> 0 | D85: =SUM(D82:D84) -> 0
A86: 上年度結轉的累積盈餘∕(虧損) | C86: =+D90 -> 0 | K86: 0 | L86: =ROUND(K86,0) -> 0 | R86: 0
A87: 往年度調整 (請說明性質) | I87: =Interim!FW1 -> PriorYearAdj | J87: =ROW() -> 87 | K87: 0 | L87: =INT(K87) -> 0 | M87: =ROUND(K87,2)-L87 -> 0 | N87: =M87*L$18+L87 -> 0 | O87: =RANK(N87,N$82:N$88) -> 1 | P87: =O87+COUNTIF(O$82:O87,O87)-1 -> 2 | Q87: =IF(P87<=ABS(Q$90),1,0) -> 0 | R87: 0
A88: 轉撥到儲備金/(由儲備金轉撥)(註6) | C88: =IF(附件一!$C$27="沒有",+報表6_其他!D277,0) -> 0 | D88: =IF(附件一!$C$27="沒有",+報表6_其他!H277,0) -> 0 | E88: 須與報表6 (項目6) 所列數額相符 | K88: 0 | L88: =ROUND(K88,0) -> 0 | R88: 0
A90: 結轉入下年度的累積盈餘∕(虧損) | C90: =SUM(C85:C87)-SUM(C88) -> 0 | D90: =SUM(D85:D87)-SUM(D88) -> 0 | K90: =SUM(K82:K89) -> 0 | L90: =SUM(L82:L89) -> 0 | M90: =SUM(M82:M89) -> 0 | Q90: =ROUND(C90,0)-L90 -> 0 | R90: =SUM(R82:R89) -> 0
A93: 註:
A94: 1. 請於報表6提供「其他收入」的明細表。
A96: 2. 請遵守開支範圍的主導原則(附件三)。
A98: 3. 請於報表6提供「其他支出」的明細表。
A100: 4. 如有售賣教育用品及提供收費服務等商業活動的收入，請於報表5詳細說明有關收入及成本。
A102: 5. 如有收取捐款，請於報表5詳細說明捐款收入及相關開支。
A104: 6. 請於報表6詳列有關轉撥到儲備金/(由儲備金轉撥)的性質，例如用於學校教育發展。
A134: - 5 -

Sheet 報表1A
A1: 報表1A
F3: (二頁的第一頁)
A5: 兌現學券計劃資助並同時開辦本地及非本地課程班級的幼稚園∕幼稚園暨幼兒中心適用
A6: =IF(附件一!C27="有","(至於參加學券計劃並同時開辦本地及非本地課程班級的幼稚園/幼稚園暨幼兒中心，則應填寫報表1A。)","") -> 
A8: =報表1!A8 -> 學校名稱 : ________________________________________________________________________
A9: =報表1!A9 -> 
A11: =報表1!A11 -> 學校類別 : *幼稚園 /幼稚園暨幼兒中心 | D11: =IF(AND(附件一!$C$19=""),"[*請删去不適用者]","") -> [*請删去不適用者]
A15: =報表1!A15 -> 截至 ______________________________為止的年度收支帳
B18: 本年度 | E18: 上年度 | F18: 附註
B19: 元 | E19: 元 | F19: (或註解) | O19: maximum | P19: =MAX(P22:P522)*200 -> 0 | X19: maximum | Y19: =MAX(Y22:Y522)*200 -> 0
B20: 本地課程 班級 | C20: 非本地課程 班級 | D20: 總計 | E20: 總計
P21: Local Curriculum | Y21: Non-Local Curriculum
O22: Original | P22: Integer | Q22: Decimal | R22: Fake No. | S22: Rank | T22: Adj. Rank | U22: Adjustment | V22: Final | X22: Original | Y22: Integer | Z22: Decimal | AA22: Fake No. | AB22: Rank | AC22: Adj. Rank | AD22: Adjustment | AE22: Final
A23: 收入
A24: 學費 | B24: 0 | C24: 0
A25: - 來自家長 | D25: =B25+C25 -> 0 | I25: FeeIncomeParent | J25: =ROW() -> 25 | O25: =B25 -> 0 | P25: =ROUND(O25,0) -> 0 | Q25: =O25-P25 -> 0 | R25: =ABS(Q25)*P$19+P25 -> 0 | S25: =RANK(R25,R$25:R$36) -> 1 | T25: =S25+COUNTIF(S$25:S25,S25)-1 -> 1 | U25: =IF(T25<=ABS(U$38),IF(Q25<0,-1,1),0) -> 0 | V25: =U25+P25 -> 0 | X25: =C25 -> 0 | Y25: =ROUND(X25,0) -> 0 | Z25: =X25-Y25 -> 0 | AA25: =ABS(Z25)*Y$19+Y25 -> 0 | AB25: =RANK(AA25,AA$25:AA$36) -> 1 | AC25: =AB25+COUNTIF(AB$25:AB25,AB25)-1 -> 1 | AD25: =IF(AC25<=ABS(AD$38),IF(Z25<0,-1,1),0) -> 0 | AE25: =AD25+Y25 -> 0
A26: - 來自學券計劃 | D26: =B26+C26 -> 0 | I26: FeeIncomePEVS | J26: =ROW() -> 26 | O26: =B26 -> 0 | P26: =ROUND(O26,0) -> 0 | Q26: =O26-P26 -> 0 | R26: =ABS(Q26)*P$19+P26 -> 0 | S26: =RANK(R26,R$25:R$36) -> 1 | T26: =S26+COUNTIF(S$25:S26,S26)-1 -> 2 | U26: =IF(T26<=ABS(U$38),IF(Q26<0,-1,1),0) -> 0 | V26: =U26+P26 -> 0 | X26: =C26 -> 0 | Y26: =ROUND(X26,0) -> 0 | Z26: =X26-Y26 -> 0 | AA26: =ABS(Z26)*Y$19+Y26 -> 0 | AB26: =RANK(AA26,AA$25:AA$36) -> 1 | AC26: =AB26+COUNTIF(AB$25:AB26,AB26)-1 -> 2 | AD26: =IF(AC26<=ABS(AD$38),IF(Z26<0,-1,1),0) -> 0 | AE26: =AD26+Y26 -> 0
A27: - 來自幼稚園及幼兒中心學費減免計劃 | D27: =B27+C27 -> 0 | I27: FeeIncomeKCFRS | J27: =ROW() -> 27 | O27: =B27 -> 0 | P27: =ROUND(O27,0) -> 0 | Q27: =O27-P27 -> 0 | R27: =ABS(Q27)*P$19+P27 -> 0 | S27: =RANK(R27,R$25:R$36) -> 1 | T27: =S27+COUNTIF(S$25:S27,S27)-1 -> 3 | U27: =IF(T27<=ABS(U$38),IF(Q27<0,-1,1),0) -> 0 | V27: =U27+P27 -> 0 | X27: =C27 -> 0 | Y27: =ROUND(X27,0) -> 0 | Z27: =X27-Y27 -> 0 | AA27: =ABS(Z27)*Y$19+Y27 -> 0 | AB27: =RANK(AA27,AA$25:AA$36) -> 1 | AC27: =AB27+COUNTIF(AB$25:AB27,AB27)-1 -> 3 | AD27: =IF(AC27<=ABS(AD$38),IF(Z27<0,-1,1),0) -> 0 | AE27: =AD27+Y27 -> 0
A28: 減：
A29: 校方給予學生的學費減免額 | D29: =B29+C29 -> 0 | I29: FeeRemssion | J29: =ROW() -> 29 | O29: =B29 -> 0 | P29: =ROUND(O29,0) -> 0 | Q29: =O29-P29 -> 0 | R29: =ABS(Q29)*P$19+P29 -> 0 | S29: =RANK(R29,R$25:R$36) -> 1 | T29: =S29+COUNTIF(S$25:S29,S29)-1 -> 4 | U29: =IF(T29<=ABS(U$38),IF(Q29<0,-1,1),0) -> 0 | V29: =U29+P29 -> 0 | X29: =C29 -> 0 | Y29: =ROUND(X29,0) -> 0 | Z29: =X29-Y29 -> 0 | AA29: =ABS(Z29)*Y$19+Y29 -> 0 | AB29: =RANK(AA29,AA$25:AA$36) -> 1 | AC29: =AB29+COUNTIF(AB$25:AB29,AB29)-1 -> 4 | AD29: =IF(AC29<=ABS(AD$38),IF(Z29<0,-1,1),0) -> 0 | AE29: =AD29+Y29 -> 0
B30: =SUM(B25:B27)-B29 -> 0 | C30: =SUM(C25:C27)-C29 -> 0 | D30: =SUM(D25:D27)-D29 -> 0 | E30: =SUM(E25:E27)-E29 -> 0
A31: 根據幼兒中心資助計劃獲發的資助 | D31: =B31+C31 -> 0 | F31: 須與報表3所列數額相符 | I31: KCSS | J31: =ROW() -> 31 | O31: =B31 -> 0 | P31: =ROUND(O31,0) -> 0 | Q31: =O31-P31 -> 0 | R31: =ABS(Q31)*P$19+P31 -> 0 | S31: =RANK(R31,R$25:R$36) -> 1 | T31: =S31+COUNTIF(S$25:S31,S31)-1 -> 5 | U31: =IF(T31<=ABS(U$38),IF(Q31<0,-1,1),0) -> 0 | V31: =U31+P31 -> 0 | X31: =C31 -> 0 | Y31: =ROUND(X31,0) -> 0 | Z31: =X31-Y31 -> 0 | AA31: =ABS(Z31)*Y$19+Y31 -> 0 | AB31: =RANK(AA31,AA$25:AA$36) -> 1 | AC31: =AB31+COUNTIF(AB$25:AB31,AB31)-1 -> 5 | AD31: =IF(AC31<=ABS(AD$38),IF(Z31<0,-1,1),0) -> 0 | AE31: =AD31+Y31 -> 0
A33: 優化幼兒服務人員津貼 | D33: 0 | I33: SME | J33: =ROW() -> 33 | O33: =B33 -> 0 | P33: =ROUND(O33,0) -> 0 | Q33: =O33-P33 -> 0 | R33: =ABS(Q33)*P$19+P33 -> 0 | S33: =RANK(R33,R$25:R$36) -> 1 | T33: =S33+COUNTIF(S$25:S33,S33)-1 -> 6 | U33: =IF(T33<=ABS(U$38),IF(Q33<0,-1,1),0) -> 0 | V33: =U33+P33 -> 0 | X33: =C33 -> 0 | Y33: =ROUND(X33,0) -> 0 | Z33: =X33-Y33 -> 0 | AA33: =ABS(Z33)*Y$19+Y33 -> 0 | AB33: =RANK(AA33,AA$25:AA$36) -> 1 | AC33: =AB33+COUNTIF(AB$25:AB33,AB33)-1 -> 6 | AD33: =IF(AC33<=ABS(AD$38),IF(Z33<0,-1,1),0) -> 0 | AE33: =AD33+Y33 -> 0
A34: 獲發還的地租 | D34: 0 | I34: GovRentReimbur | J34: =ROW() -> 34 | O34: =B34 -> 0 | P34: =ROUND(O34,0) -> 0 | Q34: =O34-P34 -> 0 | R34: =ABS(Q34)*P$19+P34 -> 0 | S34: =RANK(R34,R$25:R$36) -> 1 | T34: =S34+COUNTIF(S$25:S34,S34)-1 -> 7 | U34: =IF(T34<=ABS(U$38),IF(Q34<0,-1,1),0) -> 0 | V34: =U34+P34 -> 0 | X34: =C34 -> 0 | Y34: =ROUND(X34,0) -> 0 | Z34: =X34-Y34 -> 0 | AA34: =ABS(Z34)*Y$19+Y34 -> 0 | AB34: =RANK(AA34,AA$25:AA$36) -> 1 | AC34: =AB34+COUNTIF(AB$25:AB34,AB34)-1 -> 7 | AD34: =IF(AC34<=ABS(AD$38),IF(Z34<0,-1,1),0) -> 0 | AE34: =AD34+Y34 -> 0
A35: 獲發還的差餉 | D35: 0 | I35: RatesReimbur | J35: =ROW() -> 35 | O35: =B35 -> 0 | P35: =ROUND(O35,0) -> 0 | Q35: =O35-P35 -> 0 | R35: =ABS(Q35)*P$19+P35 -> 0 | S35: =RANK(R35,R$25:R$36) -> 1 | T35: =S35+COUNTIF(S$25:S35,S35)-1 -> 8 | U35: =IF(T35<=ABS(U$38),IF(Q35<0,-1,1),0) -> 0 | V35: =U35+P35 -> 0 | X35: =C35 -> 0 | Y35: =ROUND(X35,0) -> 0 | Z35: =X35-Y35 -> 0 | AA35: =ABS(Z35)*Y$19+Y35 -> 0 | AB35: =RANK(AA35,AA$25:AA$36) -> 1 | AC35: =AB35+COUNTIF(AB$25:AB35,AB35)-1 -> 8 | AD35: =IF(AC35<=ABS(AD$38),IF(Z35<0,-1,1),0) -> 0 | AE35: =AD35+Y35 -> 0
A36: 獲發還的租金 | D36: 0 | I36: RentReimbur | J36: =ROW() -> 36 | O36: =B36 -> 0 | P36: =ROUND(O36,0) -> 0 | Q36: =O36-P36 -> 0 | R36: =ABS(Q36)*P$19+P36 -> 0 | S36: =RANK(R36,R$25:R$36) -> 1 | T36: =S36+COUNTIF(S$25:S36,S36)-1 -> 9 | U36: =IF(T36<=ABS(U$38),IF(Q36<0,-1,1),0) -> 0 | V36: =U36+P36 -> 0 | X36: =C36 -> 0 | Y36: =ROUND(X36,0) -> 0 | Z36: =X36-Y36 -> 0 | AA36: =ABS(Z36)*Y$19+Y36 -> 0 | AB36: =RANK(AA36,AA$25:AA$36) -> 1 | AC36: =AB36+COUNTIF(AB$25:AB36,AB36)-1 -> 9 | AD36: =IF(AC36<=ABS(AD$38),IF(Z36<0,-1,1),0) -> 0 | AE36: =AD36+Y36 -> 0
A37: 其他收入(註1) | B37: =IF(附件一!$C$27="有",+報表6_其他!D259,0) -> 0 | C37: =IF(附件一!$C$27="有",+報表6_其他!F259,0) -> 0 | D37: 0 | E37: =IF(附件一!$C$27="有",+報表6_其他!H259,0) -> 0 | F37: 須與報表6 (項目5) 所列數額相符 | I37: OthersNoBreakdown | J37: =ROW() -> 37 | O37: =B37 -> 0 | P37: =ROUND(O37,0) -> 0 | V37: =U37+P37 -> 0 | X37: =C37 -> 0 | Y37: =ROUND(X37,0) -> 0 | AE37: =AD37+Y37 -> 0
A38: 總收入(a) | B38: =SUM(B30:B37) -> 0 | C38: =SUM(C30:C37) -> 0 | D38: =SUM(D30:D37) -> 0 | E38: =SUM(E30:E37) -> 0 | I38: TotalIncome | J38: =ROW() -> 38 | O38: =SUM(O25:O27,O31:O37)-O29 -> 0 | P38: =SUM(P25:P27,P31:P37)-P29 -> 0 | Q38: =ROUND(SUM(Q25:Q37),2) -> 0 | U38: =V85-P38 -> 0 | V38: =SUM(V25:V27,V31:V37,-V29) -> 0 | X38: =SUM(X25:X27,X31:X37)-X29 -> 0 | Y38: =SUM(Y25:Y27,Y31:Y37)-Y29 -> 0 | Z38: =ROUND(SUM(Z25:Z37),2) -> 0 | AD38: =AE85-Y38 -> 0 | AE38: =SUM(AE25:AE27,AE31:AE37,-AE29) -> 0
A39: 開支(註2)
A40: 薪金
A41: -教學人員(包括校長) | D41: =B41+C41 -> 0 | I41: Salary_T | J41: =ROW() -> 41 | O41: =B41 -> 0 | P41: =INT(O41) -> 0 | Q41: =ROUND(O41,2)-P41 -> 0 | R41: =Q41*P$19+P41 -> 0 | S41: =RANK(R41,$R$41:$R$63) -> 1 | T41: =S41+COUNTIF($S$41:S41,S41)-1 -> 1 | U41: =IF(T41<=U$65,1,0) -> 0 | V41: =U41+P41 -> 0 | X41: =C41 -> 0 | Y41: =INT(X41) -> 0 | Z41: =ROUND(X41,2)-Y41 -> 0 | AA41: =Z41*Y$19+Y41 -> 0 | AB41: =RANK(AA41,AA$41:AA$63) -> 1 | AC41: =AB41+COUNTIF(AB$41:AB41,AB41)-1 -> 1 | AD41: =IF(AC41<=AD$65,1,0) -> 0 | AE41: =AD41+Y41 -> 0
A42: -非教學人員 | D42: =B42+C42 -> 0 | I42: Salary_NT | J42: =ROW() -> 42 | O42: =B42 -> 0 | P42: =INT(O42) -> 0 | Q42: =ROUND(O42,2)-P42 -> 0 | R42: =Q42*P$19+P42 -> 0 | S42: =RANK(R42,$R$41:$R$63) -> 1 | T42: =S42+COUNTIF($S$41:S42,S42)-1 -> 2 | U42: =IF(T42<=U$65,1,0) -> 0 | V42: =U42+P42 -> 0 | X42: =C42 -> 0 | Y42: =INT(X42) -> 0 | Z42: =ROUND(X42,2)-Y42 -> 0 | AA42: =Z42*Y$19+Y42 -> 0 | AB42: =RANK(AA42,AA$41:AA$63) -> 1 | AC42: =AB42+COUNTIF(AB$41:AB42,AB42)-1 -> 2 | AD42: =IF(AC42<=AD$65,1,0) -> 0 | AE42: =AD42+Y42 -> 0
A43: 僱主對公積金計劃的供款
A44: -教學人員(包括校長) | D44: =B44+C44 -> 0 | I44: PFund_T | J44: =ROW() -> 44 | O44: =B44 -> 0 | P44: =INT(O44) -> 0 | Q44: =ROUND(O44,2)-P44 -> 0 | R44: =Q44*P$19+P44 -> 0 | S44: =RANK(R44,$R$41:$R$63) -> 1 | T44: =S44+COUNTIF($S$41:S44,S44)-1 -> 3 | U44: =IF(T44<=U$65,1,0) -> 0 | V44: =U44+P44 -> 0 | X44: =C44 -> 0 | Y44: =INT(X44) -> 0 | Z44: =ROUND(X44,2)-Y44 -> 0 | AA44: =Z44*Y$19+Y44 -> 0 | AB44: =RANK(AA44,AA$41:AA$63) -> 1 | AC44: =AB44+COUNTIF(AB$41:AB44,AB44)-1 -> 3 | AD44: =IF(AC44<=AD$65,1,0) -> 0 | AE44: =AD44+Y44 -> 0
A45: -非教學人員 | D45: =B45+C45 -> 0 | I45: PFund_NT | J45: =ROW() -> 45 | O45: =B45 -> 0 | P45: =INT(O45) -> 0 | Q45: =ROUND(O45,2)-P45 -> 0 | R45: =Q45*P$19+P45 -> 0 | S45: =RANK(R45,$R$41:$R$63) -> 1 | T45: =S45+COUNTIF($S$41:S45,S45)-1 -> 4 | U45: 0 | V45: =U45+P45 -> 0 | X45: =C45 -> 0 | Y45: =INT(X45) -> 0 | Z45: =ROUND(X45,2)-Y45 -> 0 | AA45: =Z45*Y$19+Y45 -> 0 | AB45: =RANK(AA45,AA$41:AA$63) -> 1 | AC45: =AB45+COUNTIF(AB$41:AB45,AB45)-1 -> 4 | AD45: 0 | AE45: =AD45+Y45 -> 0
A46: 遣散費∕長期服務金
A47: -教學人員(包括校長) | D47: =B47+C47 -> 0 | I47: LongServicePay_T | J47: =ROW() -> 47 | O47: =B47 -> 0 | P47: =INT(O47) -> 0 | Q47: =ROUND(O47,2)-P47 -> 0 | R47: =Q47*P$19+P47 -> 0 | S47: =RANK(R47,$R$41:$R$63) -> 1 | T47: =S47+COUNTIF($S$41:S47,S47)-1 -> 5 | U47: 0 | V47: =U47+P47 -> 0 | X47: =C47 -> 0 | Y47: =INT(X47) -> 0 | Z47: =ROUND(X47,2)-Y47 -> 0 | AA47: =Z47*Y$19+Y47 -> 0 | AB47: =RANK(AA47,AA$41:AA$63) -> 1 | AC47: =AB47+COUNTIF(AB$41:AB47,AB47)-1 -> 5 | AD47: 0 | AE47: =AD47+Y47 -> 0
A48: -非教學人員 | D48: 0 | I48: LongServicePay_NT | J48: =ROW() -> 48 | O48: 0 | P48: 0 | Q48: 0 | R48: 0 | S48: 1 | T48: =S48+COUNTIF($S$41:S48,S48)-1 -> 6 | U48: 0 | V48: 0 | X48: 0 | Y48: 0 | Z48: 0 | AA48: 0 | AB48: 1 | AC48: =AB48+COUNTIF(AB$41:AB48,AB48)-1 -> 6 | AD48: 0 | AE48: 0
A49: 校監薪酬 | D49: 0 | I49: SupervisorPay | J49: =ROW() -> 49 | O49: 0 | P49: 0 | Q49: 0 | R49: 0 | S49: 1 | T49: =S49+COUNTIF($S$41:S49,S49)-1 -> 7 | U49: 0 | V49: 0 | X49: 0 | Y49: 0 | Z49: 0 | AA49: 0 | AB49: 1 | AC49: =AB49+COUNTIF(AB$41:AB49,AB49)-1 -> 7 | AD49: 0 | AE49: 0
A50: 地租 | D50: 0 | I50: GovRent | J50: =ROW() -> 50 | O50: 0 | P50: 0 | Q50: 0 | R50: 0 | S50: 1 | T50: =S50+COUNTIF($S$41:S50,S50)-1 -> 8 | U50: 0 | V50: 0 | X50: 0 | Y50: 0 | Z50: 0 | AA50: 0 | AB50: 1 | AC50: =AB50+COUNTIF(AB$41:AB50,AB50)-1 -> 8 | AD50: 0 | AE50: 0
A51: 差餉 | D51: 0 | I51: Rates | J51: =ROW() -> 51 | O51: 0 | P51: 0 | Q51: 0 | R51: 0 | S51: 1 | T51: =S51+COUNTIF($S$41:S51,S51)-1 -> 9 | U51: 0 | V51: 0 | X51: 0 | Y51: 0 | Z51: 0 | AA51: 0 | AB51: 1 | AC51: =AB51+COUNTIF(AB$41:AB51,AB51)-1 -> 9 | AD51: 0 | AE51: 0
A52: 租金 | D52: 0 | I52: Rental | J52: =ROW() -> 52 | O52: 0 | P52: 0 | Q52: 0 | R52: 0 | S52: 1 | T52: =S52+COUNTIF($S$41:S52,S52)-1 -> 10 | U52: 0 | V52: 0 | X52: 0 | Y52: 0 | Z52: 0 | AA52: 0 | AB52: 1 | AC52: =AB52+COUNTIF(AB$41:AB52,AB52)-1 -> 10 | AD52: 0 | AE52: 0
A53: 折舊
A54: -校舍 | C54: =+D54-B54 -> 0 | D54: =IF(附件一!$C$27="有",+報表6_FA!C32,0) -> 0 | F54: 須與報表6 (項目1) 所列數額相符 | I54: DeprecPremises | J54: =ROW() -> 54 | O54: =B54 -> 0 | P54: =INT(O54) -> 0 | Q54: =ROUND(O54,2)-P54 -> 0 | R54: =Q54*P$19+P54 -> 0 | S54: =RANK(R54,$R$41:$R$63) -> 1 | T54: =S54+COUNTIF($S$41:S54,S54)-1 -> 11 | U54: 0 | V54: =U54+P54 -> 0 | X54: =C54 -> 0 | Y54: =INT(X54) -> 0 | Z54: =ROUND(X54,2)-Y54 -> 0 | AA54: =Z54*Y$19+Y54 -> 0 | AB54: =RANK(AA54,AA$41:AA$63) -> 1 | AC54: =AB54+COUNTIF(AB$41:AB54,AB54)-1 -> 11 | AD54: 0 | AE54: =AD54+Y54 -> 0
A55: -家具/設備/裝置/器材 | C55: =+D55-B55 -> 0 | D55: =IF(附件一!$C$27="有",+報表6_FA!E32,0) -> 0 | I55: DeprecFurniture | J55: =ROW() -> 55 | O55: =B55 -> 0 | P55: =INT(O55) -> 0 | Q55: =ROUND(O55,2)-P55 -> 0 | R55: =Q55*P$19+P55 -> 0 | S55: =RANK(R55,$R$41:$R$63) -> 1 | T55: =S55+COUNTIF($S$41:S55,S55)-1 -> 12 | U55: 0 | V55: =U55+P55 -> 0 | X55: =C55 -> 0 | Y55: =INT(X55) -> 0 | Z55: =ROUND(X55,2)-Y55 -> 0 | AA55: =Z55*Y$19+Y55 -> 0 | AB55: =RANK(AA55,AA$41:AA$63) -> 1 | AC55: =AB55+COUNTIF(AB$41:AB55,AB55)-1 -> 12 | AD55: 0 | AE55: =AD55+Y55 -> 0
A56: -電腦硬件及軟件 | C56: =+D56-B56 -> 0 | D56: =IF(附件一!$C$27="有",+報表6_FA!G32,0) -> 0 | I56: DeprecComputer | J56: =ROW() -> 56 | O56: =B56 -> 0 | P56: =INT(O56) -> 0 | Q56: =ROUND(O56,2)-P56 -> 0 | R56: =Q56*P$19+P56 -> 0 | S56: =RANK(R56,$R$41:$R$63) -> 1 | T56: =S56+COUNTIF($S$41:S56,S56)-1 -> 13 | U56: 0 | V56: =U56+P56 -> 0 | X56: =C56 -> 0 | Y56: =INT(X56) -> 0 | Z56: =ROUND(X56,2)-Y56 -> 0 | AA56: =Z56*Y$19+Y56 -> 0 | AB56: =RANK(AA56,AA$41:AA$63) -> 1 | AC56: =AB56+COUNTIF(AB$41:AB56,AB56)-1 -> 13 | AD56: 0 | AE56: =AD56+Y56 -> 0
A57: -其他 | C57: =+D57-B57 -> 0 | D57: =IF(附件一!$C$27="有",+報表6_FA!AC32-SUM(報表6_FA!C32:G32),0) -> 0 | I57: DeprecOthers | J57: =ROW() -> 57 | O57: =B57 -> 0 | P57: =INT(O57) -> 0 | Q57: =ROUND(O57,2)-P57 -> 0 | R57: =Q57*P$19+P57 -> 0 | S57: =RANK(R57,$R$41:$R$63) -> 1 | T57: =S57+COUNTIF($S$41:S57,S57)-1 -> 14 | U57: 0 | V57: =U57+P57 -> 0 | X57: =C57 -> 0 | Y57: =INT(X57) -> 0 | Z57: =ROUND(X57,2)-Y57 -> 0 | AA57: =Z57*Y$19+Y57 -> 0 | AB57: =RANK(AA57,AA$41:AA$63) -> 1 | AC57: =AB57+COUNTIF(AB$41:AB57,AB57)-1 -> 14 | AD57: 0 | AE57: =AD57+Y57 -> 0
A59: 大型修葺及維修 (每項達8,000元或以上的工程) | D59: =B59+C59 -> 0 | I59: MajorRepairs | J59: =ROW() -> 59 | O59: =B59 -> 0 | P59: =INT(O59) -> 0 | Q59: =ROUND(O59,2)-P59 -> 0 | R59: =Q59*P$19+P59 -> 0 | S59: =RANK(R59,$R$41:$R$63) -> 1 | T59: =S59+COUNTIF($S$41:S59,S59)-1 -> 15 | U59: 0 | V59: =U59+P59 -> 0 | X59: =C59 -> 0 | Y59: =INT(X59) -> 0 | Z59: =ROUND(X59,2)-Y59 -> 0 | AA59: =Z59*Y$19+Y59 -> 0 | AB59: =RANK(AA59,AA$41:AA$63) -> 1 | AC59: =AB59+COUNTIF(AB$41:AB59,AB59)-1 -> 15 | AD59: 0 | AE59: =AD59+Y59 -> 0
A61: 小型修葺及維修 (每項少於8,000元的工程) | D61: =B61+C61 -> 0 | I61: MinorRepairs | J61: =ROW() -> 61 | O61: =B61 -> 0 | P61: =INT(O61) -> 0 | Q61: =ROUND(O61,2)-P61 -> 0 | R61: =Q61*P$19+P61 -> 0 | S61: =RANK(R61,$R$41:$R$63) -> 1 | T61: =S61+COUNTIF($S$41:S61,S61)-1 -> 16 | U61: 0 | V61: =U61+P61 -> 0 | X61: =C61 -> 0 | Y61: =INT(X61) -> 0 | Z61: =ROUND(X61,2)-Y61 -> 0 | AA61: =Z61*Y$19+Y61 -> 0 | AB61: =RANK(AA61,AA$41:AA$63) -> 1 | AC61: =AB61+COUNTIF(AB$41:AB61,AB61)-1 -> 16 | AD61: 0 | AE61: =AD61+Y61 -> 0
A63: 核數費 | D63: =B63+C63 -> 0 | I63: AuditFee | J63: =ROW() -> 63 | O63: =B63 -> 0 | P63: =INT(O63) -> 0 | Q63: =ROUND(O63,2)-P63 -> 0 | R63: =Q63*P$19+P63 -> 0 | S63: =RANK(R63,$R$41:$R$63) -> 1 | T63: =S63+COUNTIF($S$41:S63,S63)-1 -> 17 | U63: 0 | V63: =U63+P63 -> 0 | X63: =C63 -> 0 | Y63: =INT(X63) -> 0 | Z63: =ROUND(X63,2)-Y63 -> 0 | AA63: =Z63*Y$19+Y63 -> 0 | AB63: =RANK(AA63,AA$41:AA$63) -> 1 | AC63: =AB63+COUNTIF(AB$41:AB63,AB63)-1 -> 17 | AD63: 0 | AE63: =AD63+Y63 -> 0
A64: 其他支出(註3) | B64: =IF(附件一!$C$27="有",+報表6_其他!D135,0) -> 0 | C64: =IF(附件一!$C$27="有",+報表6_其他!F135,0) -> 0 | D64: =B64+C64 -> 0 | E64: =IF(附件一!$C$27="有",+報表6_其他!H135,0) -> 0 | F64: 須與報表6 (項目3) 所列數額相符 | O64: =B64 -> 0 | P64: =ROUND(O64,0) -> 0 | V64: =U64+P64 -> 0 | X64: =C64 -> 0 | Y64: =ROUND(X64,0) -> 0 | AE64: =AD64+Y64 -> 0
A65: 總開支(b) | B65: =SUM(B40:B64) -> 0 | C65: =SUM(C40:C64) -> 0 | D65: =SUM(D40:D64) -> 0 | E65: =SUM(E40:E64) -> 0 | I65: TotalExpense | J65: =ROW() -> 65 | L65: =B65-SUM(B53:B64)-SUM(B40:B66) -> 0 | M65: =C65-SUM(C53:C64)-SUM(C40:C66) -> 0 | O65: =SUM(O41:O64) -> 0 | P65: =SUM(P41:P64) -> 0 | Q65: =SUM(Q41:Q64) -> 0 | U65: =V88-P65 -> 0 | V65: =SUM(V41:V64) -> 0 | X65: =SUM(X41:X64) -> 0 | Y65: =SUM(Y41:Y64) -> 0 | Z65: =SUM(Z41:Z64) -> 0 | AD65: =AE88-Y65 -> 0 | AE65: =SUM(AE41:AE64) -> 0
F70: (轉下頁)
A71: - 6 -
A78: =A1 -> 報表1A
F79: (二頁的第二頁)
A81: =A8 -> 學校名稱 : ________________________________________________________________________
A82: =A9 -> 
O84: Total Income | X84: Total Income
B85: 本年度 | E85: 上年度 | F85: 附註 | O85: =B38 -> 0 | P85: =ROUND(O85,0) -> 0 | Q85: =O85-P85 -> 0 | R85: =ABS(Q85)*P$19+P85 -> 0 | S85: =RANK(R85,$R$85:$R$88) -> 1 | T85: =S85+COUNTIF(S$85:S85,S85)-1 -> 1 | U85: =IF(T85<=ABS(U$90),IF(Q85<0,-1,1),0) -> 0 | V85: =U85+P85 -> 0 | X85: =C38 -> 0 | Y85: =ROUND(X85,0) -> 0 | Z85: =X85-Y85 -> 0 | AA85: =ABS(Z85)*Y$19+Y85 -> 0 | AB85: =RANK(AA85,AA$85:AA$88) -> 1 | AC85: =AB85+COUNTIF(AB$85:AB85,AB85)-1 -> 1 | AD85: =IF(AC85<=ABS(AD$90),IF(Z85<0,-1,1),0) -> 0 | AE85: =AD85+Y85 -> 0
B86: 元 | E86: 元 | F86: (或註解)
B87: 本地課程 班級 | C87: 非本地課程 班級 | D87: 總計 | E87: 總計 | O87: Total Expenditure | X87: Total Expenditure
C88: Curriculum | D88: Total | O88: =B65 -> 0 | P88: =ROUND(O88,0) -> 0 | Q88: =O88-P88 -> 0 | R88: =ABS(Q88)*P$19+P88 -> 0 | S88: =RANK(R88,$R$85:$R$88) -> 1 | T88: =S88+COUNTIF(S$85:S88,S88)-1 -> 2 | U88: =IF(T88<=ABS(U$90),IF(Q88<0,-1,1),0) -> 0 | V88: =U88+P88 -> 0 | X88: =C65 -> 0 | Y88: =ROUND(X88,0) -> 0 | Z88: =X88-Y88 -> 0 | AA88: =ABS(Z88)*Y$19+Y88 -> 0 | AB88: =RANK(AA88,AA$85:AA$88) -> 1 | AC88: =AB88+COUNTIF(AB$85:AB88,AB88)-1 -> 2 | AD88: =IF(AC88<=ABS(AD$90),IF(Z88<0,-1,1),0) -> 0 | AE88: =AD88+Y88 -> 0
C89: Classes
U90: =V91-P85+P88 -> 0 | AD90: =AE91-Y85+Y88 -> 0
A91: 商業活動前的盈餘/(虧損)[(a)減(b)項] | B91: =B38-B65 -> 0 | C91: =C38-C65 -> 0 | D91: =D38-D65 -> 0 | E91: =E38-E65 -> 0 | O91: =B91 -> 0 | P91: =INT(O91) -> 0 | Q91: =ROUND(O91,2)-P91 -> 0 | R91: =Q91*P$19+P91 -> 0 | S91: =RANK(R91,$R$91:$R$97) -> 1 | T91: =S91+COUNTIF(S$91:S91,S91)-1 -> 1 | U91: =IF(T91<=U$99,1,0) -> 0 | V91: =U91+P91 -> 0 | X91: =C91 -> 0 | Y91: =INT(X91) -> 0 | Z91: =ROUND(X91,2)-Y91 -> 0 | AA91: =Z91*Y$19+Y91 -> 0 | AB91: =RANK(AA91,AA$91:AA$97) -> 1 | AC91: =AB91+COUNTIF(AB$91:AB91,AB91)-1 -> 1 | AD91: =IF(AC91<=AD$99,1,0) -> 0 | AE91: =AD91+Y91 -> 0
A92: 商業活動的利潤 / (虧損)(註4) | C92: =+D92-B92 -> 0 | D92: =IF(附件一!$C$27="有",報表4!AS40,0) -> 0 | F92: 須與報表4所列數額相符 | I92: SurplusDefTA | J92: =ROW() -> 92 | O92: 0 | P92: =ROUND(O92,0) -> 0 | V92: =U92+P92 -> 0 | X92: =C92 -> 0 | Y92: =ROUND(X92,0) -> 0 | AE92: =AD92+Y92 -> 0
A93: 捐款收入(註5) | C93: =+D93-B93 -> 0 | D93: =IF(附件一!$C$27="有",報表5!B40,0) -> 0 | E93: =IF(附件一!$C$27="有",報表5!C40,0) -> 0 | F93: 須與報表5所列數額相符 | I93: DonationsReceived | J93: =ROW() -> 93 | O93: 0 | P93: =ROUND(O93,0) -> 0 | V93: =U93+P93 -> 0 | X93: =C93 -> 0 | Y93: =ROUND(X93,0) -> 0 | AE93: =AD93+Y93 -> 0
A94: 本年度的盈餘∕(虧損) | B94: =SUM(B91:B93) -> 0 | C94: =SUM(C91:C93) -> 0 | D94: =SUM(D91:D93) -> 0 | E94: =SUM(E91:E93) -> 0
A95: 上年度結轉的累積盈餘∕(虧損) | C95: =+D95-B95 -> 0 | D95: =+E99 -> 0 | O95: 0 | P95: =ROUND(O95,0) -> 0 | V95: =U95+P95 -> 0 | X95: =C95 -> 0 | Y95: =ROUND(X95,0) -> 0 | AE95: =AD95+Y95 -> 0
A96: 往年度調整 (請說明性質) | D96: =C96+B96 -> 0 | I96: =Interim!FW1 -> PriorYearAdj | J96: =ROW() -> 96 | O96: =B96 -> 0 | P96: =INT(O96) -> 0 | Q96: =ROUND(O96,2)-P96 -> 0 | R96: =Q96*P$19+P96 -> 0 | S96: =RANK(R96,$R$91:$R$97) -> 1 | T96: =S96+COUNTIF(S$91:S96,S96)-1 -> 2 | U96: =IF(T96<=U$99,1,0) -> 0 | V96: =U96+P96 -> 0 | X96: =C96 -> 0 | Y96: =INT(X96) -> 0 | Z96: =ROUND(X96,2)-Y96 -> 0 | AA96: =Z96*Y$19+Y96 -> 0 | AB96: =RANK(AA96,AA$91:AA$97) -> 1 | AC96: =AB96+COUNTIF(AB$91:AB96,AB96)-1 -> 2 | AD96: =IF(AC96<=AD$99,1,0) -> 0 | AE96: =AD96+Y96 -> 0
A97: 轉撥到儲備金/(由儲備金轉撥)(註6) | B97: =IF(附件一!$C$27="有",+報表6_其他!D277,0) -> 0 | C97: =IF(附件一!$C$27="有",+報表6_其他!F277,0) -> 0 | D97: =C97+B97 -> 0 | E97: =IF(附件一!$C$27="有",+報表6_其他!H277,0) -> 0 | F97: 須與報表6 (項目6) 所列數額相符 | O97: 0 | P97: =ROUND(O97,0) -> 0 | V97: =U97+P97 -> 0 | X97: =C97 -> 0 | Y97: =ROUND(X97,0) -> 0 | AE97: =AD97+Y97 -> 0
A99: 結轉入下年度的累積盈餘∕(虧損) | B99: =SUM(B94:B96)-B97 -> 0 | C99: =SUM(C94:C96)-C97 -> 0 | D99: =SUM(D94:D96)-D97 -> 0 | E99: =SUM(E94:E96)-E97 -> 0 | O99: =SUM(O91:O98) -> 0 | P99: =SUM(P91:P98) -> 0 | Q99: =SUM(Q91:Q98) -> 0 | U99: =ROUND(B99,0)-P99 -> 0 | V99: =SUM(V91:V98) -> 0 | X99: =SUM(X91:X98) -> 0 | Y99: =SUM(Y91:Y98) -> 0 | Z99: =SUM(Z91:Z98) -> 0 | AD99: =ROUND(C99,0)-Y99 -> 0 | AE99: =SUM(AE91:AE98) -> 0
A102: 註:
A103: 1. 請於報表6提供「其他收入」的明細表。
A105: 2. 請遵守開支範圍的主導原則(附件三)。
A107: 3. 請於報表6提供「其他支出」的明細表。
A109: 4. 如有售賣教育用品及提供收費服務等商業活動的收入，請於報表5詳細說明有關收入及成本。
A111: 5. 如有收取捐款，請於報表5詳細說明捐款收入及相關開支。
A113: 6. 請於報表6詳列有關轉撥到儲備金/(由儲備金轉撥)的性質，例如用於學校教育發展。
A144: - 7 -

Sheet 報表2
A2: 報表 2 | G2: Total Non-Current Assets
G3: =C31 -> 0 | H3: =ROUND(G3,0) -> 0 | I3: =G3-H3 -> 0 | J3: =ABS(I3)*H$14+H3 -> 0 | K3: =RANK(J3,$J$3:$J$9) -> 1 | L3: =K3+COUNTIF(K$3:K3,K3)-1 -> 1 | M3: =IF(L3<=ABS(M$11),IF(I3<0,-1,1),0) -> 0 | N3: =M3+H3 -> 0
A4: (i)兌現學券計劃資助及∕或(ii)收取(a)幼兒中心資助計劃津貼、及∕或(b)優化幼兒服務人員津貼，及∕或(c)租金發還的幼稚園∕幼稚園暨幼兒中心適用
G5: Total Current Assets
A6: =報表1!A8 -> 學校名稱 : ________________________________________________________________________ | G6: =C50 -> 0 | H6: =ROUND(G6,0) -> 0 | I6: =G6-H6 -> 0 | J6: =ABS(I6)*H$14+H6 -> 0 | K6: =RANK(J6,$J$3:$J$9) -> 1 | L6: =K6+COUNTIF(K$3:K6,K6)-1 -> 2 | M6: =IF(L6<=ABS(M$11),IF(I6<0,-1,1),0) -> 0 | N6: =M6+H6 -> 0
A7: =報表1!A9 -> 
G8: Total Current Liabilities
A9: =報表1!A11 -> 學校類別 : *幼稚園 /幼稚園暨幼兒中心 | D9: =IF(AND(附件一!$C$19="",附件一!$C$20=""),"[*請删去不適用者]","") -> [*請删去不適用者] | G9: =C68 -> 0 | H9: =ROUND(G9,0) -> 0 | I9: =G9-H9 -> 0 | J9: =ABS(I9)*H$14+H9 -> 0 | K9: =RANK(J9,$J$3:$J$9) -> 1 | L9: =K9+COUNTIF(K$3:K9,K9)-1 -> 3 | M9: =IF(L9<=ABS(M$11),IF(I9<0,-1,1),0) -> 0 | N9: =M9+H9 -> 0
A10: =報表1!A12 -> *兌現/非兌現學券計劃資助
G11: =+G3+G6-G9 -> 0 | H11: =+H3+H6-H9 -> 0 | I11: =+I3+I6-I9 -> 0 | M11: =ROUND(C72,0)-H3-H6+H9 -> 0 | N11: =+N3+N6-N9 -> 0
A12: =CONCATENATE("截至 ",IF(NOT(ISNUMBER(附件一!C32)),"_____________________ ",UPPER(TEXT(附件一!C33,"yyyy年m月d日"))),"的資產負債表") -> 截至 _____________________ 的資產負債表
G14: maximum | H14: =MAX(H17:H165)*200 -> 0
C15: 本年度 | D15: 上年度 | E15: 附註
B16: 元 | C16: 元 | D16: 元 | E16: (或註解) | G16: Original | H16: Integer | I16: Decimal | J16: Fake No. | K16: Rank | L16: Adj. Rank | M16: Adjustment | N16: Final
A17: 非流動資產
A18: 固定資產 | B18: =報表6_FA!AC46 -> 0 | D18: =+報表6_FA!AC42 -> 0 | E18: 須與報表6 (項目1) 所列數額相符 | G18: =B18 -> 0 | H18: =ROUND(G18,0) -> 0 | N18: =M18+H18 -> 0
A19: 其他非流動資產(請說明)
A20: (1) 請說明 | G20: =B20 -> 0 | H20: =INT(G20) -> 0 | I20: =ROUND(G20,2)-H20 -> 0 | J20: =I20*H$14+H20 -> 0 | K20: =RANK(J20,J$19:J$29) -> 1 | L20: =K20+COUNTIF(K$19:K20,K20)-1 -> 1 | M20: =IF(L20<=M$31,1,0) -> 0 | N20: =M20+H20 -> 0
A21: (2) 請說明 | G21: 0 | H21: 0 | I21: =ROUND(G21,2)-H21 -> 0 | J21: =I21*H$14+H21 -> 0 | K21: =RANK(J21,J$19:J$29) -> 1 | L21: =K21+COUNTIF(K$19:K21,K21)-1 -> 2 | M21: =IF(L21<=M$31,1,0) -> 0 | N21: 0
A22: (3) 請說明 | G22: 0 | H22: 0 | I22: 0 | J22: 0 | K22: 1 | L22: =K22+COUNTIF(K$19:K22,K22)-1 -> 3 | M22: 0 | N22: 0
A23: (4) 請說明 | G23: 0 | H23: 0 | I23: 0 | J23: 0 | K23: 1 | L23: =K23+COUNTIF(K$19:K23,K23)-1 -> 4 | M23: 0 | N23: 0
A24: (5) 請說明 | G24: 0 | H24: 0 | I24: 0 | J24: 0 | K24: 1 | L24: =K24+COUNTIF(K$19:K24,K24)-1 -> 5 | M24: 0 | N24: 0
A25: (6) 請說明 | G25: 0 | H25: 0 | I25: 0 | J25: 0 | K25: 1 | L25: =K25+COUNTIF(K$19:K25,K25)-1 -> 6 | M25: 0 | N25: 0
A26: (7) 請說明 | G26: 0 | H26: 0 | I26: 0 | J26: 0 | K26: 1 | L26: =K26+COUNTIF(K$19:K26,K26)-1 -> 7 | M26: 0 | N26: 0
A27: (8) 請說明 | G27: 0 | H27: 0 | I27: 0 | J27: 0 | K27: 1 | L27: =K27+COUNTIF(K$19:K27,K27)-1 -> 8 | M27: 0 | N27: 0
A28: (9) 請說明 | G28: 0 | H28: 0 | I28: 0 | J28: 0 | K28: 1 | L28: =K28+COUNTIF(K$19:K28,K28)-1 -> 9 | M28: 0 | N28: 0
A29: (10) 請說明 | G29: 0 | H29: 0 | I29: 0 | J29: 0 | K29: 1 | L29: =K29+COUNTIF(K$19:K29,K29)-1 -> 10 | M29: 0 | N29: 0
A31: 非流動資產總值 | C31: =SUM(B18:B29) -> 0 | D31: =SUM(D18:D29) -> 0 | G31: =SUM(G18:G30) -> 0 | H31: =SUM(H18:H30) -> 0 | I31: =SUM(I18:I30) -> 0 | M31: =N3-H31 -> 0 | N31: =SUM(N18:N30) -> 0
A33: 流動資產
A34: 習作簿、文具及校服等存貨 | B34: =+報表4!AS35 -> 0 | D34: =+報表4!AS20 -> 0 | E34: 須與報表4所列數額相符 | G34: =B34 -> 0 | H34: =ROUND(G34,0) -> 0 | N34: =M34+H34 -> 0
A35: 應收雜項及預付款項 | G35: 0 | H35: 0 | I35: =ROUND(G35,2)-H35 -> 0 | J35: =I35*H$14+H35 -> 0 | K35: =RANK(J35,J$35:J$49) -> 1 | L35: =K35+COUNTIF(K$35:K35,K35)-1 -> 1 | M35: =IF(L35<=M$50,1,0) -> 0 | N35: 0
A36: 租金及水電等按金 | G36: 0 | H36: 0 | I36: =ROUND(G36,2)-H36 -> 0 | J36: =I36*H$14+H36 -> 0 | K36: =RANK(J36,J$35:J$49) -> 1 | L36: =K36+COUNTIF(K$35:K36,K36)-1 -> 2 | M36: =IF(L36<=M$50,1,0) -> 0 | N36: 0
A37: 銀行現金存款及手頭現金 | G37: 0 | H37: 0 | I37: =ROUND(G37,2)-H37 -> 0 | J37: =I37*H$14+H37 -> 0 | K37: 1 | L37: =K37+COUNTIF(K$35:K37,K37)-1 -> 3 | M37: 0 | N37: 0
A38: 其他流動資產(請說明)
A39: (1) 請說明 | G39: 0 | H39: 0 | I39: =ROUND(G39,2)-H39 -> 0 | J39: =I39*H$14+H39 -> 0 | K39: 1 | L39: =K39+COUNTIF(K$35:K39,K39)-1 -> 4 | M39: 0 | N39: 0
A40: (2) 請說明 | G40: 0 | H40: 0 | I40: 0 | J40: 0 | K40: 1 | L40: =K40+COUNTIF(K$35:K40,K40)-1 -> 5 | M40: 0 | N40: 0
A41: (3) 請說明 | G41: 0 | H41: 0 | I41: 0 | J41: 0 | K41: 1 | L41: =K41+COUNTIF(K$35:K41,K41)-1 -> 6 | M41: 0 | N41: 0
A42: (4) 請說明 | G42: 0 | H42: 0 | I42: 0 | J42: 0 | K42: 1 | L42: =K42+COUNTIF(K$35:K42,K42)-1 -> 7 | M42: 0 | N42: 0
A43: (5) 請說明 | G43: 0 | H43: 0 | I43: 0 | J43: 0 | K43: 1 | L43: =K43+COUNTIF(K$35:K43,K43)-1 -> 8 | M43: 0 | N43: 0
A44: (6) 請說明 | G44: 0 | H44: 0 | I44: 0 | J44: 0 | K44: 1 | L44: =K44+COUNTIF(K$35:K44,K44)-1 -> 9 | M44: 0 | N44: 0
A45: (7) 請說明 | G45: 0 | H45: 0 | I45: 0 | J45: 0 | K45: 1 | L45: =K45+COUNTIF(K$35:K45,K45)-1 -> 10 | M45: 0 | N45: 0
A46: (8) 請說明 | G46: 0 | H46: 0 | I46: 0 | J46: 0 | K46: 1 | L46: =K46+COUNTIF(K$35:K46,K46)-1 -> 11 | M46: 0 | N46: 0
A47: (9) 請說明 | G47: 0 | H47: 0 | I47: 0 | J47: 0 | K47: 1 | L47: =K47+COUNTIF(K$35:K47,K47)-1 -> 12 | M47: 0 | N47: 0
A48: (10) 請說明 | G48: 0 | H48: 0 | I48: 0 | J48: 0 | K48: 1 | L48: =K48+COUNTIF(K$35:K48,K48)-1 -> 13 | M48: 0 | N48: 0
G49: 0 | H49: 0 | I49: 0 | J49: 0 | K49: 1 | L49: =K49+COUNTIF(K$35:K49,K49)-1 -> 14 | M49: 0 | N49: 0
A50: 流動資產總值 | C50: =SUM(B34:B48) -> 0 | D50: =SUM(D34:D48) -> 0 | G50: =SUM(G34:G49) -> 0 | H50: =SUM(H34:H49) -> 0 | I50: =SUM(I34:I49) -> 0 | M50: =N6-H50 -> 0 | N50: =SUM(N34:N49) -> 0
A52: 流動負債
A53: 預收學費 | G53: =B53 -> 0 | H53: 0 | I53: =ROUND(G53,2)-H53 -> 0 | J53: =I53*H$14+H53 -> 0 | K53: =RANK(J53,J$53:J$66) -> 1 | L53: =K53+COUNTIF(K$53:K53,K53)-1 -> 1 | M53: =IF(L53<=M$68,1,0) -> 0 | N53: 0
A54: 銀行透支 | G54: =B54 -> 0 | H54: 0 | I54: =ROUND(G54,2)-H54 -> 0 | J54: =I54*H$14+H54 -> 0 | K54: =RANK(J54,J$53:J$66) -> 1 | L54: =K54+COUNTIF(K$53:K54,K54)-1 -> 2 | M54: =IF(L54<=M$68,1,0) -> 0 | N54: 0
A55: 應付帳項及應計項目 | G55: =B55 -> 0 | H55: 0 | I55: =ROUND(G55,2)-H55 -> 0 | J55: =I55*H$14+H55 -> 0 | K55: 1 | L55: =K55+COUNTIF(K$53:K55,K55)-1 -> 3 | M55: 0 | N55: 0
A56: 其他流動負債(請說明)
A57: (1) 請說明 | G57: =B57 -> 0 | H57: 0 | I57: =ROUND(G57,2)-H57 -> 0 | J57: =I57*H$14+H57 -> 0 | K57: 1 | L57: =K57+COUNTIF(K$53:K57,K57)-1 -> 4 | M57: 0 | N57: 0
A58: (2) 請說明 | G58: 0 | H58: 0 | I58: 0 | J58: 0 | K58: 1 | L58: =K58+COUNTIF(K$53:K58,K58)-1 -> 5 | M58: 0 | N58: 0
A59: (3) 請說明 | G59: 0 | H59: 0 | I59: 0 | J59: 0 | K59: 1 | L59: =K59+COUNTIF(K$53:K59,K59)-1 -> 6 | M59: 0 | N59: 0
A60: (4) 請說明 | G60: 0 | H60: 0 | I60: 0 | J60: 0 | K60: 1 | L60: =K60+COUNTIF(K$53:K60,K60)-1 -> 7 | M60: 0 | N60: 0
A61: (5) 請說明 | G61: 0 | H61: 0 | I61: 0 | J61: 0 | K61: 1 | L61: =K61+COUNTIF(K$53:K61,K61)-1 -> 8 | M61: 0 | N61: 0
A62: (6) 請說明 | G62: 0 | H62: 0 | I62: 0 | J62: 0 | K62: 1 | L62: =K62+COUNTIF(K$53:K62,K62)-1 -> 9 | M62: 0 | N62: 0
A63: (7) 請說明 | G63: 0 | H63: 0 | I63: 0 | J63: 0 | K63: 1 | L63: =K63+COUNTIF(K$53:K63,K63)-1 -> 10 | M63: 0 | N63: 0
A64: (8) 請說明 | G64: 0 | H64: 0 | I64: 0 | J64: 0 | K64: 1 | L64: =K64+COUNTIF(K$53:K64,K64)-1 -> 11 | M64: 0 | N64: 0
A65: (9) 請說明 | G65: 0 | H65: 0 | I65: 0 | J65: 0 | K65: 1 | L65: =K65+COUNTIF(K$53:K65,K65)-1 -> 12 | M65: 0 | N65: 0
A66: (10) 請說明 | G66: 0 | H66: 0 | I66: 0 | J66: 0 | K66: 1 | L66: =K66+COUNTIF(K$53:K66,K66)-1 -> 13 | M66: 0 | N66: 0
A68: 流動負債總值 | C68: =SUM(B53:B66) -> 0 | D68: =SUM(D53:D66) -> 0 | G68: =SUM(G53:G67) -> 0 | H68: =SUM(H53:H67) -> 0 | I68: =SUM(I53:I67) -> 0 | M68: =N9-H68 -> 0 | N68: =SUM(N53:N67) -> 0
A70: 流動資產/(負債)淨值 | C70: =+C50-C68 -> 0 | D70: =+D50-D68 -> 0
A72: 扣除流動負債後的資產總值 | C72: =+C31+C70 -> 0 | D72: =+D31+D70 -> 0 | G72: =+G50-G68+G31 -> 0 | H72: =+H50-H68+H31 -> 0 | I72: =+I50-I68+I31 -> 0 | M72: =ROUND(G72,0)-H72 -> 0 | N72: =+N50-N68+N31 -> 0
A74: 資產持有形式：
A75: 儲備金(請說明)
A76: (1) 請說明 | G76: =B76 -> 0 | H76: =INT(G76) -> 0 | I76: =ROUND(G76,2)-H76 -> 0 | J76: =I76*H$14+H76 -> 0 | K76: =RANK(J76,J$76:J$103) -> 1 | L76: =K76+COUNTIF(K$76:K76,K76)-1 -> 1 | M76: =IF(L76<=M$107,1,0) -> 0 | N76: =M76+H76 -> 0
A77: (2) 請說明 | G77: 0 | H77: 0 | I77: 0 | J77: 0 | K77: 1 | L77: =K77+COUNTIF(K$76:K77,K77)-1 -> 2 | M77: 0 | N77: 0
A78: (3) 請說明 | G78: 0 | H78: 0 | I78: 0 | J78: 0 | K78: 1 | L78: =K78+COUNTIF(K$76:K78,K78)-1 -> 3 | M78: 0 | N78: 0
A79: (4) 請說明 | G79: 0 | H79: 0 | I79: 0 | J79: 0 | K79: 1 | L79: =K79+COUNTIF(K$76:K79,K79)-1 -> 4 | M79: 0 | N79: 0
A80: (5) 請說明 | G80: 0 | H80: 0 | I80: 0 | J80: 0 | K80: 1 | L80: =K80+COUNTIF(K$76:K80,K80)-1 -> 5 | M80: 0 | N80: 0
A81: (6) 請說明 | G81: 0 | H81: 0 | I81: 0 | J81: 0 | K81: 1 | L81: =K81+COUNTIF(K$76:K81,K81)-1 -> 6 | M81: 0 | N81: 0
A82: (7) 請說明 | G82: 0 | H82: 0 | I82: 0 | J82: 0 | K82: 1 | L82: =K82+COUNTIF(K$76:K82,K82)-1 -> 7 | M82: 0 | N82: 0
A83: (8) 請說明 | G83: 0 | H83: 0 | I83: 0 | J83: 0 | K83: 1 | L83: =K83+COUNTIF(K$76:K83,K83)-1 -> 8 | M83: 0 | N83: 0
A84: (9) 請說明 | G84: 0 | H84: 0 | I84: 0 | J84: 0 | K84: 1 | L84: =K84+COUNTIF(K$76:K84,K84)-1 -> 9 | M84: 0 | N84: 0
A85: (10) 請說明 | G85: 0 | H85: 0 | I85: 0 | J85: 0 | K85: 1 | L85: =K85+COUNTIF(K$76:K85,K85)-1 -> 10 | M85: 0 | N85: 0
C87: =SUM(B76:B85) -> 0 | D87: =SUM(D76:D85) -> 0
A89: 累積盈餘∕(虧損) | C89: =IF(ISBLANK(附件一!$C$27),0,IF(附件一!$C$27="有",+報表1A!D99,+報表1!C90)) -> 0 | D89: =IF(ISBLANK(附件一!$C$27),0,IF(附件一!$C$27="有",+報表1A!E99,+報表1!D90)) -> 0 | E89: =IF(ISBLANK(附件一!C$27),"須與報表*1/1A",(IF(附件一!C$27="有","須與報表 1A","須與報表 1")))&"所列數額相符" -> 須與報表*1/1A所列數額相符 | G89: =B89 -> 0 | H89: =ROUND(G89,0) -> 0 | N89: =M89+H89 -> 0
A91: 長期負債
A92: 銀行貸款 | G92: =B92 -> 0 | H92: =INT(G92) -> 0 | I92: =ROUND(G92,2)-H92 -> 0 | J92: =I92*H$14+H92 -> 0 | K92: =RANK(J92,J$76:J$103) -> 1 | L92: =K92+COUNTIF(K$76:K92,K92)-1 -> 11 | M92: =IF(L92<=M$107,1,0) -> 0 | N92: =M92+H92 -> 0
A93: 其他長期負債(請說明)
A94: (1) 請說明 | G94: 0 | H94: 0 | I94: =ROUND(G94,2)-H94 -> 0 | J94: =I94*H$14+H94 -> 0 | K94: =RANK(J94,J$76:J$103) -> 1 | L94: =K94+COUNTIF(K$76:K94,K94)-1 -> 12 | M94: =IF(L94<=M$107,1,0) -> 0 | N94: 0
A95: (2) 請說明 | G95: 0 | H95: 0 | I95: 0 | J95: 0 | K95: 1 | L95: =K95+COUNTIF(K$76:K95,K95)-1 -> 13 | M95: 0 | N95: 0
A96: (3) 請說明 | G96: 0 | H96: 0 | I96: 0 | J96: 0 | K96: 1 | L96: =K96+COUNTIF(K$76:K96,K96)-1 -> 14 | M96: 0 | N96: 0
A97: (4) 請說明 | G97: 0 | H97: 0 | I97: 0 | J97: 0 | K97: 1 | L97: =K97+COUNTIF(K$76:K97,K97)-1 -> 15 | M97: 0 | N97: 0
A98: (5) 請說明 | G98: 0 | H98: 0 | I98: 0 | J98: 0 | K98: 1 | L98: =K98+COUNTIF(K$76:K98,K98)-1 -> 16 | M98: 0 | N98: 0
A99: (6) 請說明 | G99: 0 | H99: 0 | I99: 0 | J99: 0 | K99: 1 | L99: =K99+COUNTIF(K$76:K99,K99)-1 -> 17 | M99: 0 | N99: 0
A100: (7) 請說明 | G100: 0 | H100: 0 | I100: 0 | J100: 0 | K100: 1 | L100: =K100+COUNTIF(K$76:K100,K100)-1 -> 18 | M100: 0 | N100: 0
A101: (8) 請說明 | G101: 0 | H101: 0 | I101: 0 | J101: 0 | K101: 1 | L101: =K101+COUNTIF(K$76:K101,K101)-1 -> 19 | M101: 0 | N101: 0
A102: (9) 請說明 | G102: 0 | H102: 0 | I102: 0 | J102: 0 | K102: 1 | L102: =K102+COUNTIF(K$76:K102,K102)-1 -> 20 | M102: 0 | N102: 0
A103: (10) 請說明 | G103: 0 | H103: 0 | I103: 0 | J103: 0 | K103: 1 | L103: =K103+COUNTIF(K$76:K103,K103)-1 -> 21 | M103: 0 | N103: 0
C105: =SUM(B92:B103) -> 0 | D105: =SUM(D92:D103) -> 0
C107: =+C87+C105+C89 -> 0 | D107: =+D87+D105+D89 -> 0 | G107: =SUM(G76:G106) -> 0 | H107: =SUM(H76:H106) -> 0 | I107: =SUM(I76:I106) -> 0 | M107: =ROUND(G107,0)-H107 -> 0 | N107: =SUM(N76:N106) -> 0
B109: Control check | C109: =IF(ABS(C72-C107)<0.0001,0,C72-C107) -> 0 | D109: =IF(ABS(D72-D107)<0.0001,0,D72-D107) -> 0
A110: - 8 -

Sheet 報表3
A2: 報表 3
A4: 參加幼兒中心資助計劃及/或獲發優化幼兒服務人員津貼的幼稚園暨幼兒中心適用
A6: =報表2!A6 -> 學校名稱 : ________________________________________________________________________
A7: =學校名稱!A8 -> 
A8: =CONCATENATE("截至 ",IF(NOT(ISNUMBER(附件一!C32)),"______________________________",UPPER(TEXT(附件一!C33,"yyyy年m月d日"))),"為止") -> 截至 ______________________________為止
A9: 幼兒中心資助計劃及優化幼兒服務人員津貼報表
B12: 本年度 | C12: 上年度 | D12: 附註
B13: 元 | C13: 元 | D13: (或註解)
A15: 收入
A19: 根據幼兒中心資助計劃獲發的資助額(註1) | B19: =IF(OR(ISBLANK(附件一!C$21),附件一!C$21="非參加幼兒中心資助計劃"),0,IF(附件一!C$27="有",報表1A!D31,報表1!C29)) -> 0 | C19: =IF(OR(ISBLANK(附件一!C$21),附件一!C$21="非參加幼兒中心資助計劃"),0,IF(附件一!C$27="有",報表1A!E31,報表1!D29)) -> 0 | D19: =IF(ISBLANK(附件一!C$27),"須與報表*1/1A",(IF(附件一!C$27="有","須與報表 1A","須與報表 1")))&"所列數額相符" -> 須與報表*1/1A所列數額相符 | G19: DonationsReceived | H19: =ROW(G19) -> 19 | Q19: =ROUND(B19,0) -> 0
A20: 優化幼兒服務人員津貼(註2) | B20: =IF(OR(ISBLANK(附件一!C$22),附件一!C$22="非獲發優化幼兒服務人員津貼"),0,IF(附件一!C$27="有",報表1A!D33,報表1!C31)) -> 0 | C20: =IF(OR(ISBLANK(附件一!C$22),附件一!C$21="非獲發優化幼兒服務人員津貼"),0,IF(附件一!C$27="有",報表1A!E33,報表1!D31)) -> 0
A22: 總收入 | B22: =B19+B20 -> 0 | C22: =C19+C20 -> 0
A24: 開支
J25: maximum | K25: =MAX(K26:K103)*200 -> 0
A26: 薪酬及公積金計劃/強制性公積金計劃的供款(註1及2)
J28: Original | K28: Integer | L28: Decimal | M28: Fake No. | N28: Rank | O28: Adj. Rank | P28: Adjustment | Q28: Final
A29: - 幼兒中心主管的薪酬 | J29: =B29 -> 0 | K29: =INT(J29) -> 0 | L29: =J29-K29 -> 0 | M29: =ABS(L29)*K$25+K29 -> 0 | N29: =RANK(M29,M$29:M$34) -> 1 | O29: =N29+COUNTIF(N$29:N29,N29)-1 -> 1 | P29: =IF(O29<=ABS(P$44),IF(L29<0,-1,1),0) -> 0 | Q29: =P29+K29 -> 0
A31: - 幼兒工作員的薪酬 | J31: =B31 -> 0 | K31: =INT(J31) -> 0 | L31: =J31-K31 -> 0 | M31: =ABS(L31)*K$25+K31 -> 0 | N31: =RANK(M31,M$29:M$34) -> 1 | O31: =N31+COUNTIF(N$29:N31,N31)-1 -> 2 | P31: =IF(O31<=ABS(P$44),IF(L31<0,-1,1),0) -> 0 | Q31: =P31+K31 -> 0
A33: - 僱主為幼兒中心主管及幼兒工作員對公積金計劃 / | J33: =B33 -> 0 | K33: =INT(J33) -> 0 | L33: =J33-K33 -> 0 | M33: =ABS(L33)*K$25+K33 -> 0 | N33: =RANK(M33,M$29:M$34) -> 1 | O33: =N33+COUNTIF(N$29:N33,N33)-1 -> 3 | P33: =IF(O33<=ABS(P$44),IF(L33<0,-1,1),0) -> 0 | Q33: =P33+K33 -> 0
A34: 強制性公積金計劃作出的供款
A36: 總開支 | B36: =B29+B31+B33 -> 0 | C36: =C29+C31+C33 -> 0 | J36: =B36 -> 0 | K36: =SUM(K26:K35) -> 0 | L36: =J36-K36 -> 0 | Q36: =SUM(Q26:Q35) -> 0
A38: 盈餘(註3)/(虧損)
A40: 本期須退回教育局的盈餘/(虧損)
A42: 本期須退回社會福利署的盈餘/(虧損)
A44: 總盈餘/(虧損) | B44: =+B19-B36 -> 0 | C44: =+C19-C36 -> 0 | J44: =B44 -> 0 | K44: =INT(J44) -> 0 | L44: =J44-K44 -> 0 | P44: =Q19-K36-Q44 -> 0 | Q44: =ROUND(B44,0) -> 0
A47: 註:
A49: 1. 根據教育局通告第3/2008號的規定，根據「幼兒中心資助計劃」獲發的資助須全數用於支付幼兒中心主管及幼兒工作員的薪酬及公積金計劃/強制性公積金計劃供款開支。
A51: 2. 根據社會福利署向學校發出的通知信，優化幼兒服務人員津貼須全數用於支付幼兒中心主管及幼兒工作員的薪酬及公積金計劃/強制性公積金計劃供款開支及須於獲發該津貼的學年內運用。退出免費優質幼稚園教育計劃後，如仍有屬於優化幼兒服務人員津貼的收入及開支，必須在本報表申報。
A53: 3. 任何未用撥款餘額將於每年被香港特別行政區政府查閱經審核的帳目後收回。若幼稚園暨幼兒中心的幼兒服務終止，政府會根據截至停辦日的經審核的帳目收回整筆未用餘款。盈餘會根據「幼兒中心資助計劃」獲發的資助及優化幼兒服務人員津貼的比例而計算並退回教育局及社會福利署。
A64: - 9 -

Sheet Statement 4 (old) (hidden)
A1: This statement will be hidden as it is no longer valid and de-link from other statements.
A2: Statement 4 | F2: Income
F3: =B23 -> 0 | G3: =ROUND(F3,0) -> 0 | H3: =F3-G3 -> 0 | I3: =ABS(H3)*G$12+G3 -> 0 | J3: =RANK(I3,$I$3:$I$6) -> 1 | K3: =J3+COUNTIF(J$3:J3,J3)-1 -> 1 | L3: =IF(K3<=ABS(L$8),IF(H3<0,-1,1),0) -> 0 | M3: =L3+G3 -> 0
A4: For KGs/KG-cum-CCCs joining PEVS
F5: Expenditure
A6: =報表3!A6 -> 學校名稱 : ________________________________________________________________________ | F6: =B34 -> 0 | G6: =ROUND(F6,0) -> 0 | H6: =F6-G6 -> 0 | I6: =ABS(H6)*G$12+G6 -> 0 | J6: =RANK(I6,$I$3:$I$6) -> 1 | K6: =J6+COUNTIF(J$3:J6,J6)-1 -> 2 | L6: =IF(K6<=ABS(L$8),IF(H6<0,-1,1),0) -> 0 | M6: =L6+G6 -> 0
A7: =報表3!A7 -> 
F8: =+F3-F6 -> 0 | G8: =+G3-G6 -> 0 | H8: =+H3-H6 -> 0 | L8: =ROUND(F8,0)-G8 -> 0 | M8: =+M3-M6 -> 0
A9: STATEMENT OF TEACHER DEVELOPMENT SUBSIDY
A10: =報表3!A8 -> 截至 ______________________________為止
B12: Current | C12: Previous | D12: Remarks | F12: maximum | G12: =MAX(G15:G198)*200 -> 4200
B13: Year | C13: Year | D13: (or Notes)
B14: $ | C14: $ | F14: Original | G14: Integer | H14: Decimal | I14: Fake No. | J14: Rank | K14: Adj. Rank | L14: Adjustment | M14: Final
A16: INCOME
A18: Subsidy Received | C18: 21.1 | F18: =B18 -> 0 | G18: =INT(F18) -> 0 | H18: =ROUND(F18,2)-G18 -> 0 | I18: =H18*G$12+G18 -> 0 | J18: =RANK(I18,I$18:I$21) -> 1 | K18: =J18+COUNTIF(J$18:J18,J18)-1 -> 1 | L18: =IF(K18<=L$23,1,0) -> 0 | M18: =L18+G18 -> 0
A20: Interest Income | F20: =B20 -> 0 | G20: =INT(F20) -> 0 | H20: =ROUND(F20,2)-G20 -> 0 | I20: =H20*G$12+G20 -> 0 | J20: =RANK(I20,I$18:I$21) -> 1 | K20: =J20+COUNTIF(J$18:J20,J20)-1 -> 2 | L20: =IF(K20<=L$23,1,0) -> 0 | M20: =L20+G20 -> 0
A23: TOTAL INCOME | B23: =SUM(B18:Above) -> 0 | C23: =SUM(C18:Above) -> 21.1 | F23: =SUM(F18:F22) -> 0 | G23: =SUM(G18:G22) -> 0 | H23: =SUM(H18:H22) -> 0 | L23: =M3-G23 -> 0 | M23: =SUM(M18:M22) -> 0
A25: EXPENDITURE
A27: Reimbursed Course Fees | F27: =B27 -> 0 | G27: =INT(F27) -> 0 | H27: =ROUND(F27,2)-G27 -> 0 | I27: =H27*G$12+G27 -> 0 | J27: =RANK(I27,I$27:I$33) -> 1 | K27: =J27+COUNTIF(J$27:J27,J27)-1 -> 1 | L27: =IF(K27<=L$34,1,0) -> 0 | M27: =L27+G27 -> 0
A29: Payments for Supply Teacher (including the MPF) | F29: =B29 -> 0 | G29: =INT(F29) -> 0 | H29: =ROUND(F29,2)-G29 -> 0 | I29: =H29*G$12+G29 -> 0 | J29: =RANK(I29,I$27:I$33) -> 1 | K29: =J29+COUNTIF(J$27:J29,J29)-1 -> 2 | L29: =IF(K29<=L$34,1,0) -> 0 | M29: =L29+G29 -> 0
A31: School-Based Training | F31: =B31 -> 0 | G31: =INT(F31) -> 0 | H31: =ROUND(F31,2)-G31 -> 0 | I31: =H31*G$12+G31 -> 0 | J31: =RANK(I31,I$27:I$33) -> 1 | K31: =J31+COUNTIF(J$27:J31,J31)-1 -> 3 | L31: =IF(K31<=L$34,1,0) -> 0 | M31: =L31+G31 -> 0
A34: TOTAL EXPENDITURE | B34: =SUM(B27:Above) -> 0 | C34: =SUM(C27:Above) -> 0 | F34: =SUM(F27:F33) -> 0 | G34: =SUM(G27:G33) -> 0 | H34: =SUM(H27:H33) -> 0 | L34: =M6-G34 -> 0 | M34: =SUM(M27:M33) -> 0
A36: SURPLUS/(DEFICIT) FOR THE YEAR | B36: =+B23-B34 -> 0 | C36: =+C23-C34 -> 21.1 | F36: =B36 -> 0 | G36: =INT(F36) -> 0 | H36: =ROUND(F36,2)-G36 -> 0 | I36: =H36*G$12+G36 -> 0 | J36: =RANK(I36,I$36:I$49) -> 1 | K36: =J36+COUNTIF($J$36:J36,J36)-1 -> 1 | L36: =IF(K36<=L$51,1,0) -> 0 | M36: =L36+G36 -> 0
A38: SURPLUS/(DEFICIT) BROUGHT FORWARD FROM PREVIOUS YEAR | B38: =C51 -> 21.1 | F38: =B38 -> 21.1 | G38: =ROUND(F38,0) -> 21 | M38: =L38+G38 -> 21
A39: ADD: ADJUSTMENTS (PLEASE SPECIFY)
A40: (1) Please specify | F40: =B40 -> 0 | G40: =INT(F40) -> 0 | H40: =ROUND(F40,2)-G40 -> 0 | I40: =H40*G$12+G40 -> 0 | J40: =RANK(I40,I$36:I$49) -> 1 | K40: =J40+COUNTIF($J$36:J40,J40)-1 -> 2 | L40: =IF(K40<=L$51,1,0) -> 0 | M40: =L40+G40 -> 0
A41: (2) Please specify | F41: =B41 -> 0 | G41: 0 | H41: 0 | I41: 0 | J41: 1 | K41: =J41+COUNTIF($J$36:J41,J41)-1 -> 3 | L41: 0 | M41: =L41+G41 -> 0
A42: (3) Please specify | F42: 0 | G42: 0 | H42: 0 | I42: 0 | J42: 1 | K42: =J42+COUNTIF($J$36:J42,J42)-1 -> 4 | L42: 0 | M42: 0
A43: (4) Please specify | F43: 0 | G43: 0 | H43: 0 | I43: 0 | J43: 1 | K43: =J43+COUNTIF($J$36:J43,J43)-1 -> 5 | L43: 0 | M43: 0
A44: (5) Please specify | F44: 0 | G44: 0 | H44: 0 | I44: 0 | J44: 1 | K44: =J44+COUNTIF($J$36:J44,J44)-1 -> 6 | L44: 0 | M44: 0
A45: (6) Please specify | F45: 0 | G45: 0 | H45: 0 | I45: 0 | J45: 1 | K45: =J45+COUNTIF($J$36:J45,J45)-1 -> 7 | L45: 0 | M45: 0
A46: (7) Please specify | F46: 0 | G46: 0 | H46: 0 | I46: 0 | J46: 1 | K46: =J46+COUNTIF($J$36:J46,J46)-1 -> 8 | L46: 0 | M46: 0
A47: (8) Please specify | F47: 0 | G47: 0 | H47: 0 | I47: 0 | J47: 1 | K47: =J47+COUNTIF($J$36:J47,J47)-1 -> 9 | L47: 0 | M47: 0
A48: (9) Please specify | F48: 0 | G48: 0 | H48: 0 | I48: 0 | J48: 1 | K48: =J48+COUNTIF($J$36:J48,J48)-1 -> 10 | L48: 0 | M48: 0
A49: (10) Please specify | F49: 0 | G49: 0 | H49: 0 | I49: 0 | J49: 1 | K49: =J49+COUNTIF($J$36:J49,J49)-1 -> 11 | L49: 0 | M49: 0
A50: LESS : AMOUNT RETURNED TO EDB | F50: =B50 -> 0 | G50: =ROUND(F50,0) -> 0 | M50: =L50+G50 -> 0
A51: SURPLUS/(DEFICIT) TO BE CARRIED FORWARD TO NEXT YEAR | B51: =+B36+B38+SUM(B40:B49)-B50-B53 -> 21.1 | C51: =+C36+C38+SUM(C40:C49)-C50 -> 21.1 | D51: Per Balance Sheet | F51: =+F36+F38+SUM(F40:F49)-F50-F53 -> 21.1 | G51: =+G36+G38+SUM(G40:G49)-G50-G53 -> 21 | H51: =+H36+H38+SUM(H40:H49)-H50-H53 -> 0 | L51: =ROUND(F51,0)-G51 -> 0 | M51: =+M36+M38+SUM(M40:M49)-M50-M53 -> 21
A52: OR
A53: Amount to be clawed back by EDB (Note) | F53: =B53 -> 0 | G53: =ROUND(F53,0) -> 0 | M53: =L53+G53 -> 0
A55: Note
A56: According to EDBC No. 1/2007, the unspent balance as at end of the 2011/12 school year would be clawed back by EDB. Please explain if the clawback amount differs from the reported figure in the “Statement of Teacher Development Subsidy for Clawback Purpose”submitted to EDB earlier (if applicable).
B59: - 11 -

Sheet 報表4
A2: 報表 4
A4: (i)兌現學券計劃資助及∕或(ii)收取(a)幼兒中心資助計劃津貼、及∕或(b)優化幼兒服務人員津貼，及∕或(c)租金發還的幼稚園∕幼稚園暨幼兒中心適用
A6: =CONCATENATE("學校名稱 : ",學校名稱!A15) -> 學校名稱 : ________________________________________________________________________
A8: =CONCATENATE("截至 ",IF(NOT(ISNUMBER(附件一!C32)),"______________________________",UPPER(TEXT(附件一!C33,"yyyy年m月d日"))),"為止") -> 截至 ______________________________為止
A9: 商業活動報表
C11: A | E11: B | G11: C | I11: D | K11: E | M11: F | O11: G | Q11: H | S11: I | U11: J | W11: K | Y11: L | AA11: M | AC11: N | AE11: O | AG11: P | AI11: Q | AK11: R | AM11: S | AO11: T | AQ11: U | AS11: V
C12: 校巴 | E12: 課本 | G12: 習作簿 | I12: 校服 | K12: 書包 | M12: 寢具 | O12: 課餘活動 | Q12: 文具 | S12: 教材/學材 | U12: 小食/食物/ 茶點 | W12: 其他(請說明) | Y12: 其他(請說明) | AA12: 其他(請說明) | AC12: 其他(請說明) | AE12: 其他(請說明) | AG12: 其他(請說明) | AI12: 其他(請說明) | AK12: 其他(請說明) | AM12: 其他(請說明) | AO12: 其他(請說明) | AQ12: 其他(請說明) | AS12: 總計
C13: (註1及4) | E13: (註1及4) | G13: (註1及4) | I13: (註1及4) | K13: (註1及4) | M13: (註1及4) | O13: (註1及4) | Q13: (註1及4) | S13: (註1及4) | U13: (註1及4) | W13: (註1及4) | Y13: (註1及4) | AA13: (註1及4) | AC13: (註1及4) | AE13: (註1及4) | AG13: (註1及4) | AI13: (註1及4) | AK13: (註1及4) | AM13: (註1及4) | AO13: (註1及4) | AQ13: (註1及4)
C14: 元 | E14: 元 | G14: 元 | I14: 元 | K14: 元 | M14: 元 | O14: 元 | Q14: 元 | S14: 元 | U14: 元 | W14: 元 | Y14: 元 | AA14: 元 | AC14: 元 | AE14: 元 | AG14: 元 | AI14: 元 | AK14: 元 | AM14: 元 | AO14: 元 | AQ14: 元 | AS14: 元
A15: 收入 (a) | AS15: =SUM(C15:AR15) -> 0 | AW15: =ROUND(C15,0) -> 0 | AY15: =ROUND(E15,0) -> 0 | BA15: =ROUND(G15,0) -> 0 | BC15: =ROUND(I15,0) -> 0 | BE15: =ROUND(K15,0) -> 0 | BG15: =ROUND(M15,0) -> 0 | BI15: =ROUND(O15,0) -> 0 | BK15: =ROUND(Q15,0) -> 0 | BM15: =ROUND(S15,0) -> 0 | BO15: =ROUND(U15,0) -> 0 | BQ15: =ROUND(AS15-SUM(C15:U15),0) -> 0
A17: 減：售賣成本(b)
B20: 期初存貨 | AS20: =SUM(C20:AR20) -> 0 | AW20: =ROUND(C20,0) -> 0 | AY20: =ROUND(E20,0) -> 0 | BA20: =ROUND(G20,0) -> 0 | BC20: =ROUND(I20,0) -> 0 | BE20: =ROUND(K20,0) -> 0 | BG20: =ROUND(M20,0) -> 0 | BI20: =ROUND(O20,0) -> 0 | BK20: =ROUND(Q20,0) -> 0 | BM20: =ROUND(S20,0) -> 0 | BO20: =ROUND(U20,0) -> 0 | BQ20: =ROUND(AS20-SUM(C20:U20),0) -> 0
B22: 加：購貨 | AS22: =SUM(C22:AR22) -> 0 | AW22: =ROUND(C22,0) -> 0 | AY22: =ROUND(E22,0) -> 0 | BA22: =ROUND(G22,0) -> 0 | BC22: =ROUND(I22,0) -> 0 | BE22: =ROUND(K22,0) -> 0 | BG22: =ROUND(M22,0) -> 0 | BI22: =ROUND(O22,0) -> 0 | BK22: =ROUND(Q22,0) -> 0 | BM22: =ROUND(S22,0) -> 0 | BO22: =ROUND(U22,0) -> 0 | BQ22: =ROUND(AS22-SUM(C22:U22),0) -> 0
B23: 其他開支 (請說明)
B24: (1) 請說明 | AS24: =SUM(C24:AR24) -> 0 | AW24: =ROUND(C24,0) -> 0 | AY24: =ROUND(E24,0) -> 0 | BA24: =ROUND(G24,0) -> 0 | BC24: =ROUND(I24,0) -> 0 | BE24: =ROUND(K24,0) -> 0 | BG24: =ROUND(M24,0) -> 0 | BI24: =ROUND(O24,0) -> 0 | BK24: =ROUND(Q24,0) -> 0 | BM24: =ROUND(S24,0) -> 0 | BO24: =ROUND(U24,0) -> 0 | BQ24: =ROUND(AS24-SUM(C24:U24),0) -> 0
B25: (2) 請說明 | AS25: =SUM(C25:X25) -> 0 | AW25: 0 | AY25: 0 | BA25: 0 | BC25: 0 | BE25: 0 | BG25: 0 | BI25: 0 | BK25: 0 | BM25: 0 | BO25: 0 | BQ25: 0
B26: (3) 請說明 | AS26: 0 | AW26: 0 | AY26: 0 | BA26: 0 | BC26: 0 | BE26: 0 | BG26: 0 | BI26: 0 | BK26: 0 | BM26: 0 | BO26: 0 | BQ26: 0
B27: (4) 請說明 | AS27: 0 | AW27: 0 | AY27: 0 | BA27: 0 | BC27: 0 | BE27: 0 | BG27: 0 | BI27: 0 | BK27: 0 | BM27: 0 | BO27: 0 | BQ27: 0
B28: (5) 請說明 | AS28: 0 | AW28: 0 | AY28: 0 | BA28: 0 | BC28: 0 | BE28: 0 | BG28: 0 | BI28: 0 | BK28: 0 | BM28: 0 | BO28: 0 | BQ28: 0
B29: (6) 請說明 | AS29: 0 | AW29: 0 | AY29: 0 | BA29: 0 | BC29: 0 | BE29: 0 | BG29: 0 | BI29: 0 | BK29: 0 | BM29: 0 | BO29: 0 | BQ29: 0
B30: (7) 請說明 | AS30: 0 | AW30: 0 | AY30: 0 | BA30: 0 | BC30: 0 | BE30: 0 | BG30: 0 | BI30: 0 | BK30: 0 | BM30: 0 | BO30: 0 | BQ30: 0
B31: (8) 請說明 | AS31: 0 | AW31: 0 | AY31: 0 | BA31: 0 | BC31: 0 | BE31: 0 | BG31: 0 | BI31: 0 | BK31: 0 | BM31: 0 | BO31: 0 | BQ31: 0
B32: (9) 請說明 | AS32: 0 | AW32: 0 | AY32: 0 | BA32: 0 | BC32: 0 | BE32: 0 | BG32: 0 | BI32: 0 | BK32: 0 | BM32: 0 | BO32: 0 | BQ32: 0
B33: (10) 請說明 | AS33: 0 | AW33: 0 | AY33: 0 | BA33: 0 | BC33: 0 | BE33: 0 | BG33: 0 | BI33: 0 | BK33: 0 | BM33: 0 | BO33: 0 | BQ33: 0
B35: 減：期末存貨 | AS35: =SUM(C35:AR35) -> 0 | AW35: =ROUND(C35,0) -> 0 | AY35: =ROUND(E35,0) -> 0 | BA35: =ROUND(G35,0) -> 0 | BC35: =ROUND(I35,0) -> 0 | BE35: =ROUND(K35,0) -> 0 | BG35: =ROUND(M35,0) -> 0 | BI35: =ROUND(O35,0) -> 0 | BK35: =ROUND(Q35,0) -> 0 | BM35: =ROUND(S35,0) -> 0 | BO35: =ROUND(U35,0) -> 0 | BQ35: =ROUND(AS35-SUM(C35:U35),0) -> 0
C37: =+C20+SUM(C22:C34)-C35 -> 0 | E37: =+E20+SUM(E22:E34)-E35 -> 0 | G37: =+G20+SUM(G22:G34)-G35 -> 0 | I37: =+I20+SUM(I22:I34)-I35 -> 0 | K37: =+K20+SUM(K22:K34)-K35 -> 0 | M37: =+M20+SUM(M22:M34)-M35 -> 0 | O37: =+O20+SUM(O22:O34)-O35 -> 0 | Q37: =+Q20+SUM(Q22:Q34)-Q35 -> 0 | S37: =+S20+SUM(S22:S34)-S35 -> 0 | U37: =+U20+SUM(U22:U34)-U35 -> 0 | W37: =+W20+SUM(W22:W34)-W35 -> 0 | Y37: =+Y20+SUM(Y22:Y34)-Y35 -> 0 | AA37: =+AA20+SUM(AA22:AA34)-AA35 -> 0 | AC37: =+AC20+SUM(AC22:AC34)-AC35 -> 0 | AE37: =+AE20+SUM(AE22:AE34)-AE35 -> 0 | AG37: =+AG20+SUM(AG22:AG34)-AG35 -> 0 | AI37: =+AI20+SUM(AI22:AI34)-AI35 -> 0 | AK37: =+AK20+SUM(AK22:AK34)-AK35 -> 0 | AM37: =+AM20+SUM(AM22:AM34)-AM35 -> 0 | AO37: =+AO20+SUM(AO22:AO34)-AO35 -> 0 | AQ37: =+AQ20+SUM(AQ22:AQ34)-AQ35 -> 0 | AS37: =+AS20+SUM(AS22:AS34)-AS35 -> 0 | AW37: =ROUND(C37,0) -> 0 | AY37: =ROUND(E37,0) -> 0 | BA37: =ROUND(G37,0) -> 0 | BC37: =ROUND(I37,0) -> 0 | BE37: =ROUND(K37,0) -> 0 | BG37: =ROUND(M37,0) -> 0 | BI37: =ROUND(O37,0) -> 0 | BK37: =ROUND(Q37,0) -> 0 | BM37: =ROUND(S37,0) -> 0 | BO37: =ROUND(U37,0) -> 0 | BQ37: =ROUND(AS37-SUM(C37:U37),0) -> 0
A40: 本年度的利潤/(虧損) (c) = (a) - (b) | C40: =+C15-C37 -> 0 | E40: =+E15-E37 -> 0 | G40: =+G15-G37 -> 0 | I40: =+I15-I37 -> 0 | K40: =+K15-K37 -> 0 | M40: =+M15-M37 -> 0 | O40: =+O15-O37 -> 0 | Q40: =+Q15-Q37 -> 0 | S40: =+S15-S37 -> 0 | U40: =+U15-U37 -> 0 | W40: =+W15-W37 -> 0 | Y40: =+Y15-Y37 -> 0 | AA40: =+AA15-AA37 -> 0 | AC40: =+AC15-AC37 -> 0 | AE40: =+AE15-AE37 -> 0 | AG40: =+AG15-AG37 -> 0 | AI40: =+AI15-AI37 -> 0 | AK40: =+AK15-AK37 -> 0 | AM40: =+AM15-AM37 -> 0 | AO40: =+AO15-AO37 -> 0 | AQ40: =+AQ15-AQ37 -> 0 | AS40: =+AS15-AS37 -> 0
A41: (轉撥入收支帳)
A43: 利潤/(虧損)佔成本的% (c)/(b) (註2及3) | C43: =IF(+C40=0,"",C40/C37) ->  | E43: =IF(+E40=0,"",E40/E37) ->  | G43: =IF(+G40=0,"",G40/G37) ->  | I43: =IF(+I40=0,"",I40/I37) ->  | K43: =IF(+K40=0,"",K40/K37) ->  | M43: =IF(+M40=0,"",M40/M37) ->  | O43: =IF(+O40=0,"",O40/O37) ->  | Q43: =IF(+Q40=0,"",Q40/Q37) ->  | S43: =IF(+S40=0,"",S40/S37) ->  | U43: =IF(+U40=0,"",U40/U37) ->  | W43: =IF(+W40=0,"",W40/W37) ->  | Y43: =IF(+Y40=0,"",Y40/Y37) ->  | AA43: =IF(+AA40=0,"",AA40/AA37) ->  | AC43: =IF(+AC40=0,"",AC40/AC37) ->  | AE43: =IF(+AE40=0,"",AE40/AE37) ->  | AG43: =IF(+AG40=0,"",AG40/AG37) ->  | AI43: =IF(+AI40=0,"",AI40/AI37) ->  | AK43: =IF(+AK40=0,"",AK40/AK37) ->  | AM43: =IF(+AM40=0,"",AM40/AM37) ->  | AO43: =IF(+AO40=0,"",AO40/AO37) ->  | AQ43: =IF(+AQ40=0,"",AQ40/AQ37) ->  | AS43: =IF(+AS40=0,"",AS40/AS37) -> 
A47: 註:
A48: 1. 請列明該項商業活動性質，並把每項商業活動分欄獨立填報。售賣課本應列為獨立活動。
A50: 2. 根據教育局通告第16/2013號，學校在售賣習作簿、校服、文具、用具及其他教育用品(課本除外)/提供收費服務所得的利潤，不得超過購貨成本價/涉及的費用總額15%的利潤上限規管。
A52: 3. 學校不得從售賣課本獲利。有關詳情，請參考教育局通告第16/2013號。
A54: 4. 營辦者/供應商在售賣活動所提供的折扣或整筆回佣，必須記入此帳的收入項下。
K64: - 10 -

Sheet 報表4B (hidden)
A2: 報表4B
A4: 在二零一七至一八學年參加免費優質幼稚園教育計劃而獲發一筆過啟動津貼的幼稚園∕幼稚園
A5: 暨幼兒中心適用
A7: 學校名稱 : 基督教香港信義會將軍澳幼稚園
A10: 截至 2017年8月31日為止
A11: 二零一七至一八學年免費優質幼稚園教育計劃下一筆過啟動津貼報表
B14: 本年度 | C14: 上年度 | D14: 附註
B15: 元 | C15: 元 | D15: (或註解)
A17: 收入
A19: 所得津貼 | C19: 0
B22: =B19 -> 0 | C22: =C19 -> 0
A24: 開支
A25: 推行免費優質幼稚園教育計劃
A27: (1) 額外人手的薪金和有關支出 | C27: 0
A28: (2) 僱用服務 | C28: 0
A29: (3) 增聘教師所需的家具及設備 | C29: 0
A30: (4) 小型裝修工程 | C30: 0
A31: (5) 其他開支1 | C31: 0
A32: (6) 其他開支2 | C32: 0
A33: (7) 其他開支3 | C33: 0
A34: (8) 其他開支4 | C34: 0
A35: (9) 其他開支5 | C35: 0
A36: (10) 其他開支6 | C36: 0
A37: (11) 其他開支7 | C37: 0
A38: (12) 其他開支8 | C38: 0
A39: (13) 其他開支9 | C39: 0
A40: (14) 其他開支10 | C40: 0
A41: (15) 其他開支11 | C41: 0
A43: 總開支 | B43: =SUM(B27:Above) -> 0 | C43: =SUM(C27:Above) -> 0
A45: 本年度的盈餘∕(虧損) | B45: =+B22-B43 -> 0 | C45: =+C22-C43 -> 0
A46: 上年度結轉的盈餘∕(虧損) | B46: =C47 -> 0 | C46: 0
A47: 結轉入下年度的盈餘∕(虧損) 或 應退回教育局之款項 (註) | B47: =B45+B46 -> 0 | C47: =C45+C46 -> 0 | D47: 與資產負債表所列數額相符
A51: 註:
A52: 截至二零一九年七月三十一日或幼稚園停辦∕被撤銷∕自願退出計畫日期(以較早者為準)，任何未用餘款須退還香港特別行政區政府。
B61: - 11 -

Sheet 報表5
A2: 報表 5
A4: (i)兌現學券計劃資助及∕或(ii)收取(a)幼兒中心資助計劃津貼、及∕或(b)優化幼兒服務人員津貼，及∕或(c)租金發還的幼稚園∕幼稚園暨幼兒中心適用
A6: =報表1!A8 -> 學校名稱 : ________________________________________________________________________
A7: =報表1!A9 -> 
A9: =報表4!A8 -> 截至 ______________________________為止
A10: 捐款收入報表
J12: maximum | K12: =MAX(K15:K195)*200 -> 0
B13: 本年度 | C13: 上年度 | D13: 附註
B14: 元 | C14: 元 | D14: (或註解) | J14: Original | K14: Integer | L14: Decimal | M14: Fake No. | N14: Rank | O14: Adj. Rank | P14: Adjustment | Q14: Final
A16: 捐款收入 | G16: DonationsReceived | H16: =ROW(G16) -> 16 | J16: =B16 -> 0 | K16: =ROUND(J16,0) -> 0 | L16: =J16-K16 -> 0 | M16: =ABS(L16)*K$12+K16 -> 0 | N16: =RANK(M16,M$16:M$36) -> 1 | O16: =N16+COUNTIF(N$16:N16,N16)-1 -> 1 | P16: =IF(O16<=ABS(P$40),IF(L16<0,-1,1),0) -> 0 | Q16: =P16+K16 -> 0
A20: 開支 (請說明)
A22: (1) (請說明) | J22: =B22 -> 0 | K22: =ROUND(J22,0) -> 0 | L22: =J22-K22 -> 0 | M22: =ABS(L22)*K$12+K22 -> 0 | N22: =RANK(M22,M$16:M$36) -> 1 | O22: =N22+COUNTIF(N$16:N22,N22)-1 -> 2 | P22: =IF(O22<=ABS(P$40),IF(L22<0,-1,1),0) -> 0 | Q22: =P22+K22 -> 0
A23: (2) (請說明) | J23: =B23 -> 0 | K23: 0 | L23: 0 | M23: 0 | N23: 1 | O23: =N23+COUNTIF(N$16:N23,N23)-1 -> 3 | P23: 0 | Q23: 0
A24: (3) (請說明) | J24: 0 | K24: 0 | L24: 0 | M24: 0 | N24: 1 | O24: =N24+COUNTIF(N$16:N24,N24)-1 -> 4 | P24: 0 | Q24: 0
A25: (4) (請說明) | J25: 0 | K25: 0 | L25: 0 | M25: 0 | N25: 1 | O25: =N25+COUNTIF(N$16:N25,N25)-1 -> 5 | P25: 0 | Q25: 0
A26: (5) (請說明) | J26: 0 | K26: 0 | L26: 0 | M26: 0 | N26: 1 | O26: =N26+COUNTIF(N$16:N26,N26)-1 -> 6 | P26: 0 | Q26: 0
A27: (6) (請說明) | J27: 0 | K27: 0 | L27: 0 | M27: 0 | N27: 1 | O27: =N27+COUNTIF(N$16:N27,N27)-1 -> 7 | P27: 0 | Q27: 0
A28: (7) (請說明) | J28: 0 | K28: 0 | L28: 0 | M28: 0 | N28: 1 | O28: =N28+COUNTIF(N$16:N28,N28)-1 -> 8 | P28: 0 | Q28: 0
A29: (8) (請說明) | J29: 0 | K29: 0 | L29: 0 | M29: 0 | N29: 1 | O29: =N29+COUNTIF(N$16:N29,N29)-1 -> 9 | P29: 0 | Q29: 0
A30: (9) (請說明) | J30: 0 | K30: 0 | L30: 0 | M30: 0 | N30: 1 | O30: =N30+COUNTIF(N$16:N30,N30)-1 -> 10 | P30: 0 | Q30: 0
A31: (10) (請說明) | J31: 0 | K31: 0 | L31: 0 | M31: 0 | N31: 1 | O31: =N31+COUNTIF(N$16:N31,N31)-1 -> 11 | P31: 0 | Q31: 0
A32: (11) (請說明) | J32: 0 | K32: 0 | L32: 0 | M32: 0 | N32: 1 | O32: =N32+COUNTIF(N$16:N32,N32)-1 -> 12 | P32: 0 | Q32: 0
A33: (12) (請說明) | J33: 0 | K33: 0 | L33: 0 | M33: 0 | N33: 1 | O33: =N33+COUNTIF(N$16:N33,N33)-1 -> 13 | P33: 0 | Q33: 0
A34: (13) (請說明) | J34: 0 | K34: 0 | L34: 0 | M34: 0 | N34: 1 | O34: =N34+COUNTIF(N$16:N34,N34)-1 -> 14 | P34: 0 | Q34: 0
A35: (14) (請說明) | J35: 0 | K35: 0 | L35: 0 | M35: 0 | N35: 1 | O35: =N35+COUNTIF(N$16:N35,N35)-1 -> 15 | P35: 0 | Q35: 0
A36: (15) (請說明) | J36: 0 | K36: 0 | L36: =J36-K36 -> 0 | M36: 0 | N36: 1 | O36: =N36+COUNTIF(N$16:N36,N36)-1 -> 16 | P36: 0 | Q36: 0
A38: 總開支 | B38: =SUM(B22:B36) -> 0 | C38: =SUM(C22:C36) -> 0 | G38: ExpChargedToDonationIncome | H38: =ROW(G38) -> 38 | J38: =SUM(J22:J37) -> 0 | K38: =SUM(K22:K37) -> 0 | L38: =SUM(L22:L37) -> 0 | Q38: =SUM(Q22:Q37) -> 0
A39: 淨結餘
A40: (轉撥入收支帳) | B40: =SUM(B16:B19)-B38 -> 0 | C40: =SUM(C16:C19)-C38 -> 0 | D40: =IF(ISBLANK(附件一!C$27),"須與報表*1/1A",(IF(附件一!C$27="有","須與報表 1A","須與報表 1")))&"所列數額相符" -> 須與報表*1/1A所列數額相符 | J40: =SUM(J16:J19)-J38 -> 0 | K40: =SUM(K16:K19)-K38 -> 0 | L40: =SUM(L16:L19)-L38 -> 0 | P40: =ROUND(J40,0)-K40 -> 0 | Q40: =SUM(Q16:Q19)-Q38 -> 0
A43: =IF(ISBLANK(附件一!C27),"* 請刪去不適用者","") -> * 請刪去不適用者
A56: - 11 -

Sheet 報表6_FA
A2: 報表 6
AC3: (五頁的第一頁)
A5: (i)兌現學券計劃資助及∕或(ii)收取(a)幼兒中心資助計劃津貼、及∕或(b)優化幼兒服務人員津貼，及∕或(c)租金發還的幼稚園∕幼稚園暨幼兒中心適用
A7: =報表1A!A8 -> 學校名稱 : ________________________________________________________________________
A8: =報表1A!A9 -> 
A10: 帳目註解
A12: 1. 固定資產
C13: A | E13: B | G13: C | I13: D | K13: E | M13: F | O13: G | Q13: H | S13: I | U13: J | W13: K | Y13: L | AA13: M | AC13: N
C14: 校舍 | E14: 家具 / 設備 / 裝置 / 器材 | G14: 電腦硬件及 軟件 | I14: 其他(請說明) | K14: 其他(請說明 | M14: 其他(請說明) | O14: 其他(請說明) | Q14: 其他(請說明) | S14: 其他(請說明) | U14: 其他(請說明) | W14: 其他(請說明) | Y14: 其他(請說明) | AA14: 其他(請說明) | AC14: 總額
C15: 元 | E15: 元 | G15: 元 | I15: 元 | K15: 元 | M15: 元 | O15: 元 | Q15: 元 | S15: 元 | U15: 元 | W15: 元 | Y15: 元 | AA15: 元 | AC15: 元
A16: 成本價
A18: =CONCATENATE("截至 ",IF(NOT(ISNUMBER(附件一!C32)),"___________ ",TEXT(附件一!C32,"yyyy年m月d日")),"的結餘") -> 截至 ___________ 的結餘 | AC18: =SUM(C18:AA18) -> 0
A20: 加：年內添置的資產 | C20: =報表6_其他!H31 -> 0 | E20: =報表6_其他!H48 -> 0 | G20: =報表6_其他!H65 -> 0 | AC20: =SUM(C20:AA20) -> 0
A21: (附註1) | AC21: 0
A23: 減：年內報銷的資產 | AC23: =SUM(C23:AA23) -> 0
A25: =CONCATENATE("截至",IF(NOT(ISNUMBER(附件一!C32)),"___________ ",TEXT(附件一!C33,"yyyy年m月d日")),"的結餘") -> 截至___________ 的結餘 | C25: =+C18+C20-C23 -> 0 | E25: =+E18+E20-E23 -> 0 | G25: =+G18+G20-G23 -> 0 | I25: =+I18+I20-I23 -> 0 | K25: =+K18+K20-K23 -> 0 | M25: =+M18+M20-M23 -> 0 | O25: =+O18+O20-O23 -> 0 | Q25: =+Q18+Q20-Q23 -> 0 | S25: =+S18+S20-S23 -> 0 | U25: =+U18+U20-U23 -> 0 | W25: =+W18+W20-W23 -> 0 | Y25: =+Y18+Y20-Y23 -> 0 | AA25: =+AA18+AA20-AA23 -> 0 | AC25: =+AC18+AC20-AC23 -> 0
A28: 累積折舊
A30: =A18 -> 截至 ___________ 的結餘 | AC30: =SUM(C30:AA30) -> 0
A32: 加：年內折舊 | AC32: =SUM(C32:AA32) -> 0
A34: 減：年內報銷資產的折舊 | AC34: =SUM(C34:AA34) -> 0
A37: =A25 -> 截至___________ 的結餘 | C37: =+C30+C32-C34 -> 0 | E37: =+E30+E32-E34 -> 0 | G37: =+G30+G32-G34 -> 0 | I37: =+I30+I32-I34 -> 0 | K37: =+K30+K32-K34 -> 0 | M37: =+M30+M32-M34 -> 0 | O37: =+O30+O32-O34 -> 0 | Q37: =+Q30+Q32-Q34 -> 0 | S37: =+S30+S32-S34 -> 0 | U37: =+U30+U32-U34 -> 0 | W37: =+W30+W32-W34 -> 0 | Y37: =+Y30+Y32-Y34 -> 0 | AA37: =+AA30+AA32-AA34 -> 0 | AC37: =+AC30+AC32-AC34 -> 0
A40: 帳面淨值
A42: =A18 -> 截至 ___________ 的結餘 | C42: =+C18-C30 -> 0 | E42: =+E18-E30 -> 0 | G42: =+G18-G30 -> 0 | I42: =+I18-I30 -> 0 | K42: =+K18-K30 -> 0 | M42: =+M18-M30 -> 0 | O42: =+O18-O30 -> 0 | Q42: =+Q18-Q30 -> 0 | S42: =+S18-S30 -> 0 | U42: =+U18-U30 -> 0 | W42: =+W18-W30 -> 0 | Y42: =+Y18-Y30 -> 0 | AA42: =+AA18-AA30 -> 0 | AC42: =+AC18-AC30 -> 0
A43: (本年度的開始日期)
A46: =A25 -> 截至___________ 的結餘 | C46: =+C25-C37 -> 0 | E46: =+E25-E37 -> 0 | G46: =+G25-G37 -> 0 | I46: =+I25-I37 -> 0 | K46: =+K25-K37 -> 0 | M46: =+M25-M37 -> 0 | O46: =+O25-O37 -> 0 | Q46: =+Q25-Q37 -> 0 | S46: =+S25-S37 -> 0 | U46: =+U25-U37 -> 0 | W46: =+W25-W37 -> 0 | Y46: =+Y25-Y37 -> 0 | AA46: =+AA25-AA37 -> 0 | AC46: =+AC25-AC37 -> 0
A47: (本年度的終結日期)
A49: 固定資產的起點金額(附註2)
A51: 折舊率 (%)
A54: 附註:
A55: 1 所有參加學券計劃的幼稚園及幼稚園暨幼兒中心，均須於註解2填寫詳細資料。
A56: 2 請填報每類資產訂定為固定資產的起點金額。(即當添置有關資產類別項目時，如費用達至或超逾某金額，則該項目會被視為固定資產。)
AC57: (續下頁)
A58: - 12 -

Sheet 報表6_其他
A1: 報表 6
H3: (五頁的第二頁)
A4: =報表5!A6 -> 學校名稱 : ________________________________________________________________________
A5: =報表5!A7 -> 
A7: 帳目註解
A9: 2. 二零一七/一八年度內添置的固定資產詳細報表
O11: maximum | P11: =MAX(P14:P529)*200 -> 0 | X11: maximum | Y11: =MAX(Y14:Y529)*200 -> 0
A12: 固定資產性質及項目 | F12: 購置/使用 | G12: 金額
F13: 日期 | O13: Original | P13: Integer | Q13: Decimal | R13: Fake No. | S13: Rank | T13: Adj. Rank | U13: Adjustment | V13: Final
G14: 元
A15: 1. 校舍
A16: (1.1) | B16: 請說明 | O16: =H16 -> 0 | P16: =INT(O16) -> 0 | Q16: =ROUND(O16,2)-P16 -> 0 | R16: =Q16*P$11+P16 -> 0 | S16: =RANK(R16,R$16:R$30) -> 1 | T16: =S16+COUNTIF(S$16:S16,S16)-1 -> 1 | U16: =IF(T16<=U$31,1,0) -> 0 | V16: =U16+P16 -> 0
A17: (1.2) | B17: 請說明 | O17: =H17 -> 0 | P17: 0 | Q17: =ROUND(O17,2)-P17 -> 0 | R17: =Q17*P$11+P17 -> 0 | S17: =RANK(R17,R$16:R$30) -> 1 | T17: =S17+COUNTIF(S$16:S17,S17)-1 -> 2 | U17: =IF(T17<=U$31,1,0) -> 0 | V17: 0
A18: (1.3) | B18: 請說明 | O18: 0 | P18: 0 | Q18: 0 | R18: 0 | S18: 1 | T18: =S18+COUNTIF(S$16:S18,S18)-1 -> 3 | U18: 0 | V18: 0
A19: (1.4) | B19: 請說明 | O19: 0 | P19: 0 | Q19: 0 | R19: 0 | S19: 1 | T19: =S19+COUNTIF(S$16:S19,S19)-1 -> 4 | U19: 0 | V19: 0
A20: (1.5) | B20: 請說明 | O20: 0 | P20: 0 | Q20: 0 | R20: 0 | S20: 1 | T20: =S20+COUNTIF(S$16:S20,S20)-1 -> 5 | U20: 0 | V20: 0
A21: (1.6) | B21: 請說明 | O21: 0 | P21: 0 | Q21: 0 | R21: 0 | S21: 1 | T21: =S21+COUNTIF(S$16:S21,S21)-1 -> 6 | U21: 0 | V21: 0
A22: (1.7) | B22: 請說明 | O22: 0 | P22: 0 | Q22: 0 | R22: 0 | S22: 1 | T22: =S22+COUNTIF(S$16:S22,S22)-1 -> 7 | U22: 0 | V22: 0
A23: (1.8) | B23: 請說明 | O23: 0 | P23: 0 | Q23: 0 | R23: 0 | S23: 1 | T23: =S23+COUNTIF(S$16:S23,S23)-1 -> 8 | U23: 0 | V23: 0
A24: (1.9) | B24: 請說明 | O24: 0 | P24: 0 | Q24: 0 | R24: 0 | S24: 1 | T24: =S24+COUNTIF(S$16:S24,S24)-1 -> 9 | U24: 0 | V24: 0
A25: (1.10) | B25: 請說明 | O25: 0 | P25: 0 | Q25: 0 | R25: 0 | S25: 1 | T25: =S25+COUNTIF(S$16:S25,S25)-1 -> 10 | U25: 0 | V25: 0
A26: (1.11) | B26: 請說明 | O26: 0 | P26: 0 | Q26: 0 | R26: 0 | S26: 1 | T26: =S26+COUNTIF(S$16:S26,S26)-1 -> 11 | U26: 0 | V26: 0
A27: (1.12) | B27: 請說明 | O27: 0 | P27: 0 | Q27: 0 | R27: 0 | S27: 1 | T27: =S27+COUNTIF(S$16:S27,S27)-1 -> 12 | U27: 0 | V27: 0
A28: (1.13) | B28: 請說明 | O28: 0 | P28: 0 | Q28: 0 | R28: 0 | S28: 1 | T28: =S28+COUNTIF(S$16:S28,S28)-1 -> 13 | U28: 0 | V28: 0
A29: (1.14) | B29: 請說明 | O29: 0 | P29: 0 | Q29: 0 | R29: 0 | S29: 1 | T29: =S29+COUNTIF(S$16:S29,S29)-1 -> 14 | U29: 0 | V29: 0
A30: (1.15) | B30: 請說明 | O30: 0 | P30: 0 | Q30: 0 | R30: 0 | S30: 1 | T30: =S30+COUNTIF(S$16:S30,S30)-1 -> 15 | U30: 0 | V30: 0
F31: 總額： | H31: =SUM(H16:H30) -> 0 | O31: =SUM(O16:O30) -> 0 | P31: =SUM(P16:P30) -> 0 | Q31: =SUM(Q16:Q30) -> 0 | U31: =ROUND(O31,0)-P31 -> 0 | V31: =SUM(V16:V30) -> 0
A32: 2. 家具/設備/裝置/器材
A33: (2.1) | B33: 請說明 | O33: =H33 -> 0 | P33: =INT(O33) -> 0 | Q33: =ROUND(O33,2)-P33 -> 0 | R33: =Q33*P$11+P33 -> 0 | S33: =RANK(R33,R$33:R$47) -> 1 | T33: =S33+COUNTIF(S$33:S33,S33)-1 -> 1 | U33: =IF(T33<=U$48,1,0) -> 0 | V33: =U33+P33 -> 0
A34: (2.2) | B34: 請說明 | O34: =H34 -> 0 | P34: 0 | Q34: 0 | R34: 0 | S34: =RANK(R34,R$33:R$47) -> 1 | T34: =S34+COUNTIF(S$33:S34,S34)-1 -> 2 | U34: =IF(T34<=U$48,1,0) -> 0 | V34: 0
A35: (2.3) | B35: 請說明 | O35: 0 | P35: 0 | Q35: 0 | R35: 0 | S35: 1 | T35: =S35+COUNTIF(S$33:S35,S35)-1 -> 3 | U35: 0 | V35: 0
A36: (2.4) | B36: 請說明 | O36: 0 | P36: 0 | Q36: 0 | R36: 0 | S36: 1 | T36: =S36+COUNTIF(S$33:S36,S36)-1 -> 4 | U36: 0 | V36: 0
A37: (2.5) | B37: 請說明 | O37: 0 | P37: 0 | Q37: 0 | R37: 0 | S37: 1 | T37: =S37+COUNTIF(S$33:S37,S37)-1 -> 5 | U37: 0 | V37: 0
A38: (2.6) | B38: 請說明 | O38: 0 | P38: 0 | Q38: 0 | R38: 0 | S38: 1 | T38: =S38+COUNTIF(S$33:S38,S38)-1 -> 6 | U38: 0 | V38: 0
A39: (2.7) | B39: 請說明 | O39: 0 | P39: 0 | Q39: 0 | R39: 0 | S39: 1 | T39: =S39+COUNTIF(S$33:S39,S39)-1 -> 7 | U39: 0 | V39: 0
A40: (2.8) | B40: 請說明 | O40: 0 | P40: 0 | Q40: 0 | R40: 0 | S40: 1 | T40: =S40+COUNTIF(S$33:S40,S40)-1 -> 8 | U40: 0 | V40: 0
A41: (2.9) | B41: 請說明 | O41: 0 | P41: 0 | Q41: 0 | R41: 0 | S41: 1 | T41: =S41+COUNTIF(S$33:S41,S41)-1 -> 9 | U41: 0 | V41: 0
A42: (2.10) | B42: 請說明 | O42: 0 | P42: 0 | Q42: 0 | R42: 0 | S42: 1 | T42: =S42+COUNTIF(S$33:S42,S42)-1 -> 10 | U42: 0 | V42: 0
A43: (2.11) | B43: 請說明 | O43: 0 | P43: 0 | Q43: 0 | R43: 0 | S43: 1 | T43: =S43+COUNTIF(S$33:S43,S43)-1 -> 11 | U43: 0 | V43: 0
A44: (2.12) | B44: 請說明 | O44: 0 | P44: 0 | Q44: 0 | R44: 0 | S44: 1 | T44: =S44+COUNTIF(S$33:S44,S44)-1 -> 12 | U44: 0 | V44: 0
A45: (2.13) | B45: 請說明 | O45: 0 | P45: 0 | Q45: 0 | R45: 0 | S45: 1 | T45: =S45+COUNTIF(S$33:S45,S45)-1 -> 13 | U45: 0 | V45: 0
A46: (2.14) | B46: 請說明 | O46: 0 | P46: 0 | Q46: 0 | R46: 0 | S46: 1 | T46: =S46+COUNTIF(S$33:S46,S46)-1 -> 14 | U46: 0 | V46: 0
A47: (2.15) | B47: 請說明 | O47: 0 | P47: 0 | Q47: 0 | R47: 0 | S47: 1 | T47: =S47+COUNTIF(S$33:S47,S47)-1 -> 15 | U47: 0 | V47: 0
F48: 總額： | H48: =SUM(H33:H47) -> 0 | O48: =SUM(O33:O47) -> 0 | P48: =SUM(P33:P47) -> 0 | Q48: =SUM(Q33:Q47) -> 0 | U48: =ROUND(O48,0)-P48 -> 0 | V48: =SUM(V33:V47) -> 0
A49: 3. 電腦硬件及軟件
A50: (3.1) | B50: 請說明 | O50: =H50 -> 0 | P50: =INT(O50) -> 0 | Q50: =ROUND(O50,2)-P50 -> 0 | R50: =Q50*P$11+P50 -> 0 | S50: =RANK(R50,R$50:R$59) -> 1 | T50: =S50+COUNTIF(S$50:S50,S50)-1 -> 1 | U50: =IF(T50<=U$65,1,0) -> 0 | V50: =U50+P50 -> 0
A51: (3.2) | B51: 請說明 | O51: =H51 -> 0 | P51: 0 | Q51: 0 | R51: 0 | S51: =RANK(R51,R$50:R$59) -> 1 | T51: =S51+COUNTIF(S$50:S51,S51)-1 -> 2 | U51: =IF(T51<=U$65,1,0) -> 0 | V51: 0
A52: (3.3) | B52: 請說明 | O52: 0 | P52: 0 | Q52: 0 | R52: 0 | S52: 1 | T52: =S52+COUNTIF(S$50:S52,S52)-1 -> 3 | U52: 0 | V52: 0
A53: (3.4) | B53: 請說明 | O53: 0 | P53: 0 | Q53: 0 | R53: 0 | S53: 1 | T53: =S53+COUNTIF(S$50:S53,S53)-1 -> 4 | U53: 0 | V53: 0
A54: (3.5) | B54: 請說明 | O54: 0 | P54: 0 | Q54: 0 | R54: 0 | S54: 1 | T54: =S54+COUNTIF(S$50:S54,S54)-1 -> 5 | U54: 0 | V54: 0
A55: (3.6) | B55: 請說明 | O55: 0 | P55: 0 | Q55: 0 | R55: 0 | S55: 1 | T55: =S55+COUNTIF(S$50:S55,S55)-1 -> 6 | U55: 0 | V55: 0
A56: (3.7) | B56: 請說明 | O56: 0 | P56: 0 | Q56: 0 | R56: 0 | S56: 1 | T56: =S56+COUNTIF(S$50:S56,S56)-1 -> 7 | U56: 0 | V56: 0
A57: (3.8) | B57: 請說明 | O57: 0 | P57: 0 | Q57: 0 | R57: 0 | S57: 1 | T57: =S57+COUNTIF(S$50:S57,S57)-1 -> 8 | U57: 0 | V57: 0
A58: (3.9) | B58: 請說明 | O58: 0 | P58: 0 | Q58: 0 | R58: 0 | S58: 1 | T58: =S58+COUNTIF(S$50:S58,S58)-1 -> 9 | U58: 0 | V58: 0
A59: (3.10) | B59: 請說明 | O59: 0 | P59: 0 | Q59: 0 | R59: 0 | S59: 1 | T59: =S59+COUNTIF(S$50:S59,S59)-1 -> 10 | U59: 0 | V59: 0
A60: (3.11) | B60: 請說明
A61: (3.12) | B61: 請說明
A62: (3.13) | B62: 請說明
A63: (3.14) | B63: 請說明
A64: (3.15) | B64: 請說明
F65: 總額： | H65: =SUM(H50:H64) -> 0 | O65: =SUM(O50:O64) -> 0 | P65: =SUM(P50:P64) -> 0 | Q65: =SUM(Q50:Q64) -> 0 | U65: =ROUND(O65,0)-P65 -> 0 | V65: =SUM(V50:V64) -> 0
A66: 4 其他 (請說明)
A67: (4.1) | B67: 請說明 | O67: =H67 -> 0 | P67: =INT(O67) -> 0 | Q67: =ROUND(O67,2)-P67 -> 0 | R67: =Q67*P$11+P67 -> 0 | S67: =RANK(R67,R$67:R$81) -> 1 | T67: =S67+COUNTIF(S$67:S67,S67)-1 -> 1 | U67: =IF(T67<=U$82,1,0) -> 0 | V67: =U67+P67 -> 0
A68: (4.2) | B68: 請說明 | O68: =H68 -> 0 | P68: 0 | Q68: 0 | R68: 0 | S68: =RANK(R68,R$67:R$81) -> 1 | T68: =S68+COUNTIF(S$67:S68,S68)-1 -> 2 | U68: =IF(T68<=U$82,1,0) -> 0 | V68: 0
A69: (4.3) | B69: 請說明 | O69: 0 | P69: 0 | Q69: 0 | R69: 0 | S69: 1 | T69: =S69+COUNTIF(S$67:S69,S69)-1 -> 3 | U69: 0 | V69: 0
A70: (4.4) | B70: 請說明 | O70: 0 | P70: 0 | Q70: 0 | R70: 0 | S70: 1 | T70: =S70+COUNTIF(S$67:S70,S70)-1 -> 4 | U70: 0 | V70: 0
A71: (4.5) | B71: 請說明 | O71: 0 | P71: 0 | Q71: 0 | R71: 0 | S71: 1 | T71: =S71+COUNTIF(S$67:S71,S71)-1 -> 5 | U71: 0 | V71: 0
A72: (4.6) | B72: 請說明 | O72: 0 | P72: 0 | Q72: 0 | R72: 0 | S72: 1 | T72: =S72+COUNTIF(S$67:S72,S72)-1 -> 6 | U72: 0 | V72: 0
A73: (4.7) | B73: 請說明 | O73: 0 | P73: 0 | Q73: 0 | R73: 0 | S73: 1 | T73: =S73+COUNTIF(S$67:S73,S73)-1 -> 7 | U73: 0 | V73: 0
A74: (4.8) | B74: 請說明 | O74: 0 | P74: 0 | Q74: 0 | R74: 0 | S74: 1 | T74: =S74+COUNTIF(S$67:S74,S74)-1 -> 8 | U74: 0 | V74: 0
A75: (4.9) | B75: 請說明 | O75: 0 | P75: 0 | Q75: 0 | R75: 0 | S75: 1 | T75: =S75+COUNTIF(S$67:S75,S75)-1 -> 9 | U75: 0 | V75: 0
A76: (4.10) | B76: 請說明 | O76: 0 | P76: 0 | Q76: 0 | R76: 0 | S76: 1 | T76: =S76+COUNTIF(S$67:S76,S76)-1 -> 10 | U76: 0 | V76: 0
A77: (4.11) | B77: 請說明 | O77: 0 | P77: 0 | Q77: 0 | R77: 0 | S77: 1 | T77: =S77+COUNTIF(S$67:S77,S77)-1 -> 11 | U77: 0 | V77: 0
A78: (4.12) | B78: 請說明 | O78: 0 | P78: 0 | Q78: 0 | R78: 0 | S78: 1 | T78: =S78+COUNTIF(S$67:S78,S78)-1 -> 12 | U78: 0 | V78: 0
A79: (4.13) | B79: 請說明 | O79: 0 | P79: 0 | Q79: 0 | R79: 0 | S79: 1 | T79: =S79+COUNTIF(S$67:S79,S79)-1 -> 13 | U79: 0 | V79: 0
A80: (4.14) | B80: 請說明 | O80: 0 | P80: 0 | Q80: 0 | R80: 0 | S80: 1 | T80: =S80+COUNTIF(S$67:S80,S80)-1 -> 14 | U80: 0 | V80: 0
A81: (4.15) | B81: 請說明 | O81: 0 | P81: 0 | Q81: 0 | R81: 0 | S81: 1 | T81: =S81+COUNTIF(S$67:S81,S81)-1 -> 15 | U81: 0 | V81: 0
F82: 總額： | H82: =SUM(H67:H81) -> 0 | O82: =SUM(O67:O81) -> 0 | P82: =SUM(P67:P81) -> 0 | Q82: =SUM(Q67:Q81) -> 0 | U82: =ROUND(O82,0)-P82 -> 0 | V82: =SUM(V67:V81) -> 0
D83: (須與註1相符) | H83: =IF(SUM(H31,H48,H65,H82)=報表6_FA!AC20,"正確","不正確, 請核對資料") -> 正確
H85: (續下頁)
A86: - 13 -
A88: =A1 -> 報表 6
H90: (五頁的第三頁)
A91: =A4 -> 學校名稱 : ________________________________________________________________________
A92: =A5 -> 
A94: =A7 -> 帳目註解
A96: 3. 其他支出
D97: 本年度 | H97: 上年度
D98: 元 | H98: 元
D99: 本地課程 班級 | F99: 非本地課程 班級 | H99: 總額
A100: 準備學生膳食費用 | K100: ExpMealPreparation | L100: =ROW() -> 100 | O100: =D100 -> 0 | P100: =INT(O100) -> 0 | Q100: =ROUND(O100,2)-P100 -> 0 | R100: =Q100*P$11+P100 -> 0 | S100: =RANK(R100,R$100:R$134) -> 1 | T100: =S100+COUNTIF(S$100:S100,S100)-1 -> 1 | U100: =IF(T100<=U$135,1,0) -> 0 | V100: =U100+P100 -> 0 | X100: =F100 -> 0 | Y100: =INT(X100) -> 0 | Z100: =ROUND(X100,2)-Y100 -> 0 | AA100: =Z100*Y$11+Y100 -> 0 | AB100: =RANK(AA100,AA$100:AA$134) -> 1 | AC100: =AB100+COUNTIF(AB$100:AB100,AB100)-1 -> 1 | AD100: =IF(AC100<=AD$135,1,0) -> 0 | AE100: =AD100+Y100 -> 0
A101: 固定資產以外的家具、設備及教具 | K101: FEAndTeachingAids | L101: =ROW() -> 101 | O101: =D101 -> 0 | P101: 0 | Q101: 0 | R101: 0 | S101: =RANK(R101,R$100:R$134) -> 1 | T101: =S101+COUNTIF(S$100:S101,S101)-1 -> 2 | U101: =IF(T101<=U$135,1,0) -> 0 | V101: 0 | X101: =F101 -> 0 | Y101: 0 | Z101: 0 | AA101: 0 | AB101: =RANK(AA101,AA$100:AA$134) -> 1 | AC101: =AB101+COUNTIF(AB$100:AB101,AB101)-1 -> 2 | AD101: =IF(AC101<=AD$135,1,0) -> 0 | AE101: 0
A102: 水費 | K102: Water | L102: =ROW() -> 102 | O102: 0 | P102: 0 | Q102: 0 | R102: 0 | S102: 1 | T102: =S102+COUNTIF(S$100:S102,S102)-1 -> 3 | U102: 0 | V102: 0 | X102: 0 | Y102: 0 | Z102: 0 | AA102: 0 | AB102: 1 | AC102: =AB102+COUNTIF(AB$100:AB102,AB102)-1 -> 3 | AD102: 0 | AE102: 0
A103: 電費 | K103: Electricity | L103: =ROW() -> 103 | O103: 0 | P103: 0 | Q103: 0 | R103: 0 | S103: 1 | T103: =S103+COUNTIF(S$100:S103,S103)-1 -> 4 | U103: 0 | V103: 0 | X103: 0 | Y103: 0 | Z103: 0 | AA103: 0 | AB103: 1 | AC103: =AB103+COUNTIF(AB$100:AB103,AB103)-1 -> 4 | AD103: 0 | AE103: 0
A104: 電話、傳真機及互聯網服務費用 | K104: Telephone | L104: =ROW() -> 104 | O104: 0 | P104: 0 | Q104: 0 | R104: 0 | S104: 1 | T104: =S104+COUNTIF(S$100:S104,S104)-1 -> 5 | U104: 0 | V104: 0 | X104: 0 | Y104: 0 | Z104: 0 | AA104: 0 | AB104: 1 | AC104: =AB104+COUNTIF(AB$100:AB104,AB104)-1 -> 5 | AD104: 0 | AE104: 0
A105: 清潔費 | K105: Cleaning | L105: =ROW() -> 105 | O105: 0 | P105: 0 | Q105: 0 | R105: 0 | S105: 1 | T105: =S105+COUNTIF(S$100:S105,S105)-1 -> 6 | U105: 0 | V105: 0 | X105: 0 | Y105: 0 | Z105: 0 | AA105: 0 | AB105: 1 | AC105: =AB105+COUNTIF(AB$100:AB105,AB105)-1 -> 6 | AD105: 0 | AE105: 0
A106: 印刷及文具 | K106: Printing | L106: =ROW() -> 106 | O106: 0 | P106: 0 | Q106: 0 | R106: 0 | S106: 1 | T106: =S106+COUNTIF(S$100:S106,S106)-1 -> 7 | U106: 0 | V106: 0 | X106: 0 | Y106: 0 | Z106: 0 | AA106: 0 | AB106: 1 | AC106: =AB106+COUNTIF(AB$100:AB106,AB106)-1 -> 7 | AD106: 0 | AE106: 0
A107: 教學消耗品 | K107: TeachingConsumables | L107: =ROW() -> 107 | O107: 0 | P107: 0 | Q107: 0 | R107: 0 | S107: 1 | T107: =S107+COUNTIF(S$100:S107,S107)-1 -> 8 | U107: 0 | V107: 0 | X107: 0 | Y107: 0 | Z107: 0 | AA107: 0 | AB107: 1 | AC107: =AB107+COUNTIF(AB$100:AB107,AB107)-1 -> 8 | AD107: 0 | AE107: 0
A108: 保險費 | K108: Insurance | L108: =ROW() -> 108 | O108: 0 | P108: 0 | Q108: 0 | R108: 0 | S108: 1 | T108: =S108+COUNTIF(S$100:S108,S108)-1 -> 9 | U108: 0 | V108: 0 | X108: 0 | Y108: 0 | Z108: 0 | AA108: 0 | AB108: 1 | AC108: =AB108+COUNTIF(AB$100:AB108,AB108)-1 -> 9 | AD108: 0 | AE108: 0
A109: 急救及消防安全設備 | K109: FirstAidAndFireSafety | L109: =ROW() -> 109 | O109: 0 | P109: 0 | Q109: 0 | R109: 0 | S109: 1 | T109: =S109+COUNTIF(S$100:S109,S109)-1 -> 10 | U109: 0 | V109: 0 | X109: 0 | Y109: 0 | Z109: 0 | AA109: 0 | AB109: 1 | AC109: =AB109+COUNTIF(AB$100:AB109,AB109)-1 -> 10 | AD109: 0 | AE109: 0
A110: 用於校務的交通費 | K110: Travelling | L110: =ROW() -> 110 | O110: 0 | P110: 0 | Q110: 0 | R110: 0 | S110: 1 | T110: =S110+COUNTIF(S$100:S110,S110)-1 -> 11 | U110: 0 | V110: 0 | X110: 0 | Y110: 0 | Z110: 0 | AA110: 0 | AB110: 1 | AC110: =AB110+COUNTIF(AB$100:AB110,AB110)-1 -> 11 | AD110: 0 | AE110: 0
A111: 所有學生均需參加的常規學習活動支出 | K111: RegularLearning | L111: =ROW() -> 111 | O111: 0 | P111: 0 | Q111: 0 | R111: 0 | S111: 1 | T111: =S111+COUNTIF(S$100:S111,S111)-1 -> 12 | U111: 0 | V111: 0 | X111: 0 | Y111: 0 | Z111: 0 | AA111: 0 | AB111: 1 | AC111: =AB111+COUNTIF(AB$100:AB111,AB111)-1 -> 12 | AD111: 0 | AE111: 0
A112: 郵費 | K112: Postage | L112: =ROW() -> 112 | O112: 0 | P112: 0 | Q112: 0 | R112: 0 | S112: 1 | T112: =S112+COUNTIF(S$100:S112,S112)-1 -> 13 | U112: 0 | V112: 0 | X112: 0 | Y112: 0 | Z112: 0 | AA112: 0 | AB112: 1 | AC112: =AB112+COUNTIF(AB$100:AB112,AB112)-1 -> 13 | AD112: 0 | AE112: 0
A113: 學校的書刊開支 | K113: Publications | L113: =ROW() -> 113 | O113: 0 | P113: 0 | Q113: 0 | R113: 0 | S113: 1 | T113: =S113+COUNTIF(S$100:S113,S113)-1 -> 14 | U113: 0 | V113: 0 | X113: 0 | Y113: 0 | Z113: 0 | AA113: 0 | AB113: 1 | AC113: =AB113+COUNTIF(AB$100:AB113,AB113)-1 -> 14 | AD113: 0 | AE113: 0
A114: 學生手冊、 學習進度表、 畢業證書及學生證件 | K114: StudentHandbooks | L114: =ROW() -> 114 | O114: 0 | P114: 0 | Q114: 0 | R114: 0 | S114: 1 | T114: =S114+COUNTIF(S$100:S114,S114)-1 -> 15 | U114: 0 | V114: 0 | X114: 0 | Y114: 0 | Z114: 0 | AA114: 0 | AB114: 1 | AC114: =AB114+COUNTIF(AB$100:AB114,AB114)-1 -> 15 | AD114: 0 | AE114: 0
A115: 廣告費 | K115: Advertisement | L115: =ROW() -> 115 | O115: 0 | P115: 0 | Q115: 0 | R115: 0 | S115: 1 | T115: =S115+COUNTIF(S$100:S115,S115)-1 -> 16 | U115: 0 | V115: 0 | X115: 0 | Y115: 0 | Z115: 0 | AA115: 0 | AB115: 1 | AC115: =AB115+COUNTIF(AB$100:AB115,AB115)-1 -> 16 | AD115: 0 | AE115: 0
A116: 銀行利息 | K116: BankInterest | L116: =ROW() -> 116 | O116: 0 | P116: 0 | Q116: 0 | R116: 0 | S116: 1 | T116: =S116+COUNTIF(S$100:S116,S116)-1 -> 17 | U116: 0 | V116: 0 | X116: 0 | Y116: 0 | Z116: 0 | AA116: 0 | AB116: 1 | AC116: =AB116+COUNTIF(AB$100:AB116,AB116)-1 -> 17 | AD116: 0 | AE116: 0
A117: 銀行收費 | K117: BankCharges | L117: =ROW() -> 117 | O117: 0 | P117: 0 | Q117: 0 | R117: 0 | S117: 1 | T117: =S117+COUNTIF(S$100:S117,S117)-1 -> 18 | U117: 0 | V117: 0 | X117: 0 | Y117: 0 | Z117: 0 | AA117: 0 | AB117: 1 | AC117: =AB117+COUNTIF(AB$100:AB117,AB117)-1 -> 18 | AD117: 0 | AE117: 0
A118: 報紙及雜誌 | K118: Newspapers | L118: =ROW() -> 118 | O118: 0 | P118: 0 | Q118: 0 | R118: 0 | S118: 1 | T118: =S118+COUNTIF(S$100:S118,S118)-1 -> 19 | U118: 0 | V118: 0 | X118: 0 | Y118: 0 | Z118: 0 | AA118: 0 | AB118: 1 | AC118: =AB118+COUNTIF(AB$100:AB118,AB118)-1 -> 19 | AD118: 0 | AE118: 0
A119: 其他
A120: (1) | B120: 請說明 | K120: OtherExpenditureAmount1 | L120: =ROW() -> 120 | O120: 0 | P120: =INT(O120) -> 0 | Q120: 0 | R120: 0 | S120: 1 | T120: =S120+COUNTIF(S$100:S120,S120)-1 -> 20 | U120: 0 | V120: =U120+P120 -> 0 | X120: 0 | Y120: 0 | Z120: 0 | AA120: 0 | AB120: 1 | AC120: =AB120+COUNTIF(AB$100:AB120,AB120)-1 -> 20 | AD120: 0 | AE120: 0 | AF120: =IF(OR(ISBLANK(B120),B120=""),A120,B120) -> 請說明
A121: (2) | B121: 請說明 | K121: OtherExpenditureAmount2 | L121: =ROW() -> 121 | O121: 0 | P121: 0 | Q121: 0 | R121: 0 | S121: 1 | T121: =S121+COUNTIF(S$100:S121,S121)-1 -> 21 | U121: 0 | V121: 0 | X121: 0 | Y121: 0 | Z121: 0 | AA121: 0 | AB121: 1 | AC121: =AB121+COUNTIF(AB$100:AB121,AB121)-1 -> 21 | AD121: 0 | AE121: 0 | AF121: 請說明
A122: (3) | B122: 請說明 | K122: OtherExpenditureAmount3 | L122: =ROW() -> 122 | O122: 0 | P122: 0 | Q122: 0 | R122: 0 | S122: 1 | T122: =S122+COUNTIF(S$100:S122,S122)-1 -> 22 | U122: 0 | V122: 0 | X122: 0 | Y122: 0 | Z122: 0 | AA122: 0 | AB122: 1 | AC122: =AB122+COUNTIF(AB$100:AB122,AB122)-1 -> 22 | AD122: 0 | AE122: 0 | AF122: 請說明
A123: (4) | B123: 請說明 | K123: OtherExpenditureAmount4 | L123: =ROW() -> 123 | O123: 0 | P123: 0 | Q123: 0 | R123: 0 | S123: 1 | T123: =S123+COUNTIF(S$100:S123,S123)-1 -> 23 | U123: 0 | V123: 0 | X123: 0 | Y123: 0 | Z123: 0 | AA123: 0 | AB123: 1 | AC123: =AB123+COUNTIF(AB$100:AB123,AB123)-1 -> 23 | AD123: 0 | AE123: 0 | AF123: 請說明
A124: (5) | B124: 請說明 | K124: OtherExpenditureAmount5 | L124: =ROW() -> 124 | O124: 0 | P124: 0 | Q124: 0 | R124: 0 | S124: 1 | T124: =S124+COUNTIF(S$100:S124,S124)-1 -> 24 | U124: 0 | V124: 0 | X124: 0 | Y124: 0 | Z124: 0 | AA124: 0 | AB124: 1 | AC124: =AB124+COUNTIF(AB$100:AB124,AB124)-1 -> 24 | AD124: 0 | AE124: 0 | AF124: 請說明
A125: (6) | B125: 請說明 | K125: OtherExpenditureAmount6 | L125: =ROW() -> 125 | O125: 0 | P125: 0 | Q125: 0 | R125: 0 | S125: 1 | T125: =S125+COUNTIF(S$100:S125,S125)-1 -> 25 | U125: 0 | V125: 0 | X125: 0 | Y125: 0 | Z125: 0 | AA125: 0 | AB125: 1 | AC125: =AB125+COUNTIF(AB$100:AB125,AB125)-1 -> 25 | AD125: 0 | AE125: 0 | AF125: 請說明
A126: (7) | B126: 請說明 | K126: OtherExpenditureAmount7 | L126: =ROW() -> 126 | O126: 0 | P126: 0 | Q126: 0 | R126: 0 | S126: 1 | T126: =S126+COUNTIF(S$100:S126,S126)-1 -> 26 | U126: 0 | V126: 0 | X126: 0 | Y126: 0 | Z126: 0 | AA126: 0 | AB126: 1 | AC126: =AB126+COUNTIF(AB$100:AB126,AB126)-1 -> 26 | AD126: 0 | AE126: 0 | AF126: 請說明
A127: (8) | B127: 請說明 | K127: OtherExpenditureAmount8 | L127: =ROW() -> 127 | O127: 0 | P127: 0 | Q127: 0 | R127: 0 | S127: 1 | T127: =S127+COUNTIF(S$100:S127,S127)-1 -> 27 | U127: 0 | V127: 0 | X127: 0 | Y127: 0 | Z127: 0 | AA127: 0 | AB127: 1 | AC127: =AB127+COUNTIF(AB$100:AB127,AB127)-1 -> 27 | AD127: 0 | AE127: 0 | AF127: 請說明
A128: (9) | B128: 請說明 | K128: OtherExpenditureAmount9 | L128: =ROW() -> 128 | O128: 0 | P128: 0 | Q128: 0 | R128: 0 | S128: 1 | T128: =S128+COUNTIF(S$100:S128,S128)-1 -> 28 | U128: 0 | V128: 0 | X128: 0 | Y128: 0 | Z128: 0 | AA128: 0 | AB128: 1 | AC128: =AB128+COUNTIF(AB$100:AB128,AB128)-1 -> 28 | AD128: 0 | AE128: 0 | AF128: 請說明
A129: (10) | B129: 請說明 | K129: OtherExpenditureAmount10 | L129: =ROW() -> 129 | O129: 0 | P129: 0 | Q129: 0 | R129: 0 | S129: 1 | T129: =S129+COUNTIF(S$100:S129,S129)-1 -> 29 | U129: 0 | V129: 0 | X129: 0 | Y129: 0 | Z129: 0 | AA129: 0 | AB129: 1 | AC129: =AB129+COUNTIF(AB$100:AB129,AB129)-1 -> 29 | AD129: 0 | AE129: 0 | AF129: 請說明
A130: (11) | B130: 請說明 | K130: OtherExpenditureAmount11 | L130: =ROW() -> 130 | O130: 0 | P130: 0 | Q130: 0 | R130: 0 | S130: 1 | T130: =S130+COUNTIF(S$100:S130,S130)-1 -> 30 | U130: 0 | V130: 0 | X130: 0 | Y130: 0 | Z130: 0 | AA130: 0 | AB130: 1 | AC130: =AB130+COUNTIF(AB$100:AB130,AB130)-1 -> 30 | AD130: 0 | AE130: 0 | AF130: 請說明
A131: (12) | B131: 請說明 | K131: OtherExpenditureAmount12 | L131: =ROW() -> 131 | O131: 0 | P131: 0 | Q131: 0 | R131: 0 | S131: 1 | T131: =S131+COUNTIF(S$100:S131,S131)-1 -> 31 | U131: 0 | V131: 0 | X131: 0 | Y131: 0 | Z131: 0 | AA131: 0 | AB131: 1 | AC131: =AB131+COUNTIF(AB$100:AB131,AB131)-1 -> 31 | AD131: 0 | AE131: 0 | AF131: 請說明
A132: (13) | B132: 請說明 | K132: OtherExpenditureAmount13 | L132: =ROW() -> 132 | O132: 0 | P132: 0 | Q132: 0 | R132: 0 | S132: 1 | T132: =S132+COUNTIF(S$100:S132,S132)-1 -> 32 | U132: 0 | V132: 0 | X132: 0 | Y132: 0 | Z132: 0 | AA132: 0 | AB132: 1 | AC132: =AB132+COUNTIF(AB$100:AB132,AB132)-1 -> 32 | AD132: 0 | AE132: 0 | AF132: 請說明
A133: (14) | B133: 請說明 | K133: OtherExpenditureAmount14 | L133: =ROW() -> 133 | O133: 0 | P133: 0 | Q133: 0 | R133: 0 | S133: 1 | T133: =S133+COUNTIF(S$100:S133,S133)-1 -> 33 | U133: 0 | V133: 0 | X133: 0 | Y133: 0 | Z133: 0 | AA133: 0 | AB133: 1 | AC133: =AB133+COUNTIF(AB$100:AB133,AB133)-1 -> 33 | AD133: 0 | AE133: 0 | AF133: 請說明
A134: (15) | B134: 請說明 | K134: OtherExpenditureAmount15 | L134: =ROW() -> 134 | O134: 0 | P134: 0 | Q134: 0 | R134: 0 | S134: 1 | T134: =S134+COUNTIF(S$100:S134,S134)-1 -> 34 | U134: 0 | V134: 0 | X134: 0 | Y134: 0 | Z134: 0 | AA134: 0 | AB134: 1 | AC134: =AB134+COUNTIF(AB$100:AB134,AB134)-1 -> 34 | AD134: 0 | AE134: 0 | AF134: 請說明
D135: =SUM(D100:D134) -> 0 | F135: =SUM(F100:F134) -> 0 | H135: =SUM(H100:H134) -> 0 | O135: =SUM(O100:O134) -> 0 | P135: =SUM(P100:P134) -> 0 | Q135: =SUM(Q100:Q134) -> 0 | U135: =ROUND(O135,0)-P135 -> 0 | V135: =SUM(V100:V134) -> 0 | X135: =SUM(X100:X134) -> 0 | Y135: =SUM(Y100:Y134) -> 0 | Z135: =SUM(Z100:Z134) -> 0 | AD135: =ROUND(X135,0)-Y135 -> 0 | AE135: =SUM(AE100:AE134) -> 0
H147: (續下頁)
A148: - 14 -
A149: =A88 -> 報表 6
H151: (五頁的第四頁)
A152: =A91 -> 學校名稱 : ________________________________________________________________________
A153: =A92 -> 
A155: =A94 -> 帳目註解
A157: 4. 與有關連人士或機構團體的交易
F158: 本年度 | H158: 上年度
F159: 元 | H159: 元
A160: 應收有關連人士或機構團體帳項(請說明)
A161: (1) | B161: 請說明 | O161: =F161 -> 0 | P161: =INT(O161) -> 0 | Q161: =ROUND(O161,2)-P161 -> 0 | R161: =Q161*P$11+P161 -> 0 | S161: =RANK(R161,R$161:R$170) -> 1 | T161: =S161+COUNTIF(S$161:S161,S161)-1 -> 1 | U161: =IF(T161<=U$171,1,0) -> 0 | V161: =U161+P161 -> 0
A162: (2) | B162: 請說明 | O162: =F162 -> 0 | P162: 0 | Q162: 0 | R162: 0 | S162: =RANK(R162,R$161:R$170) -> 1 | T162: =S162+COUNTIF(S$161:S162,S162)-1 -> 2 | U162: =IF(T162<=U$171,1,0) -> 0 | V162: 0
A163: (3) | B163: 請說明 | O163: 0 | P163: 0 | Q163: 0 | R163: 0 | S163: 1 | T163: =S163+COUNTIF(S$161:S163,S163)-1 -> 3 | U163: 0 | V163: 0
A164: (4) | B164: 請說明 | O164: 0 | P164: 0 | Q164: 0 | R164: 0 | S164: 1 | T164: =S164+COUNTIF(S$161:S164,S164)-1 -> 4 | U164: 0 | V164: 0
A165: (5) | B165: 請說明 | O165: 0 | P165: 0 | Q165: 0 | R165: 0 | S165: 1 | T165: =S165+COUNTIF(S$161:S165,S165)-1 -> 5 | U165: 0 | V165: 0
A166: (6) | B166: 請說明 | O166: 0 | P166: 0 | Q166: 0 | R166: 0 | S166: 1 | T166: =S166+COUNTIF(S$161:S166,S166)-1 -> 6 | U166: 0 | V166: 0
A167: (7) | B167: 請說明 | O167: 0 | P167: 0 | Q167: 0 | R167: 0 | S167: 1 | T167: =S167+COUNTIF(S$161:S167,S167)-1 -> 7 | U167: 0 | V167: 0
A168: (8) | B168: 請說明 | O168: 0 | P168: 0 | Q168: 0 | R168: 0 | S168: 1 | T168: =S168+COUNTIF(S$161:S168,S168)-1 -> 8 | U168: 0 | V168: 0
A169: (9) | B169: 請說明 | O169: 0 | P169: 0 | Q169: 0 | R169: 0 | S169: 1 | T169: =S169+COUNTIF(S$161:S169,S169)-1 -> 9 | U169: 0 | V169: 0
A170: (10) | B170: 請說明 | O170: 0 | P170: 0 | Q170: 0 | R170: 0 | S170: 1 | T170: =S170+COUNTIF(S$161:S170,S170)-1 -> 10 | U170: 0 | V170: 0
A171: 應付有關連人士或機構團體帳項(請說明) | K171: Comme_RelatePartyTransactionFromKG | O171: =SUM(O161:O170) -> 0 | P171: =SUM(P161:P170) -> 0 | Q171: =SUM(Q161:Q170) -> 0 | U171: =ROUND(O171,0)-P171 -> 0 | V171: =SUM(V161:V170) -> 0
A172: (1) | B172: 請說明 | O172: =F172 -> 0 | P172: =INT(O172) -> 0 | Q172: =ROUND(O172,2)-P172 -> 0 | R172: =Q172*P$11+P172 -> 0 | S172: =RANK(R172,R$172:R$181) -> 1 | T172: =S172+COUNTIF(S$172:S172,S172)-1 -> 1 | U172: =IF(T172<=U$182,1,0) -> 0 | V172: =U172+P172 -> 0
A173: (2) | B173: 請說明 | O173: =F173 -> 0 | P173: 0 | Q173: 0 | R173: 0 | S173: =RANK(R173,R$172:R$181) -> 1 | T173: =S173+COUNTIF(S$172:S173,S173)-1 -> 2 | U173: =IF(T173<=U$182,1,0) -> 0 | V173: 0
A174: (3) | B174: 請說明 | O174: 0 | P174: 0 | Q174: 0 | R174: 0 | S174: 1 | T174: =S174+COUNTIF(S$172:S174,S174)-1 -> 3 | U174: 0 | V174: 0
A175: (4) | B175: 請說明 | O175: 0 | P175: 0 | Q175: 0 | R175: 0 | S175: 1 | T175: =S175+COUNTIF(S$172:S175,S175)-1 -> 4 | U175: 0 | V175: 0
A176: (5) | B176: 請說明 | O176: 0 | P176: 0 | Q176: 0 | R176: 0 | S176: 1 | T176: =S176+COUNTIF(S$172:S176,S176)-1 -> 5 | U176: 0 | V176: 0
A177: (6) | B177: 請說明 | O177: 0 | P177: 0 | Q177: 0 | R177: 0 | S177: 1 | T177: =S177+COUNTIF(S$172:S177,S177)-1 -> 6 | U177: 0 | V177: 0
A178: (7) | B178: 請說明 | O178: 0 | P178: 0 | Q178: 0 | R178: 0 | S178: 1 | T178: =S178+COUNTIF(S$172:S178,S178)-1 -> 7 | U178: 0 | V178: 0
A179: (8) | B179: 請說明 | O179: 0 | P179: 0 | Q179: 0 | R179: 0 | S179: 1 | T179: =S179+COUNTIF(S$172:S179,S179)-1 -> 8 | U179: 0 | V179: 0
A180: (9) | B180: 請說明 | O180: 0 | P180: 0 | Q180: 0 | R180: 0 | S180: 1 | T180: =S180+COUNTIF(S$172:S180,S180)-1 -> 9 | U180: 0 | V180: 0
A181: (10) | B181: 請說明 | O181: 0 | P181: 0 | Q181: 0 | R181: 0 | S181: 1 | T181: =S181+COUNTIF(S$172:S181,S181)-1 -> 10 | U181: 0 | V181: 0
A182: 付予有關連人士或機構團體款項(請說明) | K182: Comme_RelatePartyTransaction | O182: =SUM(O172:O181) -> 0 | P182: =SUM(P172:P181) -> 0 | Q182: =SUM(Q172:Q181) -> 0 | U182: =ROUND(O182,0)-P182 -> 0 | V182: =SUM(V172:V181) -> 0
A183: (1) | B183: 請說明 | O183: =F183 -> 0 | P183: =INT(O183) -> 0 | Q183: =ROUND(O183,2)-P183 -> 0 | R183: =Q183*P$11+P183 -> 0 | S183: =RANK(R183,R$183:R$192) -> 1 | T183: =S183+COUNTIF(S$183:S183,S183)-1 -> 1 | U183: =IF(T183<=U$193,1,0) -> 0 | V183: =U183+P183 -> 0
A184: (2) | B184: 請說明 | O184: =F184 -> 0 | P184: 0 | Q184: 0 | R184: 0 | S184: =RANK(R184,R$183:R$192) -> 1 | T184: =S184+COUNTIF(S$183:S184,S184)-1 -> 2 | U184: =IF(T184<=U$193,1,0) -> 0 | V184: 0
A185: (3) | B185: 請說明 | O185: 0 | P185: 0 | Q185: 0 | R185: 0 | S185: 1 | T185: =S185+COUNTIF(S$183:S185,S185)-1 -> 3 | U185: 0 | V185: 0
A186: (4) | B186: 請說明 | O186: 0 | P186: 0 | Q186: 0 | R186: 0 | S186: 1 | T186: =S186+COUNTIF(S$183:S186,S186)-1 -> 4 | U186: 0 | V186: 0
A187: (5) | B187: 請說明 | O187: 0 | P187: 0 | Q187: 0 | R187: 0 | S187: 1 | T187: =S187+COUNTIF(S$183:S187,S187)-1 -> 5 | U187: 0 | V187: 0
A188: (6) | B188: 請說明 | O188: 0 | P188: 0 | Q188: 0 | R188: 0 | S188: 1 | T188: =S188+COUNTIF(S$183:S188,S188)-1 -> 6 | U188: 0 | V188: 0
A189: (7) | B189: 請說明 | O189: 0 | P189: 0 | Q189: 0 | R189: 0 | S189: 1 | T189: =S189+COUNTIF(S$183:S189,S189)-1 -> 7 | U189: 0 | V189: 0
A190: (8) | B190: 請說明 | O190: 0 | P190: 0 | Q190: 0 | R190: 0 | S190: 1 | T190: =S190+COUNTIF(S$183:S190,S190)-1 -> 8 | U190: 0 | V190: 0
A191: (9) | B191: 請說明 | O191: 0 | P191: 0 | Q191: 0 | R191: 0 | S191: 1 | T191: =S191+COUNTIF(S$183:S191,S191)-1 -> 9 | U191: 0 | V191: 0
A192: (10) | B192: 請說明 | O192: 0 | P192: 0 | Q192: 0 | R192: 0 | S192: 1 | T192: =S192+COUNTIF(S$183:S192,S192)-1 -> 10 | U192: 0 | V192: 0
A193: 收取有關連人士或機構團體款項(請說明) | O193: =SUM(O183:O192) -> 0 | P193: =SUM(P183:P192) -> 0 | Q193: =SUM(Q183:Q192) -> 0 | U193: =ROUND(O193,0)-P193 -> 0 | V193: =SUM(V183:V192) -> 0
A194: (1) | B194: 請說明 | O194: =F194 -> 0 | P194: =INT(O194) -> 0 | Q194: =ROUND(O194,2)-P194 -> 0 | R194: =Q194*P$11+P194 -> 0 | S194: =RANK(R194,R$194:R$203) -> 1 | T194: =S194+COUNTIF(S$194:S194,S194)-1 -> 1 | U194: =IF(T194<=U$220,1,0) -> 0 | V194: =U194+P194 -> 0
A195: (2) | B195: 請說明 | O195: =F195 -> 0 | P195: 0 | Q195: 0 | R195: 0 | S195: =RANK(R195,R$194:R$203) -> 1 | T195: =S195+COUNTIF(S$194:S195,S195)-1 -> 2 | U195: 0 | V195: 0
A196: (3) | B196: 請說明 | O196: 0 | P196: 0 | Q196: 0 | R196: 0 | S196: 1 | T196: =S196+COUNTIF(S$194:S196,S196)-1 -> 3 | U196: 0 | V196: 0
A197: (4) | B197: 請說明 | O197: 0 | P197: 0 | Q197: 0 | R197: 0 | S197: 1 | T197: =S197+COUNTIF(S$194:S197,S197)-1 -> 4 | U197: 0 | V197: 0
A198: (5) | B198: 請說明 | O198: 0 | P198: 0 | Q198: 0 | R198: 0 | S198: 1 | T198: =S198+COUNTIF(S$194:S198,S198)-1 -> 5 | U198: 0 | V198: 0
A199: (6) | B199: 請說明 | O199: 0 | P199: 0 | Q199: 0 | R199: 0 | S199: 1 | T199: =S199+COUNTIF(S$194:S199,S199)-1 -> 6 | U199: 0 | V199: 0
A200: (7) | B200: 請說明 | O200: 0 | P200: 0 | Q200: 0 | R200: 0 | S200: 1 | T200: =S200+COUNTIF(S$194:S200,S200)-1 -> 7 | U200: 0 | V200: 0
A201: (8) | B201: 請說明 | O201: 0 | P201: 0 | Q201: 0 | R201: 0 | S201: 1 | T201: =S201+COUNTIF(S$194:S201,S201)-1 -> 8 | U201: 0 | V201: 0
A202: (9) | B202: 請說明 | O202: 0 | P202: 0 | Q202: 0 | R202: 0 | S202: 1 | T202: =S202+COUNTIF(S$194:S202,S202)-1 -> 9 | U202: 0 | V202: 0
A203: (10) | B203: 請說明 | O203: 0 | P203: 0 | Q203: 0 | R203: 0 | S203: 1 | T203: =S203+COUNTIF(S$194:S203,S203)-1 -> 10 | U203: 0 | V203: 0
O220: =SUM(O194:O219) -> 0 | P220: =SUM(P194:P219) -> 0 | Q220: =SUM(Q194:Q219) -> 0 | U220: =ROUND(O220,0)-P220 -> 0 | V220: =SUM(V194:V219) -> 0
H221: (續下頁)
A222: - 15 -
A223: =A149 -> 報表 6
H225: (五頁的第五頁)
A226: =A4 -> 學校名稱 : ________________________________________________________________________
A227: =A5 -> 
A229: =A155 -> 帳目註解
A231: 5. 其他收入(附註3)
D233: 本年度 | H233: 上年度
D234: 元 | H234: 元
D235: 本地課程 班級 | F235: 非本地課程 班級 | H235: 總額
A236: 膳食費 | K236: MealCharges | L236: =ROW() -> 236 | O236: =D236 -> 0 | P236: =INT(O236) -> 0 | Q236: =ROUND(O236,2)-P236 -> 0 | R236: =Q236*P$11+P236 -> 0 | S236: =RANK(R236,R$236:R$258) -> 1 | T236: =S236+COUNTIF(S$236:S236,S236)-1 -> 1 | U236: =IF(T236<=U$259,1,0) -> 0 | V236: =U236+P236 -> 0 | X236: =F236 -> 0 | Y236: =INT(X236) -> 0 | Z236: =ROUND(X236,2)-Y236 -> 0 | AA236: =Z236*Y$11+Y236 -> 0 | AB236: =RANK(AA236,AA$236:AA$258) -> 1 | AC236: =AB236+COUNTIF(AB$236:AB236,AB236)-1 -> 1 | AD236: =IF(AC236<=AD$259,1,0) -> 0 | AE236: =AD236+Y236 -> 0
A237: 報名費/註冊費 | K237: AppFeeRegFee | L237: =ROW() -> 237 | O237: 0 | P237: 0 | Q237: 0 | R237: 0 | S237: =RANK(R237,R$236:R$258) -> 1 | T237: =S237+COUNTIF(S$236:S237,S237)-1 -> 2 | U237: =IF(T237<=U$259,1,0) -> 0 | V237: 0 | X237: =F237 -> 0 | Y237: 0 | Z237: 0 | AA237: 0 | AB237: =RANK(AA237,AA$236:AA$258) -> 1 | AC237: =AB237+COUNTIF(AB$236:AB237,AB237)-1 -> 2 | AD237: =IF(AC237<=AD$259,1,0) -> 0 | AE237: 0
A238: 辦學團體的津貼 | K238: SubsidiesFromSchSponsorBody | L238: =ROW() -> 238 | O238: 0 | P238: 0 | Q238: 0 | R238: 0 | S238: 1 | T238: =S238+COUNTIF(S$236:S238,S238)-1 -> 3 | U238: 0 | V238: 0 | X238: 0 | Y238: 0 | Z238: 0 | AA238: 0 | AB238: 1 | AC238: =AB238+COUNTIF(AB$236:AB238,AB238)-1 -> 3 | AD238: 0 | AE238: 0
A239: 教師進修學費資助 | K239: CourseFeeRefundToTeachers | L239: =ROW() -> 239 | O239: 0 | P239: 0 | Q239: 0 | R239: 0 | S239: 1 | T239: =S239+COUNTIF(S$236:S239,S239)-1 -> 4 | U239: 0 | V239: 0 | X239: 0 | Y239: 0 | Z239: 0 | AA239: 0 | AB239: 1 | AC239: =AB239+COUNTIF(AB$236:AB239,AB239)-1 -> 4 | AD239: 0 | AE239: 0
A240: 指定用途的資助 (如環境及自然保育基金的資助) | K240: DesignatedGrants | L240: =ROW() -> 240 | O240: 0 | P240: 0 | Q240: 0 | R240: 0 | S240: 1 | T240: =S240+COUNTIF(S$236:S240,S240)-1 -> 5 | U240: 0 | V240: 0 | X240: 0 | Y240: 0 | Z240: 0 | AA240: 0 | AB240: 1 | AC240: =AB240+COUNTIF(AB$236:AB240,AB240)-1 -> 5 | AD240: 0 | AE240: 0
A241: 銀行利息收入 | K241: BankInterestIncome | L241: =ROW() -> 241 | O241: 0 | P241: 0 | Q241: 0 | R241: 0 | S241: 1 | T241: =S241+COUNTIF(S$236:S241,S241)-1 -> 6 | U241: 0 | V241: 0 | X241: 0 | Y241: 0 | Z241: 0 | AA241: 0 | AB241: 1 | AC241: =AB241+COUNTIF(AB$236:AB241,AB241)-1 -> 6 | AD241: 0 | AE241: 0 | AF241: =COLUMN() -> 32
A242: 保險賠償 | K242: InsuranceCompensation | L242: =ROW() -> 242 | O242: 0 | P242: 0 | Q242: 0 | R242: 0 | S242: 1 | T242: =S242+COUNTIF(S$236:S242,S242)-1 -> 7 | U242: 0 | V242: 0 | X242: 0 | Y242: 0 | Z242: 0 | AA242: 0 | AB242: 1 | AC242: =AB242+COUNTIF(AB$236:AB242,AB242)-1 -> 7 | AD242: 0 | AE242: 0
A243: 其他
... 34 more rows

Sheet ---
